Body Name,Body,Service Area Categorisation,Service Division Categorisation,Responsible Unit,Expenses Type,Detailed Expenses Type,Payment Date,Transaction Number,Payment Amount,Supplier Type,Supplier Name,Supplier Id
Portsmouth City Council,PCC,Housing Revenue Account,"Rents, Rates, Taxes and Other Charges","Housing, Neighbourhood and Building Services",Premises-Related Expenditure,Rates,25-Jan-23,6697368,128,OTHER LOCAL AUTHORITY,HAVANT BOROUGH COUNCIL,300000020457057
Portsmouth City Council,PCC,Children's and Education Services,Special Schools,Children's Services and Education,Third Party Payments,Other establishments,25-Jan-23,6697307,"186,213.68",SUPPLIER,SOLENT ACADEMIES TRUST,300000020477417
Portsmouth City Council,PCC,Children's and Education Services,Special Schools,Children's Services and Education,Third Party Payments,Other establishments,25-Jan-23,6697307,"14,795.92",SUPPLIER,SOLENT ACADEMIES TRUST,300000020477417
Portsmouth City Council,PCC,Children's and Education Services,Special Schools,Children's Services and Education,Third Party Payments,Other establishments,25-Jan-23,6697307,"10,266.64",SUPPLIER,SOLENT ACADEMIES TRUST,300000020477417
Portsmouth City Council,PCC,Children's and Education Services,Special Schools,Children's Services and Education,Third Party Payments,Other establishments,26-Jan-23,6697807,"215,333.92",SUPPLIER,SOLENT ACADEMIES TRUST,300000020477417
Portsmouth City Council,PCC,Children's and Education Services,Special Schools,Children's Services and Education,Third Party Payments,Other establishments,26-Jan-23,6697807,"7,629.28",SUPPLIER,SOLENT ACADEMIES TRUST,300000020477417
Portsmouth City Council,PCC,Children's and Education Services,Special Schools,Children's Services and Education,Third Party Payments,Other establishments,26-Jan-23,6697807,"4,600.00",SUPPLIER,SOLENT ACADEMIES TRUST,300000020477417
Portsmouth City Council,PCC,Children's and Education Services,Special Schools,Children's Services and Education,Third Party Payments,Other establishments,25-Jan-23,6697308,"101,462.32",SUPPLIER,SOLENT ACADEMIES TRUST,300000020477417
Portsmouth City Council,PCC,Children's and Education Services,Special Schools,Children's Services and Education,Third Party Payments,Other establishments,25-Jan-23,6697308,"4,330.48",SUPPLIER,SOLENT ACADEMIES TRUST,300000020477417
Portsmouth City Council,PCC,Children's and Education Services,Special Schools,Children's Services and Education,Third Party Payments,Other establishments,25-Jan-23,6697308,"4,666.64",SUPPLIER,SOLENT ACADEMIES TRUST,300000020477417
Portsmouth City Council,PCC,Children's and Education Services,Special Schools,Children's Services and Education,Third Party Payments,Other establishments,25-Jan-23,6697335,"115,916.80",SUPPLIER,THE DELTA EDUCATION TRUST,300000020481637
Portsmouth City Council,PCC,Children's and Education Services,Special Schools,Children's Services and Education,Third Party Payments,Other establishments,25-Jan-23,6697335,"10,000.00",SUPPLIER,THE DELTA EDUCATION TRUST,300000020481637
Portsmouth City Council,PCC,Children's and Education Services,Special Schools,Children's Services and Education,Third Party Payments,Other establishments,25-Jan-23,6697335,"6,666.67",SUPPLIER,THE DELTA EDUCATION TRUST,300000020481637
Portsmouth City Council,PCC,Children's and Education Services,Management and Support Services,Children's Services and Education,Third Party Payments,Other establishments,25-Jan-23,6697335,"19,622.40",SUPPLIER,THE DELTA EDUCATION TRUST,300000020481637
Portsmouth City Council,PCC,Children's and Education Services,Management and Support Services,Children's Services and Education,Third Party Payments,Other establishments,25-Jan-23,6697335,"4,800.00",SUPPLIER,THE DELTA EDUCATION TRUST,300000020481637
Portsmouth City Council,PCC,Children's and Education Services,Management and Support Services,Children's Services and Education,Third Party Payments,Other establishments,25-Jan-23,6697335,"52,800.00",SUPPLIER,THE DELTA EDUCATION TRUST,300000020481637
Portsmouth City Council,PCC,Housing Revenue Account,"Rents, Rates, Taxes and Other Charges","Housing, Neighbourhood and Building Services",Premises-Related Expenditure,Rates,25-Jan-23,6697368,127,OTHER LOCAL AUTHORITY,HAVANT BOROUGH COUNCIL,300000020457057
Portsmouth City Council,PCC,Housing Revenue Account,"Rents, Rates, Taxes and Other Charges","Housing, Neighbourhood and Building Services",Premises-Related Expenditure,Rates,25-Jan-23,6697368,121,OTHER LOCAL AUTHORITY,HAVANT BOROUGH COUNCIL,300000020457057
Portsmouth City Council,PCC,Housing Revenue Account,"Rents, Rates, Taxes and Other Charges","Housing, Neighbourhood and Building Services",Premises-Related Expenditure,Rates,25-Jan-23,6697368,142,OTHER LOCAL AUTHORITY,HAVANT BOROUGH COUNCIL,300000020457057
Portsmouth City Council,PCC,Housing Revenue Account,"Rents, Rates, Taxes and Other Charges","Housing, Neighbourhood and Building Services",Premises-Related Expenditure,Rates,25-Jan-23,6697368,134,OTHER LOCAL AUTHORITY,HAVANT BOROUGH COUNCIL,300000020457057
Portsmouth City Council,PCC,Housing Revenue Account,"Rents, Rates, Taxes and Other Charges","Housing, Neighbourhood and Building Services",Premises-Related Expenditure,Rates,25-Jan-23,6697368,128,OTHER LOCAL AUTHORITY,HAVANT BOROUGH COUNCIL,300000020457057
Portsmouth City Council,PCC,Housing Revenue Account,"Rents, Rates, Taxes and Other Charges","Housing, Neighbourhood and Building Services",Premises-Related Expenditure,Rates,25-Jan-23,6697368,142,OTHER LOCAL AUTHORITY,HAVANT BOROUGH COUNCIL,300000020457057
Portsmouth City Council,PCC,Housing Revenue Account,"Rents, Rates, Taxes and Other Charges","Housing, Neighbourhood and Building Services",Premises-Related Expenditure,Rates,25-Jan-23,6697368,179,OTHER LOCAL AUTHORITY,HAVANT BOROUGH COUNCIL,300000020457057
Portsmouth City Council,PCC,Housing Revenue Account,"Rents, Rates, Taxes and Other Charges","Housing, Neighbourhood and Building Services",Premises-Related Expenditure,Rates,25-Jan-23,6697368,132,OTHER LOCAL AUTHORITY,HAVANT BOROUGH COUNCIL,300000020457057
Portsmouth City Council,PCC,Housing Revenue Account,"Rents, Rates, Taxes and Other Charges","Housing, Neighbourhood and Building Services",Premises-Related Expenditure,Rates,25-Jan-23,6697368,133,OTHER LOCAL AUTHORITY,HAVANT BOROUGH COUNCIL,300000020457057
Portsmouth City Council,PCC,Housing Revenue Account,"Rents, Rates, Taxes and Other Charges","Housing, Neighbourhood and Building Services",Premises-Related Expenditure,Rates,25-Jan-23,6697368,144,OTHER LOCAL AUTHORITY,HAVANT BOROUGH COUNCIL,300000020457057
Portsmouth City Council,PCC,Housing Revenue Account,"Rents, Rates, Taxes and Other Charges","Housing, Neighbourhood and Building Services",Premises-Related Expenditure,Rates,25-Jan-23,6697368,125,OTHER LOCAL AUTHORITY,HAVANT BOROUGH COUNCIL,300000020457057
Portsmouth City Council,PCC,Housing Revenue Account,"Rents, Rates, Taxes and Other Charges","Housing, Neighbourhood and Building Services",Premises-Related Expenditure,Rates,25-Jan-23,6697368,156,OTHER LOCAL AUTHORITY,HAVANT BOROUGH COUNCIL,300000020457057
Portsmouth City Council,PCC,Housing Revenue Account,"Rents, Rates, Taxes and Other Charges","Housing, Neighbourhood and Building Services",Premises-Related Expenditure,Rates,25-Jan-23,6697368,173,OTHER LOCAL AUTHORITY,HAVANT BOROUGH COUNCIL,300000020457057
Portsmouth City Council,PCC,Children's and Education Services,Management and Support Services,Children's Services and Education,Third Party Payments,Other establishments,25-Jan-23,6697314,"3,333.34",SUPPLIER,THE SALTERNS ACADEMY TRUST,300000020477978
Portsmouth City Council,PCC,Children's and Education Services,Management and Support Services,Children's Services and Education,Third Party Payments,Other establishments,25-Jan-23,6697329,"6,666.67",SUPPLIER,THE THINKING SCHOOLS TRUST,300000020481073
Portsmouth City Council,PCC,Housing Revenue Account,"Rents, Rates, Taxes and Other Charges","Housing, Neighbourhood and Building Services",Premises-Related Expenditure,Rates,25-Jan-23,6697368,-161,OTHER LOCAL AUTHORITY,HAVANT BOROUGH COUNCIL,300000020457057
Portsmouth City Council,PCC,Housing Revenue Account,"Rents, Rates, Taxes and Other Charges","Housing, Neighbourhood and Building Services",Premises-Related Expenditure,Rates,25-Jan-23,6697368,322,OTHER LOCAL AUTHORITY,HAVANT BOROUGH COUNCIL,300000020457057
Portsmouth City Council,PCC,Housing Revenue Account,"Rents, Rates, Taxes and Other Charges","Housing, Neighbourhood and Building Services",Premises-Related Expenditure,Rates,25-Jan-23,6697368,136,OTHER LOCAL AUTHORITY,HAVANT BOROUGH COUNCIL,300000020457057
Portsmouth City Council,PCC,Children's and Education Services,Special Schools,Children's Services and Education,Third Party Payments,Other establishments,25-Jan-23,6697307,"6,666.67",SUPPLIER,SOLENT ACADEMIES TRUST,300000020477417
Portsmouth City Council,PCC,Children's and Education Services,Special Schools,Children's Services and Education,Third Party Payments,Other establishments,26-Jan-23,6697807,"1,666.58",SUPPLIER,SOLENT ACADEMIES TRUST,300000020477417
Portsmouth City Council,PCC,Housing Revenue Account,"Rents, Rates, Taxes and Other Charges","Housing, Neighbourhood and Building Services",Premises-Related Expenditure,Rates,25-Jan-23,6697368,248,OTHER LOCAL AUTHORITY,HAVANT BOROUGH COUNCIL,300000020457057
Portsmouth City Council,PCC,Children's and Education Services,Children Looked After,Children's Services and Education,Third Party Payments,Other establishments,31-Jan-23,6698317,"-6,985.00",SUPPLIER,FUSION FOSTERING LIMITED,300000020479881
Portsmouth City Council,PCC,Children's and Education Services,Children Looked After,Children's Services and Education,Third Party Payments,Other establishments,31-Jan-23,6698317,"-1,995.71",SUPPLIER,FUSION FOSTERING LIMITED,300000020479881
Portsmouth City Council,PCC,Children's and Education Services,Children Looked After,Children's Services and Education,Third Party Payments,Other establishments,31-Jan-23,6698317,-0.01,SUPPLIER,FUSION FOSTERING LIMITED,300000020479881
Portsmouth City Council,PCC,Children's and Education Services,Children Looked After,Children's Services and Education,Third Party Payments,Other establishments,31-Jan-23,6698317,"1,710.00",SUPPLIER,FUSION FOSTERING LIMITED,300000020479881
Portsmouth City Council,PCC,Children's and Education Services,Children Looked After,Children's Services and Education,Third Party Payments,Other establishments,31-Jan-23,6698317,"1,710.00",SUPPLIER,FUSION FOSTERING LIMITED,300000020479881
Portsmouth City Council,PCC,Children's and Education Services,Children Looked After,Children's Services and Education,Third Party Payments,Other establishments,31-Jan-23,6698317,"4,989.29",SUPPLIER,FUSION FOSTERING LIMITED,300000020479881
Portsmouth City Council,PCC,Children's and Education Services,Children Looked After,Children's Services and Education,Third Party Payments,Other establishments,31-Jan-23,6698317,-285.71,SUPPLIER,FUSION FOSTERING LIMITED,300000020479881
Portsmouth City Council,PCC,Children's and Education Services,Children Looked After,Children's Services and Education,Third Party Payments,Other establishments,31-Jan-23,6698317,"-4,000.00",SUPPLIER,FUSION FOSTERING LIMITED,300000020479881
Portsmouth City Council,PCC,Children's and Education Services,Other Children and Family Services,Children's Services and Education,Third Party Payments,Other establishments,05-Jan-23,6694424,"1,050.00",SUPPLIER,Classified as 'personal data' (under the Data Protection Act 2018),300000194059597
Portsmouth City Council,PCC,Other,Suspense and Capital Schemes,"Housing, Neighbourhood and Building Services",Supplies and Services,Services,03-Jan-23,6693661,"6,618.00",SUPPLIER,D&T BATHROOMS LTD,300000020476584
Portsmouth City Council,PCC,Children's and Education Services,Early Years,Children's Services and Education,Third Party Payments,Other establishments,05-Jan-23,6694369,-478.8,SUPPLIER,MILTON PARK PRE SCHOOL,300000020460904
Portsmouth City Council,PCC,Children's and Education Services,Early Years,Children's Services and Education,Third Party Payments,Other establishments,05-Jan-23,6694369,844.66,SUPPLIER,MILTON PARK PRE SCHOOL,300000020460904
Portsmouth City Council,PCC,Children's and Education Services,Early Years,Children's Services and Education,Third Party Payments,Other establishments,05-Jan-23,6694277,734.25,SOLETRADER,A TO Z CHILDMINDING,300000020481288
Portsmouth City Council,PCC,Children's and Education Services,Early Years,Children's Services and Education,Third Party Payments,Other establishments,05-Jan-23,6694277,867.75,SOLETRADER,A TO Z CHILDMINDING,300000020481288
Portsmouth City Council,PCC,Children's and Education Services,Early Years,Children's Services and Education,Third Party Payments,Other establishments,05-Jan-23,6694216,48.95,SOLETRADER,Classified as 'personal data' (under the Data Protection Act 2018),300000020476307
Portsmouth City Council,PCC,Children's and Education Services,Early Years,Children's Services and Education,Third Party Payments,Other establishments,05-Jan-23,6694216,99,SOLETRADER,Classified as 'personal data' (under the Data Protection Act 2018),300000020476307
Portsmouth City Council,PCC,Children's and Education Services,Early Years,Children's Services and Education,Third Party Payments,Other establishments,05-Jan-23,6694216,734.25,SOLETRADER,Classified as 'personal data' (under the Data Protection Act 2018),300000020476307
Portsmouth City Council,PCC,Children's and Education Services,Early Years,Children's Services and Education,Third Party Payments,Other establishments,05-Jan-23,6694224,668.61,SOLETRADER,Classified as 'personal data' (under the Data Protection Act 2018),300000020477579
Portsmouth City Council,PCC,Children's and Education Services,Early Years,Children's Services and Education,Third Party Payments,Other establishments,05-Jan-23,6694224,734.25,SOLETRADER,Classified as 'personal data' (under the Data Protection Act 2018),300000020477579
Portsmouth City Council,PCC,Children's and Education Services,Early Years,Children's Services and Education,Third Party Payments,Other establishments,05-Jan-23,6694222,489.5,SOLETRADER,Classified as 'personal data' (under the Data Protection Act 2018),300000020477278
Portsmouth City Council,PCC,Children's and Education Services,Early Years,Children's Services and Education,Third Party Payments,Other establishments,05-Jan-23,6694222,"1,468.50",SOLETRADER,Classified as 'personal data' (under the Data Protection Act 2018),300000020477278
Portsmouth City Council,PCC,Children's and Education Services,Early Years,Children's Services and Education,Third Party Payments,Other establishments,05-Jan-23,6694265,"1,468.50",SOLETRADER,Classified as 'personal data' (under the Data Protection Act 2018),300000020480620
Portsmouth City Council,PCC,Children's and Education Services,Early Years,Children's Services and Education,Third Party Payments,Other establishments,05-Jan-23,6694265,"1,468.50",SOLETRADER,Classified as 'personal data' (under the Data Protection Act 2018),300000020480620
Portsmouth City Council,PCC,Children's and Education Services,Early Years,Children's Services and Education,Third Party Payments,Other establishments,05-Jan-23,6694271,"2,202.75",SOLETRADER,Classified as 'personal data' (under the Data Protection Act 2018),300000020481067
Portsmouth City Council,PCC,Children's and Education Services,Early Years,Children's Services and Education,Third Party Payments,Other establishments,05-Jan-23,6694271,"2,937.00",SOLETRADER,Classified as 'personal data' (under the Data Protection Act 2018),300000020481067
Portsmouth City Council,PCC,Children's and Education Services,Early Years,Children's Services and Education,Third Party Payments,Other establishments,05-Jan-23,6694303,"3,377.55",SUPPLIER,CHAPTER 1 CHILD CARE,300000020466062
Portsmouth City Council,PCC,Children's and Education Services,Early Years,Children's Services and Education,Third Party Payments,Other establishments,05-Jan-23,6694303,"4,405.50",SUPPLIER,CHAPTER 1 CHILD CARE,300000020466062
Portsmouth City Council,PCC,Children's and Education Services,Early Years,Children's Services and Education,Third Party Payments,Other establishments,05-Jan-23,6694291,646.18,SOLETRADER,Classified as 'personal data' (under the Data Protection Act 2018),300000020483854
Portsmouth City Council,PCC,Children's and Education Services,Early Years,Children's Services and Education,Third Party Payments,Other establishments,05-Jan-23,6694291,781.23,SOLETRADER,Classified as 'personal data' (under the Data Protection Act 2018),300000020483854
Portsmouth City Council,PCC,Children's and Education Services,Early Years,Children's Services and Education,Third Party Payments,Other establishments,05-Jan-23,6694291,"1,292.36",SOLETRADER,Classified as 'personal data' (under the Data Protection Act 2018),300000020483854
Portsmouth City Council,PCC,Children's and Education Services,Early Years,Children's Services and Education,Third Party Payments,Other establishments,05-Jan-23,6694270,734.25,SUPPLIER,CLAIRES PLAYCARE,300000020481017
Portsmouth City Council,PCC,Children's and Education Services,Early Years,Children's Services and Education,Third Party Payments,Other establishments,05-Jan-23,6694270,"1,419.55",SUPPLIER,CLAIRES PLAYCARE,300000020481017
Portsmouth City Council,PCC,Children's and Education Services,Early Years,Children's Services and Education,Third Party Payments,Other establishments,05-Jan-23,6694270,"2,663.10",SUPPLIER,CLAIRES PLAYCARE,300000020481017
Portsmouth City Council,PCC,Children's and Education Services,Early Years,Children's Services and Education,Third Party Payments,Other establishments,05-Jan-23,6694334,"4,149.99",SOLETRADER,PINEAPPLE TOTS CHILDCARE,300000020467128
Portsmouth City Council,PCC,Children's and Education Services,Early Years,Children's Services and Education,Third Party Payments,Other establishments,05-Jan-23,6694334,"4,149.99",SOLETRADER,PINEAPPLE TOTS CHILDCARE,300000020467128
Portsmouth City Council,PCC,Children's and Education Services,Early Years,Children's Services and Education,Third Party Payments,Other establishments,05-Jan-23,6694300,99,SOLETRADER,TOODLES TOTS,300000020484553
Portsmouth City Council,PCC,Children's and Education Services,Early Years,Children's Services and Education,Third Party Payments,Other establishments,05-Jan-23,6694300,"1,468.50",SOLETRADER,TOODLES TOTS,300000020484553
Portsmouth City Council,PCC,Children's and Education Services,Early Years,Children's Services and Education,Third Party Payments,Other establishments,05-Jan-23,6694300,"1,958.00",SOLETRADER,TOODLES TOTS,300000020484553
Portsmouth City Council,PCC,Children's and Education Services,Early Years,Children's Services and Education,Third Party Payments,Other establishments,05-Jan-23,6694261,208.04,SOLETRADER,Classified as 'personal data' (under the Data Protection Act 2018),300000020479527
Portsmouth City Council,PCC,Children's and Education Services,Early Years,Children's Services and Education,Third Party Payments,Other establishments,05-Jan-23,6694261,"1,309.42",SOLETRADER,Classified as 'personal data' (under the Data Protection Act 2018),300000020479527
Portsmouth City Council,PCC,Children's and Education Services,Early Years,Children's Services and Education,Third Party Payments,Other establishments,05-Jan-23,6694247,734.25,SOLETRADER,Classified as 'personal data' (under the Data Protection Act 2018),300000020478321
Portsmouth City Council,PCC,Children's and Education Services,Early Years,Children's Services and Education,Third Party Payments,Other establishments,05-Jan-23,6694247,734.25,SOLETRADER,Classified as 'personal data' (under the Data Protection Act 2018),300000020478321
Portsmouth City Council,PCC,Children's and Education Services,Early Years,Children's Services and Education,Third Party Payments,Other establishments,05-Jan-23,6694221,734.25,SOLETRADER,HELENS CHILDMINDING,300000020477084
Portsmouth City Council,PCC,Children's and Education Services,Early Years,Children's Services and Education,Third Party Payments,Other establishments,05-Jan-23,6694221,734.25,SOLETRADER,HELENS CHILDMINDING,300000020477084
Portsmouth City Council,PCC,Children's and Education Services,Early Years,Children's Services and Education,Third Party Payments,Other establishments,05-Jan-23,6694279,734.25,SUPPLIER,Classified as 'personal data' (under the Data Protection Act 2018),300000020481384
Portsmouth City Council,PCC,Children's and Education Services,Early Years,Children's Services and Education,Third Party Payments,Other establishments,05-Jan-23,6694279,"1,272.70",SUPPLIER,Classified as 'personal data' (under the Data Protection Act 2018),300000020481384
Portsmouth City Council,PCC,Children's and Education Services,Early Years,Children's Services and Education,Third Party Payments,Other establishments,05-Jan-23,6694278,587.4,SOLETRADER,Classified as 'personal data' (under the Data Protection Act 2018),300000020481334
Portsmouth City Council,PCC,Children's and Education Services,Early Years,Children's Services and Education,Third Party Payments,Other establishments,05-Jan-23,6694278,587.4,SOLETRADER,Classified as 'personal data' (under the Data Protection Act 2018),300000020481334
Portsmouth City Council,PCC,Children's and Education Services,Early Years,Children's Services and Education,Third Party Payments,Other establishments,05-Jan-23,6694226,734.25,SOLETRADER,Classified as 'personal data' (under the Data Protection Act 2018),300000020477669
Portsmouth City Council,PCC,Children's and Education Services,Early Years,Children's Services and Education,Third Party Payments,Other establishments,05-Jan-23,6694226,734.25,SOLETRADER,Classified as 'personal data' (under the Data Protection Act 2018),300000020477669
Portsmouth City Council,PCC,Children's and Education Services,Early Years,Children's Services and Education,Third Party Payments,Other establishments,05-Jan-23,6694363,297,SOLETRADER,Classified as 'personal data' (under the Data Protection Act 2018),300000020460603
Portsmouth City Council,PCC,Children's and Education Services,Early Years,Children's Services and Education,Third Party Payments,Other establishments,05-Jan-23,6694363,"2,202.75",SOLETRADER,Classified as 'personal data' (under the Data Protection Act 2018),300000020460603
Portsmouth City Council,PCC,Children's and Education Services,Early Years,Children's Services and Education,Third Party Payments,Other establishments,05-Jan-23,6694363,"4,405.50",SOLETRADER,Classified as 'personal data' (under the Data Protection Act 2018),300000020460603
Portsmouth City Council,PCC,Children's and Education Services,Early Years,Children's Services and Education,Third Party Payments,Other establishments,05-Jan-23,6694380,734.25,SOLETRADER,LITTLE BUGS CHILDMINDING,300000020473198
Portsmouth City Council,PCC,Children's and Education Services,Early Years,Children's Services and Education,Third Party Payments,Other establishments,05-Jan-23,6694380,734.25,SOLETRADER,LITTLE BUGS CHILDMINDING,300000020473198
Portsmouth City Council,PCC,Children's and Education Services,Early Years,Children's Services and Education,Third Party Payments,Other establishments,05-Jan-23,6694380,804.31,SOLETRADER,LITTLE BUGS CHILDMINDING,300000020473198
Portsmouth City Council,PCC,Children's and Education Services,Early Years,Children's Services and Education,Third Party Payments,Other establishments,05-Jan-23,6694251,587.4,SOLETRADER,Classified as 'personal data' (under the Data Protection Act 2018),300000020478665
Portsmouth City Council,PCC,Children's and Education Services,Early Years,Children's Services and Education,Third Party Payments,Other establishments,05-Jan-23,6694293,198,SOLETRADER,LITTLE PADDINGTONS CHILDCARE,300000020484104
Portsmouth City Council,PCC,Children's and Education Services,Early Years,Children's Services and Education,Third Party Payments,Other establishments,05-Jan-23,6694293,"1,174.80",SOLETRADER,LITTLE PADDINGTONS CHILDCARE,300000020484104
Portsmouth City Council,PCC,Children's and Education Services,Early Years,Children's Services and Education,Third Party Payments,Other establishments,05-Jan-23,6694293,"2,937.00",SOLETRADER,LITTLE PADDINGTONS CHILDCARE,300000020484104
Portsmouth City Council,PCC,Children's and Education Services,Early Years,Children's Services and Education,Third Party Payments,Other establishments,05-Jan-23,6694284,734.25,SOLETRADER,Classified as 'personal data' (under the Data Protection Act 2018),300000020482620
Portsmouth City Council,PCC,Children's and Education Services,Early Years,Children's Services and Education,Third Party Payments,Other establishments,05-Jan-23,6694284,734.25,SOLETRADER,Classified as 'personal data' (under the Data Protection Act 2018),300000020482620
Portsmouth City Council,PCC,Children's and Education Services,Early Years,Children's Services and Education,Third Party Payments,Other establishments,05-Jan-23,6694284,887.7,SOLETRADER,Classified as 'personal data' (under the Data Protection Act 2018),300000020482620
Portsmouth City Council,PCC,Children's and Education Services,Early Years,Children's Services and Education,Third Party Payments,Other establishments,05-Jan-23,6694264,99,SOLETRADER,Classified as 'personal data' (under the Data Protection Act 2018),300000020480560
Portsmouth City Council,PCC,Children's and Education Services,Early Years,Children's Services and Education,Third Party Payments,Other establishments,05-Jan-23,6694264,208.26,SOLETRADER,Classified as 'personal data' (under the Data Protection Act 2018),300000020480560
Portsmouth City Council,PCC,Children's and Education Services,Early Years,Children's Services and Education,Third Party Payments,Other establishments,05-Jan-23,6694264,"1,393.74",SOLETRADER,Classified as 'personal data' (under the Data Protection Act 2018),300000020480560
Portsmouth City Council,PCC,Children's and Education Services,Early Years,Children's Services and Education,Third Party Payments,Other establishments,05-Jan-23,6694299,887.7,SOLETRADER,Classified as 'personal data' (under the Data Protection Act 2018),300000020484406
Portsmouth City Council,PCC,Children's and Education Services,Early Years,Children's Services and Education,Third Party Payments,Other establishments,05-Jan-23,6694228,99,SOLETRADER,PINK GIRAFFE CHILDCARE,300000020477728
Portsmouth City Council,PCC,Children's and Education Services,Early Years,Children's Services and Education,Third Party Payments,Other establishments,05-Jan-23,6694228,887.7,SOLETRADER,PINK GIRAFFE CHILDCARE,300000020477728
Portsmouth City Council,PCC,Children's and Education Services,Early Years,Children's Services and Education,Third Party Payments,Other establishments,05-Jan-23,6694228,"1,468.50",SOLETRADER,PINK GIRAFFE CHILDCARE,300000020477728
Portsmouth City Council,PCC,Children's and Education Services,Early Years,Children's Services and Education,Third Party Payments,Other establishments,05-Jan-23,6694228,"2,202.75",SOLETRADER,PINK GIRAFFE CHILDCARE,300000020477728
Portsmouth City Council,PCC,Children's and Education Services,Early Years,Children's Services and Education,Third Party Payments,Other establishments,05-Jan-23,6694219,19.8,PRIVATE PROVIDER,Classified as 'personal data' (under the Data Protection Act 2018),300000020476597
Portsmouth City Council,PCC,Children's and Education Services,Early Years,Children's Services and Education,Third Party Payments,Other establishments,05-Jan-23,6694219,734.25,PRIVATE PROVIDER,Classified as 'personal data' (under the Data Protection Act 2018),300000020476597
Portsmouth City Council,PCC,Children's and Education Services,Early Years,Children's Services and Education,Third Party Payments,Other establishments,05-Jan-23,6694219,887.7,PRIVATE PROVIDER,Classified as 'personal data' (under the Data Protection Act 2018),300000020476597
Portsmouth City Council,PCC,Children's and Education Services,Early Years,Children's Services and Education,Third Party Payments,Other establishments,05-Jan-23,6694219,"1,326.10",PRIVATE PROVIDER,Classified as 'personal data' (under the Data Protection Act 2018),300000020476597
Portsmouth City Council,PCC,Children's and Education Services,Early Years,Children's Services and Education,Third Party Payments,Other establishments,05-Jan-23,6694223,734.25,SOLETRADER,Classified as 'personal data' (under the Data Protection Act 2018),300000020477411
Portsmouth City Council,PCC,Children's and Education Services,Early Years,Children's Services and Education,Third Party Payments,Other establishments,05-Jan-23,6694223,734.25,SOLETRADER,Classified as 'personal data' (under the Data Protection Act 2018),300000020477411
Portsmouth City Council,PCC,Children's and Education Services,Early Years,Children's Services and Education,Third Party Payments,Other establishments,05-Jan-23,6694223,887.7,SOLETRADER,Classified as 'personal data' (under the Data Protection Act 2018),300000020477411
Portsmouth City Council,PCC,Children's and Education Services,Early Years,Children's Services and Education,Third Party Payments,Other establishments,05-Jan-23,6694304,734.25,SOLETRADER,Classified as 'personal data' (under the Data Protection Act 2018),300000020466830
Portsmouth City Council,PCC,Children's and Education Services,Early Years,Children's Services and Education,Third Party Payments,Other establishments,05-Jan-23,6694304,"1,174.80",SOLETRADER,Classified as 'personal data' (under the Data Protection Act 2018),300000020466830
Portsmouth City Council,PCC,Children's and Education Services,Early Years,Children's Services and Education,Third Party Payments,Other establishments,05-Jan-23,6694281,"2,816.85",SOLETRADER,Classified as 'personal data' (under the Data Protection Act 2018),300000020481730
Portsmouth City Council,PCC,Children's and Education Services,Early Years,Children's Services and Education,Third Party Payments,Other establishments,05-Jan-23,6694281,"2,816.85",SOLETRADER,Classified as 'personal data' (under the Data Protection Act 2018),300000020481730
Portsmouth City Council,PCC,Children's and Education Services,Early Years,Children's Services and Education,Third Party Payments,Other establishments,05-Jan-23,6694280,734.25,SOLETRADER,Classified as 'personal data' (under the Data Protection Act 2018),300000020481566
Portsmouth City Council,PCC,Children's and Education Services,Early Years,Children's Services and Education,Third Party Payments,Other establishments,05-Jan-23,6694217,734.25,SOLETRADER,Classified as 'personal data' (under the Data Protection Act 2018),300000020476409
Portsmouth City Council,PCC,Children's and Education Services,Early Years,Children's Services and Education,Third Party Payments,Other establishments,05-Jan-23,6694295,808.5,SUPPLIER,ACADEMY TRUST (UNIVERSITY OF CHICHESTER),300000020484342
Portsmouth City Council,PCC,Children's and Education Services,Early Years,Children's Services and Education,Third Party Payments,Other establishments,05-Jan-23,6694295,887.7,SUPPLIER,ACADEMY TRUST (UNIVERSITY OF CHICHESTER),300000020484342
Portsmouth City Council,PCC,Children's and Education Services,Early Years,Children's Services and Education,Third Party Payments,Other establishments,05-Jan-23,6694295,"2,574.00",SUPPLIER,ACADEMY TRUST (UNIVERSITY OF CHICHESTER),300000020484342
Portsmouth City Council,PCC,Children's and Education Services,Early Years,Children's Services and Education,Third Party Payments,Other establishments,05-Jan-23,6694295,"50,127.00",SUPPLIER,ACADEMY TRUST (UNIVERSITY OF CHICHESTER),300000020484342
Portsmouth City Council,PCC,Children's and Education Services,Early Years,Children's Services and Education,Third Party Payments,Other establishments,05-Jan-23,6694296,"1,287.00",SUPPLIER,ACADEMY TRUST (UNIVERSITY OF CHICHESTER),300000020484342
Portsmouth City Council,PCC,Children's and Education Services,Early Years,Children's Services and Education,Third Party Payments,Other establishments,05-Jan-23,6694296,"7,101.60",SUPPLIER,ACADEMY TRUST (UNIVERSITY OF CHICHESTER),300000020484342
Portsmouth City Council,PCC,Children's and Education Services,Early Years,Children's Services and Education,Third Party Payments,Other establishments,05-Jan-23,6694296,"29,106.00",SUPPLIER,ACADEMY TRUST (UNIVERSITY OF CHICHESTER),300000020484342
Portsmouth City Council,PCC,Children's and Education Services,Early Years,Children's Services and Education,Third Party Payments,Other establishments,05-Jan-23,6694297,"1,273.80",SUPPLIER,ACADEMY TRUST (UNIVERSITY OF CHICHESTER),300000020484342
Portsmouth City Council,PCC,Children's and Education Services,Early Years,Children's Services and Education,Third Party Payments,Other establishments,05-Jan-23,6694297,"6,805.70",SUPPLIER,ACADEMY TRUST (UNIVERSITY OF CHICHESTER),300000020484342
Portsmouth City Council,PCC,Children's and Education Services,Early Years,Children's Services and Education,Third Party Payments,Other establishments,05-Jan-23,6694297,"11,404.14",SUPPLIER,ACADEMY TRUST (UNIVERSITY OF CHICHESTER),300000020484342
Portsmouth City Council,PCC,Children's and Education Services,Early Years,Children's Services and Education,Third Party Payments,Other establishments,05-Jan-23,6694297,"33,441.87",SUPPLIER,ACADEMY TRUST (UNIVERSITY OF CHICHESTER),300000020484342
Portsmouth City Council,PCC,Children's and Education Services,Early Years,Children's Services and Education,Third Party Payments,Other establishments,05-Jan-23,6694415,"1,089.00",TRUST,Academy Trust - University of Portsmouth,300000316357634
Portsmouth City Council,PCC,Children's and Education Services,Early Years,Children's Services and Education,Third Party Payments,Other establishments,05-Jan-23,6694415,"33,148.50",TRUST,Academy Trust - University of Portsmouth,300000316357634
Portsmouth City Council,PCC,Children's and Education Services,Early Years,Children's Services and Education,Third Party Payments,Other establishments,05-Jan-23,6694355,639.6,SUPPLIER,ANDERSON AND BRETT LIMITED T/A ALPHABET CORNER,300000020459864
Portsmouth City Council,PCC,Children's and Education Services,Early Years,Children's Services and Education,Third Party Payments,Other establishments,05-Jan-23,6694355,"3,497.00",SUPPLIER,ANDERSON AND BRETT LIMITED T/A ALPHABET CORNER,300000020459864
Portsmouth City Council,PCC,Children's and Education Services,Early Years,Children's Services and Education,Third Party Payments,Other establishments,05-Jan-23,6694355,"14,024.01",SUPPLIER,ANDERSON AND BRETT LIMITED T/A ALPHABET CORNER,300000020459864
Portsmouth City Council,PCC,Children's and Education Services,Early Years,Children's Services and Education,Third Party Payments,Other establishments,05-Jan-23,6694355,"30,952.76",SUPPLIER,ANDERSON AND BRETT LIMITED T/A ALPHABET CORNER,300000020459864
Portsmouth City Council,PCC,Children's and Education Services,Early Years,Children's Services and Education,Third Party Payments,Other establishments,05-Jan-23,6694341,297,SUPPLIER,APPLE TREE DAY NURSERY,300000020459278
Portsmouth City Council,PCC,Children's and Education Services,Early Years,Children's Services and Education,Third Party Payments,Other establishments,05-Jan-23,6694341,"5,266.80",SUPPLIER,APPLE TREE DAY NURSERY,300000020459278
Portsmouth City Council,PCC,Children's and Education Services,Early Years,Children's Services and Education,Third Party Payments,Other establishments,05-Jan-23,6694341,"5,326.20",SUPPLIER,APPLE TREE DAY NURSERY,300000020459278
Portsmouth City Council,PCC,Children's and Education Services,Early Years,Children's Services and Education,Third Party Payments,Other establishments,05-Jan-23,6694341,"18,057.60",SUPPLIER,APPLE TREE DAY NURSERY,300000020459278
Portsmouth City Council,PCC,Children's and Education Services,Early Years,Children's Services and Education,Third Party Payments,Other establishments,05-Jan-23,6694324,"1,980.00",SUPPLIER,ARK SCHOOLS,300000020457866
Portsmouth City Council,PCC,Children's and Education Services,Early Years,Children's Services and Education,Third Party Payments,Other establishments,05-Jan-23,6694324,"4,742.10",SUPPLIER,ARK SCHOOLS,300000020457866
Portsmouth City Council,PCC,Children's and Education Services,Early Years,Children's Services and Education,Third Party Payments,Other establishments,05-Jan-23,6694324,"19,529.40",SUPPLIER,ARK SCHOOLS,300000020457866
Portsmouth City Council,PCC,Children's and Education Services,Early Years,Children's Services and Education,Third Party Payments,Other establishments,05-Jan-23,6694324,"38,727.15",SUPPLIER,ARK SCHOOLS,300000020457866
Portsmouth City Council,PCC,Children's and Education Services,Early Years,Children's Services and Education,Third Party Payments,Other establishments,05-Jan-23,6694325,"1,188.00",SUPPLIER,ARK SCHOOLS,300000020457866
Portsmouth City Council,PCC,Children's and Education Services,Early Years,Children's Services and Education,Third Party Payments,Other establishments,05-Jan-23,6694325,"36,382.50",SUPPLIER,ARK SCHOOLS,300000020457866
Portsmouth City Council,PCC,Children's and Education Services,Early Years,Children's Services and Education,Third Party Payments,Other establishments,05-Jan-23,6694232,"1,287.00",SUPPLIER,BINSTEED CHILDCARE SERVICES LTD,300000020464156
Portsmouth City Council,PCC,Children's and Education Services,Early Years,Children's Services and Education,Third Party Payments,Other establishments,05-Jan-23,6694232,"7,705.50",SUPPLIER,BINSTEED CHILDCARE SERVICES LTD,300000020464156
Portsmouth City Council,PCC,Children's and Education Services,Early Years,Children's Services and Education,Third Party Payments,Other establishments,05-Jan-23,6694232,"10,652.40",SUPPLIER,BINSTEED CHILDCARE SERVICES LTD,300000020464156
Portsmouth City Council,PCC,Children's and Education Services,Early Years,Children's Services and Education,Third Party Payments,Other establishments,05-Jan-23,6694232,"27,739.80",SUPPLIER,BINSTEED CHILDCARE SERVICES LTD,300000020464156
Portsmouth City Council,PCC,Children's and Education Services,Early Years,Children's Services and Education,Third Party Payments,Other establishments,05-Jan-23,6694356,990,SUPPLIER,BRUNEL-MEREDITH PRESCHOOL,300000020459959
Portsmouth City Council,PCC,Children's and Education Services,Early Years,Children's Services and Education,Third Party Payments,Other establishments,05-Jan-23,6694356,"7,089.06",SUPPLIER,BRUNEL-MEREDITH PRESCHOOL,300000020459959
Portsmouth City Council,PCC,Children's and Education Services,Early Years,Children's Services and Education,Third Party Payments,Other establishments,05-Jan-23,6694356,"8,877.00",SUPPLIER,BRUNEL-MEREDITH PRESCHOOL,300000020459959
Portsmouth City Council,PCC,Children's and Education Services,Early Years,Children's Services and Education,Third Party Payments,Other establishments,05-Jan-23,6694356,"28,510.35",SUPPLIER,BRUNEL-MEREDITH PRESCHOOL,300000020459959
Portsmouth City Council,PCC,Children's and Education Services,Early Years,Children's Services and Education,Third Party Payments,Other establishments,05-Jan-23,6694328,594,SUPPLIER,CAROUSEL NURSERY SCHOOL (HILSEA),300000020458059
Portsmouth City Council,PCC,Children's and Education Services,Early Years,Children's Services and Education,Third Party Payments,Other establishments,05-Jan-23,6694328,"7,042.42",SUPPLIER,CAROUSEL NURSERY SCHOOL (HILSEA),300000020458059
Portsmouth City Council,PCC,Children's and Education Services,Early Years,Children's Services and Education,Third Party Payments,Other establishments,05-Jan-23,6694328,"12,557.63",SUPPLIER,CAROUSEL NURSERY SCHOOL (HILSEA),300000020458059
Portsmouth City Council,PCC,Children's and Education Services,Early Years,Children's Services and Education,Third Party Payments,Other establishments,05-Jan-23,6694328,"28,655.12",SUPPLIER,CAROUSEL NURSERY SCHOOL (HILSEA),300000020458059
Portsmouth City Council,PCC,Children's and Education Services,Early Years,Children's Services and Education,Third Party Payments,Other establishments,05-Jan-23,6694350,297,SUPPLIER,CASTLE PRE SCHOOL LTD,300000020459724
Portsmouth City Council,PCC,Children's and Education Services,Early Years,Children's Services and Education,Third Party Payments,Other establishments,05-Jan-23,6694350,"2,663.10",SUPPLIER,CASTLE PRE SCHOOL LTD,300000020459724
Portsmouth City Council,PCC,Children's and Education Services,Early Years,Children's Services and Education,Third Party Payments,Other establishments,05-Jan-23,6694350,"3,762.00",SUPPLIER,CASTLE PRE SCHOOL LTD,300000020459724
Portsmouth City Council,PCC,Children's and Education Services,Early Years,Children's Services and Education,Third Party Payments,Other establishments,05-Jan-23,6694350,"11,185.68",SUPPLIER,CASTLE PRE SCHOOL LTD,300000020459724
Portsmouth City Council,PCC,Children's and Education Services,Early Years,Children's Services and Education,Third Party Payments,Other establishments,05-Jan-23,6694339,297,SUPPLIER,CHERUBZ DAYCARE LIMITED,300000020470397
Portsmouth City Council,PCC,Children's and Education Services,Early Years,Children's Services and Education,Third Party Payments,Other establishments,05-Jan-23,6694339,"3,120.15",SUPPLIER,CHERUBZ DAYCARE LIMITED,300000020470397
Portsmouth City Council,PCC,Children's and Education Services,Early Years,Children's Services and Education,Third Party Payments,Other establishments,05-Jan-23,6694339,"3,550.80",SUPPLIER,CHERUBZ DAYCARE LIMITED,300000020470397
Portsmouth City Council,PCC,Children's and Education Services,Early Years,Children's Services and Education,Third Party Payments,Other establishments,05-Jan-23,6694339,"9,640.33",SUPPLIER,CHERUBZ DAYCARE LIMITED,300000020470397
Portsmouth City Council,PCC,Children's and Education Services,Early Years,Children's Services and Education,Third Party Payments,Other establishments,05-Jan-23,6694312,495,SUPPLIER,CITY OF PORTSMOUTH COLLEGE,300000015963966
Portsmouth City Council,PCC,Children's and Education Services,Early Years,Children's Services and Education,Third Party Payments,Other establishments,05-Jan-23,6694312,"6,983.24",SUPPLIER,CITY OF PORTSMOUTH COLLEGE,300000015963966
Portsmouth City Council,PCC,Children's and Education Services,Early Years,Children's Services and Education,Third Party Payments,Other establishments,05-Jan-23,6694312,"11,198.20",SUPPLIER,CITY OF PORTSMOUTH COLLEGE,300000015963966
Portsmouth City Council,PCC,Children's and Education Services,Early Years,Children's Services and Education,Third Party Payments,Other establishments,05-Jan-23,6694312,"19,815.55",SUPPLIER,CITY OF PORTSMOUTH COLLEGE,300000015963966
Portsmouth City Council,PCC,Children's and Education Services,Early Years,Children's Services and Education,Third Party Payments,Other establishments,05-Jan-23,6694211,594,SUPPLIER,DISCOVERY NURSERY SCHOOL (PORTSMOUTH) LIMITED,300000020475766
Portsmouth City Council,PCC,Children's and Education Services,Early Years,Children's Services and Education,Third Party Payments,Other establishments,05-Jan-23,6694211,"1,468.50",SUPPLIER,DISCOVERY NURSERY SCHOOL (PORTSMOUTH) LIMITED,300000020475766
Portsmouth City Council,PCC,Children's and Education Services,Early Years,Children's Services and Education,Third Party Payments,Other establishments,05-Jan-23,6694211,"7,989.30",SUPPLIER,DISCOVERY NURSERY SCHOOL (PORTSMOUTH) LIMITED,300000020475766
Portsmouth City Council,PCC,Children's and Education Services,Early Years,Children's Services and Education,Third Party Payments,Other establishments,05-Jan-23,6694211,"12,139.60",SUPPLIER,DISCOVERY NURSERY SCHOOL (PORTSMOUTH) LIMITED,300000020475766
Portsmouth City Council,PCC,Children's and Education Services,Early Years,Children's Services and Education,Third Party Payments,Other establishments,05-Jan-23,6694254,99,SUPPLIER,DOLLS HOUSE NURSERY,300000020478739
Portsmouth City Council,PCC,Children's and Education Services,Early Years,Children's Services and Education,Third Party Payments,Other establishments,05-Jan-23,6694254,887.7,SUPPLIER,DOLLS HOUSE NURSERY,300000020478739
Portsmouth City Council,PCC,Children's and Education Services,Early Years,Children's Services and Education,Third Party Payments,Other establishments,05-Jan-23,6694254,"21,189.12",SUPPLIER,DOLLS HOUSE NURSERY,300000020478739
Portsmouth City Council,PCC,Children's and Education Services,Early Years,Children's Services and Education,Third Party Payments,Other establishments,05-Jan-23,6694254,"33,820.32",SUPPLIER,DOLLS HOUSE NURSERY,300000020478739
Portsmouth City Council,PCC,Children's and Education Services,Early Years,Children's Services and Education,Third Party Payments,Other establishments,05-Jan-23,6694349,99,SUPPLIER,DRAYTON DAISY CHAIN PRE SCHOOL,300000020459713
Portsmouth City Council,PCC,Children's and Education Services,Early Years,Children's Services and Education,Third Party Payments,Other establishments,05-Jan-23,6694349,887.7,SUPPLIER,DRAYTON DAISY CHAIN PRE SCHOOL,300000020459713
Portsmouth City Council,PCC,Children's and Education Services,Early Years,Children's Services and Education,Third Party Payments,Other establishments,05-Jan-23,6694349,"2,937.00",SUPPLIER,DRAYTON DAISY CHAIN PRE SCHOOL,300000020459713
Portsmouth City Council,PCC,Children's and Education Services,Early Years,Children's Services and Education,Third Party Payments,Other establishments,05-Jan-23,6694349,"6,608.25",SUPPLIER,DRAYTON DAISY CHAIN PRE SCHOOL,300000020459713
Portsmouth City Council,PCC,Children's and Education Services,Early Years,Children's Services and Education,Third Party Payments,Other establishments,05-Jan-23,6694421,495,SUPPLIER,DREAM CATCHERS CHILDCARE LTD,300000306439296
Portsmouth City Council,PCC,Children's and Education Services,Early Years,Children's Services and Education,Third Party Payments,Other establishments,05-Jan-23,6694421,"2,663.10",SUPPLIER,DREAM CATCHERS CHILDCARE LTD,300000306439296
Portsmouth City Council,PCC,Children's and Education Services,Early Years,Children's Services and Education,Third Party Payments,Other establishments,05-Jan-23,6694421,"6,755.10",SUPPLIER,DREAM CATCHERS CHILDCARE LTD,300000306439296
Portsmouth City Council,PCC,Children's and Education Services,Early Years,Children's Services and Education,Third Party Payments,Other establishments,05-Jan-23,6694421,"11,209.55",SUPPLIER,DREAM CATCHERS CHILDCARE LTD,300000306439296
Portsmouth City Council,PCC,Children's and Education Services,Early Years,Children's Services and Education,Third Party Payments,Other establishments,05-Jan-23,6694372,297,SUPPLIER,DUCKPOND LTD,300000020461230
Portsmouth City Council,PCC,Children's and Education Services,Early Years,Children's Services and Education,Third Party Payments,Other establishments,05-Jan-23,6694372,887.7,SUPPLIER,DUCKPOND LTD,300000020461230
Portsmouth City Council,PCC,Children's and Education Services,Early Years,Children's Services and Education,Third Party Payments,Other establishments,05-Jan-23,6694372,"7,342.50",SUPPLIER,DUCKPOND LTD,300000020461230
Portsmouth City Council,PCC,Children's and Education Services,Early Years,Children's Services and Education,Third Party Payments,Other establishments,05-Jan-23,6694372,"15,419.25",SUPPLIER,DUCKPOND LTD,300000020461230
Portsmouth City Council,PCC,Children's and Education Services,Early Years,Children's Services and Education,Third Party Payments,Other establishments,05-Jan-23,6694365,887.7,SUPPLIER,DYSART NURSERY,300000020460730
Portsmouth City Council,PCC,Children's and Education Services,Early Years,Children's Services and Education,Third Party Payments,Other establishments,05-Jan-23,6694365,"9,644.40",SUPPLIER,DYSART NURSERY,300000020460730
Portsmouth City Council,PCC,Children's and Education Services,Early Years,Children's Services and Education,Third Party Payments,Other establishments,05-Jan-23,6694365,"16,062.60",SUPPLIER,DYSART NURSERY,300000020460730
Portsmouth City Council,PCC,Children's and Education Services,Early Years,Children's Services and Education,Third Party Payments,Other establishments,05-Jan-23,6694330,693,SUPPLIER,E C ROBERTS CENTRE,300000020458528
Portsmouth City Council,PCC,Children's and Education Services,Early Years,Children's Services and Education,Third Party Payments,Other establishments,05-Jan-23,6694330,"10,605.38",SUPPLIER,E C ROBERTS CENTRE,300000020458528
Portsmouth City Council,PCC,Children's and Education Services,Early Years,Children's Services and Education,Third Party Payments,Other establishments,05-Jan-23,6694330,"18,531.27",SUPPLIER,E C ROBERTS CENTRE,300000020458528
Portsmouth City Council,PCC,Children's and Education Services,Early Years,Children's Services and Education,Third Party Payments,Other establishments,05-Jan-23,6694345,953.04,SUPPLIER,ELIZABETH FOUNDATION,300000020459466
Portsmouth City Council,PCC,Children's and Education Services,Early Years,Children's Services and Education,Third Party Payments,Other establishments,05-Jan-23,6694345,"2,081.64",SUPPLIER,ELIZABETH FOUNDATION,300000020459466
Portsmouth City Council,PCC,Children's and Education Services,Early Years,Children's Services and Education,Third Party Payments,Other establishments,05-Jan-23,6694362,495,SUPPLIER,FLEDGLINGS PRE SCHOOL,300000020460510
Portsmouth City Council,PCC,Children's and Education Services,Early Years,Children's Services and Education,Third Party Payments,Other establishments,05-Jan-23,6694362,"1,762.20",SUPPLIER,FLEDGLINGS PRE SCHOOL,300000020460510
Portsmouth City Council,PCC,Children's and Education Services,Early Years,Children's Services and Education,Third Party Payments,Other establishments,05-Jan-23,6694362,"6,213.90",SUPPLIER,FLEDGLINGS PRE SCHOOL,300000020460510
Portsmouth City Council,PCC,Children's and Education Services,Early Years,Children's Services and Education,Third Party Payments,Other establishments,05-Jan-23,6694362,"16,887.75",SUPPLIER,FLEDGLINGS PRE SCHOOL,300000020460510
Portsmouth City Council,PCC,Children's and Education Services,Early Years,Children's Services and Education,Third Party Payments,Other establishments,05-Jan-23,6694371,"12,339.36",SUPPLIER,GIRLS DAY SCHOOL TRUST T/AS PORTSMOUTH HIGH SCHOOL,300000020461223
Portsmouth City Council,PCC,Children's and Education Services,Early Years,Children's Services and Education,Third Party Payments,Other establishments,05-Jan-23,6694214,"5,130.80",SUPPLIER,GOOD MANORS DAY NURSERY,300000020476261
Portsmouth City Council,PCC,Children's and Education Services,Early Years,Children's Services and Education,Third Party Payments,Other establishments,05-Jan-23,6694214,"12,451.20",SUPPLIER,GOOD MANORS DAY NURSERY,300000020476261
Portsmouth City Council,PCC,Children's and Education Services,Early Years,Children's Services and Education,Third Party Payments,Other establishments,05-Jan-23,6694214,"19,614.56",SUPPLIER,GOOD MANORS DAY NURSERY,300000020476261
Portsmouth City Council,PCC,Children's and Education Services,Early Years,Children's Services and Education,Third Party Payments,Other establishments,05-Jan-23,6694385,594,SUPPLIER,JACK & JILL PRE-SCHOOL,300000020461807
Portsmouth City Council,PCC,Children's and Education Services,Early Years,Children's Services and Education,Third Party Payments,Other establishments,05-Jan-23,6694385,956.3,SUPPLIER,JACK & JILL PRE-SCHOOL,300000020461807
Portsmouth City Council,PCC,Children's and Education Services,Early Years,Children's Services and Education,Third Party Payments,Other establishments,05-Jan-23,6694385,"5,690.45",SUPPLIER,JACK & JILL PRE-SCHOOL,300000020461807
Portsmouth City Council,PCC,Children's and Education Services,Early Years,Children's Services and Education,Third Party Payments,Other establishments,05-Jan-23,6694385,"16,520.63",SUPPLIER,JACK & JILL PRE-SCHOOL,300000020461807
Portsmouth City Council,PCC,Children's and Education Services,Early Years,Children's Services and Education,Third Party Payments,Other establishments,05-Jan-23,6694416,495,PRIVATE PROVIDER,Sparkle Lodge Early Years,300000198558659
Portsmouth City Council,PCC,Children's and Education Services,Early Years,Children's Services and Education,Third Party Payments,Other establishments,05-Jan-23,6694416,"2,839.12",PRIVATE PROVIDER,Sparkle Lodge Early Years,300000198558659
Portsmouth City Council,PCC,Children's and Education Services,Early Years,Children's Services and Education,Third Party Payments,Other establishments,05-Jan-23,6694416,"3,550.80",PRIVATE PROVIDER,Sparkle Lodge Early Years,300000198558659
Portsmouth City Council,PCC,Children's and Education Services,Early Years,Children's Services and Education,Third Party Payments,Other establishments,05-Jan-23,6694416,"10,132.65",PRIVATE PROVIDER,Sparkle Lodge Early Years,300000198558659
Portsmouth City Council,PCC,Children's and Education Services,Early Years,Children's Services and Education,Third Party Payments,Other establishments,05-Jan-23,6694229,594,SUPPLIER,LITTLE BEARS FOREST PRE SCHOOL LTD,300000020477805
Portsmouth City Council,PCC,Children's and Education Services,Early Years,Children's Services and Education,Third Party Payments,Other establishments,05-Jan-23,6694229,"5,016.00",SUPPLIER,LITTLE BEARS FOREST PRE SCHOOL LTD,300000020477805
Portsmouth City Council,PCC,Children's and Education Services,Early Years,Children's Services and Education,Third Party Payments,Other establishments,05-Jan-23,6694229,"15,800.40",SUPPLIER,LITTLE BEARS FOREST PRE SCHOOL LTD,300000020477805
Portsmouth City Council,PCC,Children's and Education Services,Early Years,Children's Services and Education,Third Party Payments,Other establishments,05-Jan-23,6694379,594,SUPPLIER,LITTLE LAMBS NURSERY,300000020472621
Portsmouth City Council,PCC,Children's and Education Services,Early Years,Children's Services and Education,Third Party Payments,Other establishments,05-Jan-23,6694379,"2,663.10",SUPPLIER,LITTLE LAMBS NURSERY,300000020472621
Portsmouth City Council,PCC,Children's and Education Services,Early Years,Children's Services and Education,Third Party Payments,Other establishments,05-Jan-23,6694379,"4,213.44",SUPPLIER,LITTLE LAMBS NURSERY,300000020472621
Portsmouth City Council,PCC,Children's and Education Services,Early Years,Children's Services and Education,Third Party Payments,Other establishments,05-Jan-23,6694379,"14,295.60",SUPPLIER,LITTLE LAMBS NURSERY,300000020472621
Portsmouth City Council,PCC,Children's and Education Services,Early Years,Children's Services and Education,Third Party Payments,Other establishments,05-Jan-23,6694400,686.4,SUPPLIER,LITTLE LEARNERS DAYCARE LIMITED,300000020463552
Portsmouth City Council,PCC,Children's and Education Services,Early Years,Children's Services and Education,Third Party Payments,Other establishments,05-Jan-23,6694400,"2,308.02",SUPPLIER,LITTLE LEARNERS DAYCARE LIMITED,300000020463552
Portsmouth City Council,PCC,Children's and Education Services,Early Years,Children's Services and Education,Third Party Payments,Other establishments,05-Jan-23,6694400,"19,116.89",SUPPLIER,LITTLE LEARNERS DAYCARE LIMITED,300000020463552
Portsmouth City Council,PCC,Children's and Education Services,Early Years,Children's Services and Education,Third Party Payments,Other establishments,05-Jan-23,6694400,"29,640.52",SUPPLIER,LITTLE LEARNERS DAYCARE LIMITED,300000020463552
Portsmouth City Council,PCC,Children's and Education Services,Early Years,Children's Services and Education,Third Party Payments,Other establishments,05-Jan-23,6694353,495,SUPPLIER,LITTLE SPINNAKERS PRE-SCHOOL,300000020459851
Portsmouth City Council,PCC,Children's and Education Services,Early Years,Children's Services and Education,Third Party Payments,Other establishments,05-Jan-23,6694353,"3,550.80",SUPPLIER,LITTLE SPINNAKERS PRE-SCHOOL,300000020459851
Portsmouth City Council,PCC,Children's and Education Services,Early Years,Children's Services and Education,Third Party Payments,Other establishments,05-Jan-23,6694353,"7,524.00",SUPPLIER,LITTLE SPINNAKERS PRE-SCHOOL,300000020459851
Portsmouth City Council,PCC,Children's and Education Services,Early Years,Children's Services and Education,Third Party Payments,Other establishments,05-Jan-23,6694353,"20,314.80",SUPPLIER,LITTLE SPINNAKERS PRE-SCHOOL,300000020459851
Portsmouth City Council,PCC,Children's and Education Services,Early Years,Children's Services and Education,Third Party Payments,Other establishments,05-Jan-23,6694322,475.2,SUPPLIER,LITTLE STARS PRE SCHOOL,300000020457319
Portsmouth City Council,PCC,Children's and Education Services,Early Years,Children's Services and Education,Third Party Payments,Other establishments,05-Jan-23,6694322,"2,840.64",SUPPLIER,LITTLE STARS PRE SCHOOL,300000020457319
Portsmouth City Council,PCC,Children's and Education Services,Early Years,Children's Services and Education,Third Party Payments,Other establishments,05-Jan-23,6694322,"3,611.52",SUPPLIER,LITTLE STARS PRE SCHOOL,300000020457319
Portsmouth City Council,PCC,Children's and Education Services,Early Years,Children's Services and Education,Third Party Payments,Other establishments,05-Jan-23,6694322,"15,374.04",SUPPLIER,LITTLE STARS PRE SCHOOL,300000020457319
Portsmouth City Council,PCC,Children's and Education Services,Early Years,Children's Services and Education,Third Party Payments,Other establishments,05-Jan-23,6694357,574.2,SUPPLIER,LITTLE SUNBEAMS PRE SCHOOL,300000020460134
Portsmouth City Council,PCC,Children's and Education Services,Early Years,Children's Services and Education,Third Party Payments,Other establishments,05-Jan-23,6694357,902.88,SUPPLIER,LITTLE SUNBEAMS PRE SCHOOL,300000020460134
Portsmouth City Council,PCC,Children's and Education Services,Early Years,Children's Services and Education,Third Party Payments,Other establishments,05-Jan-23,6694357,"3,728.34",SUPPLIER,LITTLE SUNBEAMS PRE SCHOOL,300000020460134
Portsmouth City Council,PCC,Children's and Education Services,Early Years,Children's Services and Education,Third Party Payments,Other establishments,05-Jan-23,6694357,"21,970.08",SUPPLIER,LITTLE SUNBEAMS PRE SCHOOL,300000020460134
Portsmouth City Council,PCC,Children's and Education Services,Early Years,Children's Services and Education,Third Party Payments,Other establishments,05-Jan-23,6694368,198,SUPPLIER,MAYVILLE HIGH SCHOOL,300000020460898
Portsmouth City Council,PCC,Children's and Education Services,Early Years,Children's Services and Education,Third Party Payments,Other establishments,05-Jan-23,6694368,"1,775.40",SUPPLIER,MAYVILLE HIGH SCHOOL,300000020460898
Portsmouth City Council,PCC,Children's and Education Services,Early Years,Children's Services and Education,Third Party Payments,Other establishments,05-Jan-23,6694368,"15,419.25",SUPPLIER,MAYVILLE HIGH SCHOOL,300000020460898
Portsmouth City Council,PCC,Children's and Education Services,Early Years,Children's Services and Education,Third Party Payments,Other establishments,05-Jan-23,6694368,"27,901.50",SUPPLIER,MAYVILLE HIGH SCHOOL,300000020460898
Portsmouth City Council,PCC,Children's and Education Services,Early Years,Children's Services and Education,Third Party Payments,Other establishments,05-Jan-23,6694369,"1,161.60",SUPPLIER,MILTON PARK PRE SCHOOL,300000020460904
Portsmouth City Council,PCC,Children's and Education Services,Early Years,Children's Services and Education,Third Party Payments,Other establishments,05-Jan-23,6694369,"4,062.96",SUPPLIER,MILTON PARK PRE SCHOOL,300000020460904
Portsmouth City Council,PCC,Children's and Education Services,Early Years,Children's Services and Education,Third Party Payments,Other establishments,05-Jan-23,6694369,"6,509.80",SUPPLIER,MILTON PARK PRE SCHOOL,300000020460904
Portsmouth City Council,PCC,Children's and Education Services,Early Years,Children's Services and Education,Third Party Payments,Other establishments,05-Jan-23,6694369,"24,227.28",SUPPLIER,MILTON PARK PRE SCHOOL,300000020460904
Portsmouth City Council,PCC,Children's and Education Services,Early Years,Children's Services and Education,Third Party Payments,Other establishments,05-Jan-23,6694395,792,SUPPLIER,MONEYFIELDS PRE -SCHOOL,300000020463403
Portsmouth City Council,PCC,Children's and Education Services,Early Years,Children's Services and Education,Third Party Payments,Other establishments,05-Jan-23,6694395,"5,326.20",SUPPLIER,MONEYFIELDS PRE -SCHOOL,300000020463403
Portsmouth City Council,PCC,Children's and Education Services,Early Years,Children's Services and Education,Third Party Payments,Other establishments,05-Jan-23,6694395,"7,342.50",SUPPLIER,MONEYFIELDS PRE -SCHOOL,300000020463403
Portsmouth City Council,PCC,Children's and Education Services,Early Years,Children's Services and Education,Third Party Payments,Other establishments,05-Jan-23,6694395,"26,433.00",SUPPLIER,MONEYFIELDS PRE -SCHOOL,300000020463403
Portsmouth City Council,PCC,Children's and Education Services,Early Years,Children's Services and Education,Third Party Payments,Other establishments,05-Jan-23,6694396,440.55,SUPPLIER,NAVAL UNDER FIVES (EASTERN AREA),300000020463429
Portsmouth City Council,PCC,Children's and Education Services,Early Years,Children's Services and Education,Third Party Payments,Other establishments,05-Jan-23,6694396,734.25,SUPPLIER,NAVAL UNDER FIVES (EASTERN AREA),300000020463429
Portsmouth City Council,PCC,Children's and Education Services,Early Years,Children's Services and Education,Third Party Payments,Other establishments,05-Jan-23,6694396,"2,663.10",SUPPLIER,NAVAL UNDER FIVES (EASTERN AREA),300000020463429
Portsmouth City Council,PCC,Children's and Education Services,Early Years,Children's Services and Education,Third Party Payments,Other establishments,05-Jan-23,6694396,99,SUPPLIER,NAVAL UNDER FIVES (EASTERN AREA),300000020463429
Portsmouth City Council,PCC,Children's and Education Services,Early Years,Children's Services and Education,Third Party Payments,Other establishments,05-Jan-23,6694396,"1,775.40",SUPPLIER,NAVAL UNDER FIVES (EASTERN AREA),300000020463429
Portsmouth City Council,PCC,Children's and Education Services,Early Years,Children's Services and Education,Third Party Payments,Other establishments,05-Jan-23,6694396,"2,257.20",SUPPLIER,NAVAL UNDER FIVES (EASTERN AREA),300000020463429
Portsmouth City Council,PCC,Children's and Education Services,Early Years,Children's Services and Education,Third Party Payments,Other establishments,05-Jan-23,6694396,"3,762.00",SUPPLIER,NAVAL UNDER FIVES (EASTERN AREA),300000020463429
Portsmouth City Council,PCC,Children's and Education Services,Early Years,Children's Services and Education,Third Party Payments,Other establishments,05-Jan-23,6694398,99,SUPPLIER,PORTSMOUTH GRAMMAR SCHOOL,300000020463490
Portsmouth City Council,PCC,Children's and Education Services,Early Years,Children's Services and Education,Third Party Payments,Other establishments,05-Jan-23,6694398,"20,803.75",SUPPLIER,PORTSMOUTH GRAMMAR SCHOOL,300000020463490
Portsmouth City Council,PCC,Children's and Education Services,Early Years,Children's Services and Education,Third Party Payments,Other establishments,05-Jan-23,6694398,"17,622.00",SUPPLIER,PORTSMOUTH GRAMMAR SCHOOL,300000020463490
Portsmouth City Council,PCC,Children's and Education Services,Early Years,Children's Services and Education,Third Party Payments,Other establishments,05-Jan-23,6694286,158.4,SUPPLIER,SOUTHSEA NATURE NURSERY,300000020483131
Portsmouth City Council,PCC,Children's and Education Services,Early Years,Children's Services and Education,Third Party Payments,Other establishments,05-Jan-23,6694286,"1,420.32",SUPPLIER,SOUTHSEA NATURE NURSERY,300000020483131
Portsmouth City Council,PCC,Children's and Education Services,Early Years,Children's Services and Education,Third Party Payments,Other establishments,05-Jan-23,6694286,"7,048.80",SUPPLIER,SOUTHSEA NATURE NURSERY,300000020483131
Portsmouth City Council,PCC,Children's and Education Services,Early Years,Children's Services and Education,Third Party Payments,Other establishments,05-Jan-23,6694286,"20,559.00",SUPPLIER,SOUTHSEA NATURE NURSERY,300000020483131
Portsmouth City Council,PCC,Children's and Education Services,Early Years,Children's Services and Education,Third Party Payments,Other establishments,05-Jan-23,6694259,887.7,SUPPLIER,SPRINGWOOD PRE SCHOOL,300000020479453
Portsmouth City Council,PCC,Children's and Education Services,Early Years,Children's Services and Education,Third Party Payments,Other establishments,05-Jan-23,6694259,891,SUPPLIER,SPRINGWOOD PRE SCHOOL,300000020479453
Portsmouth City Council,PCC,Children's and Education Services,Early Years,Children's Services and Education,Third Party Payments,Other establishments,05-Jan-23,6694259,"5,856.18",SUPPLIER,SPRINGWOOD PRE SCHOOL,300000020479453
Portsmouth City Council,PCC,Children's and Education Services,Early Years,Children's Services and Education,Third Party Payments,Other establishments,05-Jan-23,6694259,"22,345.95",SUPPLIER,SPRINGWOOD PRE SCHOOL,300000020479453
Portsmouth City Council,PCC,Children's and Education Services,Early Years,Children's Services and Education,Third Party Payments,Other establishments,05-Jan-23,6694373,990,SUPPLIER,ST JUDES NURSERY SCHOOL,300000020461235
Portsmouth City Council,PCC,Children's and Education Services,Early Years,Children's Services and Education,Third Party Payments,Other establishments,05-Jan-23,6694373,"14,417.79",SUPPLIER,ST JUDES NURSERY SCHOOL,300000020461235
Portsmouth City Council,PCC,Children's and Education Services,Early Years,Children's Services and Education,Third Party Payments,Other establishments,05-Jan-23,6694373,"21,837.69",SUPPLIER,ST JUDES NURSERY SCHOOL,300000020461235
Portsmouth City Council,PCC,Children's and Education Services,Early Years,Children's Services and Education,Third Party Payments,Other establishments,05-Jan-23,6694373,"47,348.24",SUPPLIER,ST JUDES NURSERY SCHOOL,300000020461235
Portsmouth City Council,PCC,Children's and Education Services,Early Years,Children's Services and Education,Third Party Payments,Other establishments,05-Jan-23,6694374,396,SUPPLIER,ST NICHOLAS PRE SCHOOL,300000020461240
Portsmouth City Council,PCC,Children's and Education Services,Early Years,Children's Services and Education,Third Party Payments,Other establishments,05-Jan-23,6694374,"2,663.10",SUPPLIER,ST NICHOLAS PRE SCHOOL,300000020461240
Portsmouth City Council,PCC,Children's and Education Services,Early Years,Children's Services and Education,Third Party Payments,Other establishments,05-Jan-23,6694374,"5,216.64",SUPPLIER,ST NICHOLAS PRE SCHOOL,300000020461240
Portsmouth City Council,PCC,Children's and Education Services,Early Years,Children's Services and Education,Third Party Payments,Other establishments,05-Jan-23,6694374,"21,217.68",SUPPLIER,ST NICHOLAS PRE SCHOOL,300000020461240
Portsmouth City Council,PCC,Children's and Education Services,Early Years,Children's Services and Education,Third Party Payments,Other establishments,05-Jan-23,6694393,693,SUPPLIER,STACEY COMMUNITY ASSOCIATION,300000020463271
Portsmouth City Council,PCC,Children's and Education Services,Early Years,Children's Services and Education,Third Party Payments,Other establishments,05-Jan-23,6694393,"3,550.80",SUPPLIER,STACEY COMMUNITY ASSOCIATION,300000020463271
Portsmouth City Council,PCC,Children's and Education Services,Early Years,Children's Services and Education,Third Party Payments,Other establishments,05-Jan-23,6694393,"10,985.04",SUPPLIER,STACEY COMMUNITY ASSOCIATION,300000020463271
Portsmouth City Council,PCC,Children's and Education Services,Early Years,Children's Services and Education,Third Party Payments,Other establishments,05-Jan-23,6694393,"31,350.00",SUPPLIER,STACEY COMMUNITY ASSOCIATION,300000020463271
Portsmouth City Council,PCC,Children's and Education Services,Early Years,Children's Services and Education,Third Party Payments,Other establishments,05-Jan-23,6694394,290.4,SUPPLIER,STACEY COMMUNITY ASSOCIATION,300000020463271
Portsmouth City Council,PCC,Children's and Education Services,Early Years,Children's Services and Education,Third Party Payments,Other establishments,05-Jan-23,6694394,"2,202.75",SUPPLIER,STACEY COMMUNITY ASSOCIATION,300000020463271
Portsmouth City Council,PCC,Children's and Education Services,Early Years,Children's Services and Education,Third Party Payments,Other establishments,05-Jan-23,6694394,"2,840.64",SUPPLIER,STACEY COMMUNITY ASSOCIATION,300000020463271
Portsmouth City Council,PCC,Children's and Education Services,Early Years,Children's Services and Education,Third Party Payments,Other establishments,05-Jan-23,6694394,"15,272.40",SUPPLIER,STACEY COMMUNITY ASSOCIATION,300000020463271
Portsmouth City Council,PCC,Children's and Education Services,Early Years,Children's Services and Education,Third Party Payments,Other establishments,05-Jan-23,6694391,"9,721.44",SUPPLIER,TEDDY BEARS NURSERY SCHOOL,300000020463060
Portsmouth City Council,PCC,Children's and Education Services,Early Years,Children's Services and Education,Third Party Payments,Other establishments,05-Jan-23,6694391,"16,794.24",SUPPLIER,TEDDY BEARS NURSERY SCHOOL,300000020463060
Portsmouth City Council,PCC,Children's and Education Services,Early Years,Children's Services and Education,Third Party Payments,Other establishments,05-Jan-23,6694342,297,SUPPLIER,THE CORNER PRE-SCHOOL,300000020459342
Portsmouth City Council,PCC,Children's and Education Services,Early Years,Children's Services and Education,Third Party Payments,Other establishments,05-Jan-23,6694342,"1,775.40",SUPPLIER,THE CORNER PRE-SCHOOL,300000020459342
Portsmouth City Council,PCC,Children's and Education Services,Early Years,Children's Services and Education,Third Party Payments,Other establishments,05-Jan-23,6694342,"5,445.69",SUPPLIER,THE CORNER PRE-SCHOOL,300000020459342
Portsmouth City Council,PCC,Children's and Education Services,Early Years,Children's Services and Education,Third Party Payments,Other establishments,05-Jan-23,6694342,"18,870.23",SUPPLIER,THE CORNER PRE-SCHOOL,300000020459342
Portsmouth City Council,PCC,Children's and Education Services,Early Years,Children's Services and Education,Third Party Payments,Other establishments,05-Jan-23,6694370,"1,485.00",SUPPLIER,THE PARADE COMMUNITY PRE SCHOOL,300000020460910
Portsmouth City Council,PCC,Children's and Education Services,Early Years,Children's Services and Education,Third Party Payments,Other establishments,05-Jan-23,6694370,"9,764.70",SUPPLIER,THE PARADE COMMUNITY PRE SCHOOL,300000020460910
Portsmouth City Council,PCC,Children's and Education Services,Early Years,Children's Services and Education,Third Party Payments,Other establishments,05-Jan-23,6694370,"12,790.80",SUPPLIER,THE PARADE COMMUNITY PRE SCHOOL,300000020460910
Portsmouth City Council,PCC,Children's and Education Services,Early Years,Children's Services and Education,Third Party Payments,Other establishments,05-Jan-23,6694370,"45,896.40",SUPPLIER,THE PARADE COMMUNITY PRE SCHOOL,300000020460910
Portsmouth City Council,PCC,Children's and Education Services,Early Years,Children's Services and Education,Third Party Payments,Other establishments,05-Jan-23,6694320,693,SUPPLIER,TOP TOTS DAY NURSERY LIMITED,300000020457274
Portsmouth City Council,PCC,Children's and Education Services,Early Years,Children's Services and Education,Third Party Payments,Other establishments,05-Jan-23,6694320,"3,550.80",SUPPLIER,TOP TOTS DAY NURSERY LIMITED,300000020457274
Portsmouth City Council,PCC,Children's and Education Services,Early Years,Children's Services and Education,Third Party Payments,Other establishments,05-Jan-23,6694320,"8,811.00",SUPPLIER,TOP TOTS DAY NURSERY LIMITED,300000020457274
Portsmouth City Council,PCC,Children's and Education Services,Early Years,Children's Services and Education,Third Party Payments,Other establishments,05-Jan-23,6694320,"20,559.00",SUPPLIER,TOP TOTS DAY NURSERY LIMITED,300000020457274
Portsmouth City Council,PCC,Children's and Education Services,Early Years,Children's Services and Education,Third Party Payments,Other establishments,05-Jan-23,6694319,"1,089.00",SUPPLIER,TOP TOTS DAY NURSERY LIMITED,300000020457274
Portsmouth City Council,PCC,Children's and Education Services,Early Years,Children's Services and Education,Third Party Payments,Other establishments,05-Jan-23,6694319,"6,322.80",SUPPLIER,TOP TOTS DAY NURSERY LIMITED,300000020457274
Portsmouth City Council,PCC,Children's and Education Services,Early Years,Children's Services and Education,Third Party Payments,Other establishments,05-Jan-23,6694319,"10,652.40",SUPPLIER,TOP TOTS DAY NURSERY LIMITED,300000020457274
Portsmouth City Council,PCC,Children's and Education Services,Early Years,Children's Services and Education,Third Party Payments,Other establishments,05-Jan-23,6694319,"21,339.45",SUPPLIER,TOP TOTS DAY NURSERY LIMITED,300000020457274
Portsmouth City Council,PCC,Children's and Education Services,Early Years,Children's Services and Education,Third Party Payments,Other establishments,05-Jan-23,6694321,495,SUPPLIER,TOP TOTS DAY NURSERY LIMITED,300000020457274
Portsmouth City Council,PCC,Children's and Education Services,Early Years,Children's Services and Education,Third Party Payments,Other establishments,05-Jan-23,6694321,"6,213.90",SUPPLIER,TOP TOTS DAY NURSERY LIMITED,300000020457274
Portsmouth City Council,PCC,Children's and Education Services,Early Years,Children's Services and Education,Third Party Payments,Other establishments,05-Jan-23,6694321,"13,099.35",SUPPLIER,TOP TOTS DAY NURSERY LIMITED,300000020457274
Portsmouth City Council,PCC,Children's and Education Services,Early Years,Children's Services and Education,Third Party Payments,Other establishments,05-Jan-23,6694321,"28,510.35",SUPPLIER,TOP TOTS DAY NURSERY LIMITED,300000020457274
Portsmouth City Council,PCC,Children's and Education Services,Early Years,Children's Services and Education,Third Party Payments,Other establishments,05-Jan-23,6694318,198,SUPPLIER,TOP TOTS DAY NURSERY LIMITED,300000020457274
Portsmouth City Council,PCC,Children's and Education Services,Early Years,Children's Services and Education,Third Party Payments,Other establishments,05-Jan-23,6694318,"2,663.10",SUPPLIER,TOP TOTS DAY NURSERY LIMITED,300000020457274
Portsmouth City Council,PCC,Children's and Education Services,Early Years,Children's Services and Education,Third Party Payments,Other establishments,05-Jan-23,6694318,"7,342.50",SUPPLIER,TOP TOTS DAY NURSERY LIMITED,300000020457274
Portsmouth City Council,PCC,Children's and Education Services,Early Years,Children's Services and Education,Third Party Payments,Other establishments,05-Jan-23,6694318,"9,545.25",SUPPLIER,TOP TOTS DAY NURSERY LIMITED,300000020457274
Portsmouth City Council,PCC,Children's and Education Services,Early Years,Children's Services and Education,Third Party Payments,Other establishments,05-Jan-23,6694407,528,SUPPLIER,TOPS DAY NURSERY LIMITED,300000020463687
Portsmouth City Council,PCC,Children's and Education Services,Early Years,Children's Services and Education,Third Party Payments,Other establishments,05-Jan-23,6694407,"2,544.74",SUPPLIER,TOPS DAY NURSERY LIMITED,300000020463687
Portsmouth City Council,PCC,Children's and Education Services,Early Years,Children's Services and Education,Third Party Payments,Other establishments,05-Jan-23,6694407,"11,943.80",SUPPLIER,TOPS DAY NURSERY LIMITED,300000020463687
Portsmouth City Council,PCC,Children's and Education Services,Early Years,Children's Services and Education,Third Party Payments,Other establishments,05-Jan-23,6694407,"17,524.10",SUPPLIER,TOPS DAY NURSERY LIMITED,300000020463687
Portsmouth City Council,PCC,Children's and Education Services,Early Years,Children's Services and Education,Third Party Payments,Other establishments,05-Jan-23,6694404,666.6,SUPPLIER,TOPS DAY NURSERY LIMITED,300000020463687
Portsmouth City Council,PCC,Children's and Education Services,Early Years,Children's Services and Education,Third Party Payments,Other establishments,05-Jan-23,6694404,"7,634.22",SUPPLIER,TOPS DAY NURSERY LIMITED,300000020463687
Portsmouth City Council,PCC,Children's and Education Services,Early Years,Children's Services and Education,Third Party Payments,Other establishments,05-Jan-23,6694404,"30,402.13",SUPPLIER,TOPS DAY NURSERY LIMITED,300000020463687
Portsmouth City Council,PCC,Children's and Education Services,Early Years,Children's Services and Education,Third Party Payments,Other establishments,05-Jan-23,6694404,"42,626.21",SUPPLIER,TOPS DAY NURSERY LIMITED,300000020463687
Portsmouth City Council,PCC,Children's and Education Services,Early Years,Children's Services and Education,Third Party Payments,Other establishments,05-Jan-23,6694405,270.6,SUPPLIER,TOPS DAY NURSERY LIMITED,300000020463687
Portsmouth City Council,PCC,Children's and Education Services,Early Years,Children's Services and Education,Third Party Payments,Other establishments,05-Jan-23,6694405,"1,538.68",SUPPLIER,TOPS DAY NURSERY LIMITED,300000020463687
Portsmouth City Council,PCC,Children's and Education Services,Early Years,Children's Services and Education,Third Party Payments,Other establishments,05-Jan-23,6694405,"11,486.64",SUPPLIER,TOPS DAY NURSERY LIMITED,300000020463687
Portsmouth City Council,PCC,Children's and Education Services,Early Years,Children's Services and Education,Third Party Payments,Other establishments,05-Jan-23,6694405,"17,204.88",SUPPLIER,TOPS DAY NURSERY LIMITED,300000020463687
Portsmouth City Council,PCC,Children's and Education Services,Early Years,Children's Services and Education,Third Party Payments,Other establishments,05-Jan-23,6694406,257.4,SUPPLIER,TOPS DAY NURSERY LIMITED,300000020463687
Portsmouth City Council,PCC,Children's and Education Services,Early Years,Children's Services and Education,Third Party Payments,Other establishments,05-Jan-23,6694406,"5,740.46",SUPPLIER,TOPS DAY NURSERY LIMITED,300000020463687
Portsmouth City Council,PCC,Children's and Education Services,Early Years,Children's Services and Education,Third Party Payments,Other establishments,05-Jan-23,6694406,"9,496.30",SUPPLIER,TOPS DAY NURSERY LIMITED,300000020463687
Portsmouth City Council,PCC,Children's and Education Services,Early Years,Children's Services and Education,Third Party Payments,Other establishments,05-Jan-23,6694406,"17,083.55",SUPPLIER,TOPS DAY NURSERY LIMITED,300000020463687
Portsmouth City Council,PCC,Children's and Education Services,Early Years,Children's Services and Education,Third Party Payments,Other establishments,05-Jan-23,6694212,990,SUPPLIER,ULT TRADING COMPANY LTD,300000020476218
Portsmouth City Council,PCC,Children's and Education Services,Early Years,Children's Services and Education,Third Party Payments,Other establishments,05-Jan-23,6694212,"3,234.00",SUPPLIER,ULT TRADING COMPANY LTD,300000020476218
Portsmouth City Council,PCC,Children's and Education Services,Early Years,Children's Services and Education,Third Party Payments,Other establishments,05-Jan-23,6694212,"17,787.00",SUPPLIER,ULT TRADING COMPANY LTD,300000020476218
Portsmouth City Council,PCC,Children's and Education Services,Early Years,Children's Services and Education,Third Party Payments,Other establishments,05-Jan-23,6694213,396,SUPPLIER,ULT TRADING COMPANY LTD,300000020476218
Portsmouth City Council,PCC,Children's and Education Services,Early Years,Children's Services and Education,Third Party Payments,Other establishments,05-Jan-23,6694213,"9,702.00",SUPPLIER,ULT TRADING COMPANY LTD,300000020476218
Portsmouth City Council,PCC,Children's and Education Services,Early Years,Children's Services and Education,Third Party Payments,Other establishments,05-Jan-23,6694213,"18,422.48",SUPPLIER,ULT TRADING COMPANY LTD,300000020476218
Portsmouth City Council,PCC,Children's and Education Services,Early Years,Children's Services and Education,Third Party Payments,Other establishments,05-Jan-23,6694418,283.8,SUPPLIER,WILLOW TREE NURSERY PORTSMOUTH,300000361640780
Portsmouth City Council,PCC,Children's and Education Services,Early Years,Children's Services and Education,Third Party Payments,Other establishments,05-Jan-23,6694418,"4,911.94",SUPPLIER,WILLOW TREE NURSERY PORTSMOUTH,300000361640780
Portsmouth City Council,PCC,Children's and Education Services,Early Years,Children's Services and Education,Third Party Payments,Other establishments,05-Jan-23,6694418,"10,123.75",SUPPLIER,WILLOW TREE NURSERY PORTSMOUTH,300000361640780
Portsmouth City Council,PCC,Children's and Education Services,Early Years,Children's Services and Education,Third Party Payments,Other establishments,05-Jan-23,6694418,"16,300.35",SUPPLIER,WILLOW TREE NURSERY PORTSMOUTH,300000361640780
Portsmouth City Council,PCC,Children's and Education Services,Early Years,Children's Services and Education,Third Party Payments,Other establishments,05-Jan-23,6694301,85.8,SUPPLIER,YMCA FAIRTHORNE GROUP,300000020465120
Portsmouth City Council,PCC,Children's and Education Services,Early Years,Children's Services and Education,Third Party Payments,Other establishments,05-Jan-23,6694301,800,SUPPLIER,YMCA FAIRTHORNE GROUP,300000020465120
Portsmouth City Council,PCC,Children's and Education Services,Early Years,Children's Services and Education,Third Party Payments,Other establishments,05-Jan-23,6694301,"8,812.20",SUPPLIER,YMCA FAIRTHORNE GROUP,300000020465120
Portsmouth City Council,PCC,Children's and Education Services,Early Years,Children's Services and Education,Third Party Payments,Other establishments,05-Jan-23,6694301,"11,995.08",SUPPLIER,YMCA FAIRTHORNE GROUP,300000020465120
Portsmouth City Council,PCC,Children's and Education Services,Early Years,Children's Services and Education,Third Party Payments,Other establishments,05-Jan-23,6694215,243.13,SUPPLIER,CANOE LAKE NURSERY,300000020476277
Portsmouth City Council,PCC,Children's and Education Services,Early Years,Children's Services and Education,Third Party Payments,Other establishments,05-Jan-23,6694215,"2,261.86",SUPPLIER,CANOE LAKE NURSERY,300000020476277
Portsmouth City Council,PCC,Children's and Education Services,Early Years,Children's Services and Education,Third Party Payments,Other establishments,05-Jan-23,6694215,"9,834.48",SUPPLIER,CANOE LAKE NURSERY,300000020476277
Portsmouth City Council,PCC,Children's and Education Services,Early Years,Children's Services and Education,Third Party Payments,Other establishments,05-Jan-23,6694215,"19,097.99",SUPPLIER,CANOE LAKE NURSERY,300000020476277
Portsmouth City Council,PCC,Children's and Education Services,Early Years,Children's Services and Education,Third Party Payments,Other establishments,05-Jan-23,6694236,87.13,SUPPLIER,FARLINGTON DAY NURSERY,300000020464440
Portsmouth City Council,PCC,Children's and Education Services,Early Years,Children's Services and Education,Third Party Payments,Other establishments,05-Jan-23,6694236,"1,775.40",SUPPLIER,FARLINGTON DAY NURSERY,300000020464440
Portsmouth City Council,PCC,Children's and Education Services,Early Years,Children's Services and Education,Third Party Payments,Other establishments,05-Jan-23,6694236,"21,323.94",SUPPLIER,FARLINGTON DAY NURSERY,300000020464440
Portsmouth City Council,PCC,Children's and Education Services,Early Years,Children's Services and Education,Third Party Payments,Other establishments,05-Jan-23,6694236,"37,998.09",SUPPLIER,FARLINGTON DAY NURSERY,300000020464440
Portsmouth City Council,PCC,Children's and Education Services,Early Years,Children's Services and Education,Third Party Payments,Other establishments,05-Jan-23,6694346,629.65,SUPPLIER,HAVEN NURSERY,300000020459521
Portsmouth City Council,PCC,Children's and Education Services,Early Years,Children's Services and Education,Third Party Payments,Other establishments,05-Jan-23,6694346,"7,745.09",SUPPLIER,HAVEN NURSERY,300000020459521
Portsmouth City Council,PCC,Children's and Education Services,Early Years,Children's Services and Education,Third Party Payments,Other establishments,05-Jan-23,6694346,"8,521.92",SUPPLIER,HAVEN NURSERY,300000020459521
Portsmouth City Council,PCC,Children's and Education Services,Early Years,Children's Services and Education,Third Party Payments,Other establishments,05-Jan-23,6694346,"19,210.32",SUPPLIER,HAVEN NURSERY,300000020459521
Portsmouth City Council,PCC,Children's and Education Services,Early Years,Children's Services and Education,Third Party Payments,Other establishments,05-Jan-23,6694383,87.13,SUPPLIER,LEAPFROG NEIGHBOURHOOD NURSERY,300000020461617
Portsmouth City Council,PCC,Children's and Education Services,Early Years,Children's Services and Education,Third Party Payments,Other establishments,05-Jan-23,6694383,"18,259.69",SUPPLIER,LEAPFROG NEIGHBOURHOOD NURSERY,300000020461617
Portsmouth City Council,PCC,Children's and Education Services,Early Years,Children's Services and Education,Third Party Payments,Other establishments,05-Jan-23,6694383,"33,246.50",SUPPLIER,LEAPFROG NEIGHBOURHOOD NURSERY,300000020461617
Portsmouth City Council,PCC,Children's and Education Services,Early Years,Children's Services and Education,Third Party Payments,Other establishments,05-Jan-23,6694382,384.13,SUPPLIER,LEAPFROG NEIGHBOURHOOD NURSERY,300000020461617
Portsmouth City Council,PCC,Children's and Education Services,Early Years,Children's Services and Education,Third Party Payments,Other establishments,05-Jan-23,6694382,"2,556.63",SUPPLIER,LEAPFROG NEIGHBOURHOOD NURSERY,300000020461617
Portsmouth City Council,PCC,Children's and Education Services,Early Years,Children's Services and Education,Third Party Payments,Other establishments,05-Jan-23,6694382,"14,839.99",SUPPLIER,LEAPFROG NEIGHBOURHOOD NURSERY,300000020461617
Portsmouth City Council,PCC,Children's and Education Services,Early Years,Children's Services and Education,Third Party Payments,Other establishments,05-Jan-23,6694382,"26,877.98",SUPPLIER,LEAPFROG NEIGHBOURHOOD NURSERY,300000020461617
Portsmouth City Council,PCC,Children's and Education Services,Early Years,Children's Services and Education,Third Party Payments,Other establishments,05-Jan-23,6694287,546.5,SUPPLIER,LITTLE MINDS BIG DREAMS LIMITED,300000020483239
Portsmouth City Council,PCC,Children's and Education Services,Early Years,Children's Services and Education,Third Party Payments,Other establishments,05-Jan-23,6694287,"2,368.33",SUPPLIER,LITTLE MINDS BIG DREAMS LIMITED,300000020483239
Portsmouth City Council,PCC,Children's and Education Services,Early Years,Children's Services and Education,Third Party Payments,Other establishments,05-Jan-23,6694287,"17,275.66",SUPPLIER,LITTLE MINDS BIG DREAMS LIMITED,300000020483239
Portsmouth City Council,PCC,Children's and Education Services,Early Years,Children's Services and Education,Third Party Payments,Other establishments,05-Jan-23,6694287,"28,548.67",SUPPLIER,LITTLE MINDS BIG DREAMS LIMITED,300000020483239
Portsmouth City Council,PCC,Children's and Education Services,Early Years,Children's Services and Education,Third Party Payments,Other establishments,05-Jan-23,6694250,85.49,SUPPLIER,LITTLE PEOPLES NURSERY,300000020478574
Portsmouth City Council,PCC,Children's and Education Services,Early Years,Children's Services and Education,Third Party Payments,Other establishments,05-Jan-23,6694250,"1,533.08",SUPPLIER,LITTLE PEOPLES NURSERY,300000020478574
Portsmouth City Council,PCC,Children's and Education Services,Early Years,Children's Services and Education,Third Party Payments,Other establishments,05-Jan-23,6694250,"16,114.74",SUPPLIER,LITTLE PEOPLES NURSERY,300000020478574
Portsmouth City Council,PCC,Children's and Education Services,Early Years,Children's Services and Education,Third Party Payments,Other establishments,05-Jan-23,6694250,"25,134.81",SUPPLIER,LITTLE PEOPLES NURSERY,300000020478574
Portsmouth City Council,PCC,Children's and Education Services,Early Years,Children's Services and Education,Third Party Payments,Other establishments,05-Jan-23,6694386,855.38,SUPPLIER,LITTLE THINKERS AT NEW HORIZONS,300000020461851
Portsmouth City Council,PCC,Children's and Education Services,Early Years,Children's Services and Education,Third Party Payments,Other establishments,05-Jan-23,6694386,"11,824.38",SUPPLIER,LITTLE THINKERS AT NEW HORIZONS,300000020461851
Portsmouth City Council,PCC,Children's and Education Services,Early Years,Children's Services and Education,Third Party Payments,Other establishments,05-Jan-23,6694386,"14,744.92",SUPPLIER,LITTLE THINKERS AT NEW HORIZONS,300000020461851
Portsmouth City Council,PCC,Children's and Education Services,Early Years,Children's Services and Education,Third Party Payments,Other establishments,05-Jan-23,6694386,"32,240.65",SUPPLIER,LITTLE THINKERS AT NEW HORIZONS,300000020461851
Portsmouth City Council,PCC,Children's and Education Services,Early Years,Children's Services and Education,Third Party Payments,Other establishments,05-Jan-23,6694234,334.46,SUPPLIER,RAINBOW CORNER NURSERY SCHOOL,300000020464337
Portsmouth City Council,PCC,Children's and Education Services,Early Years,Children's Services and Education,Third Party Payments,Other establishments,05-Jan-23,6694234,"4,599.24",SUPPLIER,RAINBOW CORNER NURSERY SCHOOL,300000020464337
Portsmouth City Council,PCC,Children's and Education Services,Early Years,Children's Services and Education,Third Party Payments,Other establishments,05-Jan-23,6694234,"13,795.71",SUPPLIER,RAINBOW CORNER NURSERY SCHOOL,300000020464337
Portsmouth City Council,PCC,Children's and Education Services,Early Years,Children's Services and Education,Third Party Payments,Other establishments,05-Jan-23,6694234,"26,141.68",SUPPLIER,RAINBOW CORNER NURSERY SCHOOL,300000020464337
Portsmouth City Council,PCC,Children's and Education Services,Early Years,Children's Services and Education,Third Party Payments,Other establishments,05-Jan-23,6694289,982.13,SUPPLIER,TWINKLE COTTAGE DAY NURSERY LTD,300000020483451
Portsmouth City Council,PCC,Children's and Education Services,Early Years,Children's Services and Education,Third Party Payments,Other establishments,05-Jan-23,6694289,"1,600.00",SUPPLIER,TWINKLE COTTAGE DAY NURSERY LTD,300000020483451
Portsmouth City Council,PCC,Children's and Education Services,Early Years,Children's Services and Education,Third Party Payments,Other establishments,05-Jan-23,6694289,"13,215.64",SUPPLIER,TWINKLE COTTAGE DAY NURSERY LTD,300000020483451
Portsmouth City Council,PCC,Children's and Education Services,Early Years,Children's Services and Education,Third Party Payments,Other establishments,05-Jan-23,6694289,"19,530.75",SUPPLIER,TWINKLE COTTAGE DAY NURSERY LTD,300000020483451
Portsmouth City Council,PCC,Children's and Education Services,Early Years,Children's Services and Education,Third Party Payments,Other establishments,05-Jan-23,6694289,"31,246.19",SUPPLIER,TWINKLE COTTAGE DAY NURSERY LTD,300000020483451
Portsmouth City Council,PCC,Children's and Education Services,Early Years,Children's Services and Education,Third Party Payments,Other establishments,05-Jan-23,6694283,697.01,SUPPLIER,TWINKLE STAR DAY NURSERY & PRE SCHOOL,300000020482530
Portsmouth City Council,PCC,Children's and Education Services,Early Years,Children's Services and Education,Third Party Payments,Other establishments,05-Jan-23,6694283,"8,593.53",SUPPLIER,TWINKLE STAR DAY NURSERY & PRE SCHOOL,300000020482530
Portsmouth City Council,PCC,Children's and Education Services,Early Years,Children's Services and Education,Third Party Payments,Other establishments,05-Jan-23,6694283,"13,905.36",SUPPLIER,TWINKLE STAR DAY NURSERY & PRE SCHOOL,300000020482530
Portsmouth City Council,PCC,Children's and Education Services,Early Years,Children's Services and Education,Third Party Payments,Other establishments,05-Jan-23,6694283,"27,458.53",SUPPLIER,TWINKLE STAR DAY NURSERY & PRE SCHOOL,300000020482530
Portsmouth City Council,PCC,Children's and Education Services,Early Years,Children's Services and Education,Third Party Payments,Other establishments,05-Jan-23,6694246,629.65,SUPPLIER,WIND IN THE WILLOWS PRE SCHOOL,300000020478315
Portsmouth City Council,PCC,Children's and Education Services,Early Years,Children's Services and Education,Third Party Payments,Other establishments,05-Jan-23,6694246,"23,404.21",SUPPLIER,WIND IN THE WILLOWS PRE SCHOOL,300000020478315
Portsmouth City Council,PCC,Children's and Education Services,Early Years,Children's Services and Education,Third Party Payments,Other establishments,05-Jan-23,6694246,"32,572.09",SUPPLIER,WIND IN THE WILLOWS PRE SCHOOL,300000020478315
Portsmouth City Council,PCC,Children's and Education Services,Early Years,Children's Services and Education,Third Party Payments,Other establishments,05-Jan-23,6694367,99,SUPPLIER,BUSY BEES NURSERIES LIMITED,300000020460888
Portsmouth City Council,PCC,Children's and Education Services,Early Years,Children's Services and Education,Third Party Payments,Other establishments,05-Jan-23,6694367,"2,663.10",SUPPLIER,BUSY BEES NURSERIES LIMITED,300000020460888
Portsmouth City Council,PCC,Children's and Education Services,Early Years,Children's Services and Education,Third Party Payments,Other establishments,05-Jan-23,6694367,"8,954.04",SUPPLIER,BUSY BEES NURSERIES LIMITED,300000020460888
Portsmouth City Council,PCC,Children's and Education Services,Early Years,Children's Services and Education,Third Party Payments,Other establishments,05-Jan-23,6694367,"21,418.40",SUPPLIER,BUSY BEES NURSERIES LIMITED,300000020460888
Portsmouth City Council,PCC,Housing Revenue Account,"Rents, Rates, Taxes and Other Charges","Housing, Neighbourhood and Building Services",Premises-Related Expenditure,Rates,25-Jan-23,6697368,230,OTHER LOCAL AUTHORITY,HAVANT BOROUGH COUNCIL,300000020457057
Portsmouth City Council,PCC,Children's and Education Services,Special Schools,Children's Services and Education,Third Party Payments,Other establishments,05-Jan-23,6694369,-432,SUPPLIER,MILTON PARK PRE SCHOOL,300000020460904
Portsmouth City Council,PCC,Children's and Education Services,Safeguarding Children and Young Peoples Services,Children's Services and Education,Third Party Payments,Other establishments,04-Jan-23,6694032,47.32,SUPPLIER,SEVEN WAYS (SUPPORT) LIMITED,300000020473013
Portsmouth City Council,PCC,Children's and Education Services,Safeguarding Children and Young Peoples Services,Children's Services and Education,Third Party Payments,Other establishments,04-Jan-23,6694032,283.93,SUPPLIER,SEVEN WAYS (SUPPORT) LIMITED,300000020473013
Portsmouth City Council,PCC,Children's and Education Services,Safeguarding Children and Young Peoples Services,Children's Services and Education,Third Party Payments,Other establishments,04-Jan-23,6694032,331.25,SUPPLIER,SEVEN WAYS (SUPPORT) LIMITED,300000020473013
Portsmouth City Council,PCC,Children's and Education Services,Safeguarding Children and Young Peoples Services,Children's Services and Education,Third Party Payments,Other establishments,04-Jan-23,6694032,331.25,SUPPLIER,SEVEN WAYS (SUPPORT) LIMITED,300000020473013
Portsmouth City Council,PCC,Children's and Education Services,Safeguarding Children and Young Peoples Services,Children's Services and Education,Third Party Payments,Other establishments,04-Jan-23,6694032,331.25,SUPPLIER,SEVEN WAYS (SUPPORT) LIMITED,300000020473013
Portsmouth City Council,PCC,Children's and Education Services,Safeguarding Children and Young Peoples Services,Children's Services and Education,Third Party Payments,Other establishments,04-Jan-23,6694032,48.21,SUPPLIER,SEVEN WAYS (SUPPORT) LIMITED,300000020473013
Portsmouth City Council,PCC,Children's and Education Services,Safeguarding Children and Young Peoples Services,Children's Services and Education,Third Party Payments,Other establishments,04-Jan-23,6694032,289.29,SUPPLIER,SEVEN WAYS (SUPPORT) LIMITED,300000020473013
Portsmouth City Council,PCC,Children's and Education Services,Safeguarding Children and Young Peoples Services,Children's Services and Education,Third Party Payments,Other establishments,04-Jan-23,6694032,337.5,SUPPLIER,SEVEN WAYS (SUPPORT) LIMITED,300000020473013
Portsmouth City Council,PCC,Children's and Education Services,Safeguarding Children and Young Peoples Services,Children's Services and Education,Third Party Payments,Other establishments,04-Jan-23,6694032,337.5,SUPPLIER,SEVEN WAYS (SUPPORT) LIMITED,300000020473013
Portsmouth City Council,PCC,Children's and Education Services,Safeguarding Children and Young Peoples Services,Children's Services and Education,Third Party Payments,Other establishments,04-Jan-23,6694032,337.5,SUPPLIER,SEVEN WAYS (SUPPORT) LIMITED,300000020473013
Portsmouth City Council,PCC,Children's and Education Services,Children Looked After,Children's Services and Education,Third Party Payments,Other establishments,03-Jan-23,6693656,666,SUPPLIER,BLUE SKY FOSTERING,300000020464936
Portsmouth City Council,PCC,Children's and Education Services,Children Looked After,Children's Services and Education,Third Party Payments,Other establishments,03-Jan-23,6693656,"1,554.00",SUPPLIER,BLUE SKY FOSTERING,300000020464936
Portsmouth City Council,PCC,Children's and Education Services,Children Looked After,Children's Services and Education,Third Party Payments,Other establishments,03-Jan-23,6693656,"1,554.00",SUPPLIER,BLUE SKY FOSTERING,300000020464936
Portsmouth City Council,PCC,Children's and Education Services,Children Looked After,Children's Services and Education,Third Party Payments,Other establishments,03-Jan-23,6693656,"1,554.00",SUPPLIER,BLUE SKY FOSTERING,300000020464936
Portsmouth City Council,PCC,Children's and Education Services,Children Looked After,Children's Services and Education,Third Party Payments,Other establishments,03-Jan-23,6693656,"1,554.00",SUPPLIER,BLUE SKY FOSTERING,300000020464936
Portsmouth City Council,PCC,Children's and Education Services,Children Looked After,Children's Services and Education,Third Party Payments,Other establishments,03-Jan-23,6693656,666,SUPPLIER,BLUE SKY FOSTERING,300000020464936
Portsmouth City Council,PCC,Children's and Education Services,Children Looked After,Children's Services and Education,Third Party Payments,Other establishments,03-Jan-23,6693656,"1,554.00",SUPPLIER,BLUE SKY FOSTERING,300000020464936
Portsmouth City Council,PCC,Children's and Education Services,Children Looked After,Children's Services and Education,Third Party Payments,Other establishments,03-Jan-23,6693656,"1,554.00",SUPPLIER,BLUE SKY FOSTERING,300000020464936
Portsmouth City Council,PCC,Children's and Education Services,Children Looked After,Children's Services and Education,Third Party Payments,Other establishments,03-Jan-23,6693656,"1,554.00",SUPPLIER,BLUE SKY FOSTERING,300000020464936
Portsmouth City Council,PCC,Children's and Education Services,Children Looked After,Children's Services and Education,Third Party Payments,Other establishments,03-Jan-23,6693656,"1,554.00",SUPPLIER,BLUE SKY FOSTERING,300000020464936
Portsmouth City Council,PCC,Children's and Education Services,Children Looked After,Children's Services and Education,Third Party Payments,Other establishments,03-Jan-23,6693649,353.43,SUPPLIER,CORE ASSETS GROUP,300000020461175
Portsmouth City Council,PCC,Children's and Education Services,Children Looked After,Children's Services and Education,Third Party Payments,Other establishments,03-Jan-23,6693649,824.67,SUPPLIER,CORE ASSETS GROUP,300000020461175
Portsmouth City Council,PCC,Children's and Education Services,Children Looked After,Children's Services and Education,Third Party Payments,Other establishments,03-Jan-23,6693649,824.67,SUPPLIER,CORE ASSETS GROUP,300000020461175
Portsmouth City Council,PCC,Children's and Education Services,Children Looked After,Children's Services and Education,Third Party Payments,Other establishments,03-Jan-23,6693649,824.67,SUPPLIER,CORE ASSETS GROUP,300000020461175
Portsmouth City Council,PCC,Children's and Education Services,Children Looked After,Children's Services and Education,Third Party Payments,Other establishments,03-Jan-23,6693649,824.67,SUPPLIER,CORE ASSETS GROUP,300000020461175
Portsmouth City Council,PCC,Children's and Education Services,Safeguarding Children and Young Peoples Services,Children's Services and Education,Third Party Payments,Other establishments,03-Jan-23,6693649,301.05,SUPPLIER,CORE ASSETS GROUP,300000020461175
Portsmouth City Council,PCC,Children's and Education Services,Safeguarding Children and Young Peoples Services,Children's Services and Education,Third Party Payments,Other establishments,03-Jan-23,6693649,702.45,SUPPLIER,CORE ASSETS GROUP,300000020461175
Portsmouth City Council,PCC,Children's and Education Services,Safeguarding Children and Young Peoples Services,Children's Services and Education,Third Party Payments,Other establishments,03-Jan-23,6693649,702.45,SUPPLIER,CORE ASSETS GROUP,300000020461175
Portsmouth City Council,PCC,Children's and Education Services,Safeguarding Children and Young Peoples Services,Children's Services and Education,Third Party Payments,Other establishments,03-Jan-23,6693649,702.45,SUPPLIER,CORE ASSETS GROUP,300000020461175
Portsmouth City Council,PCC,Children's and Education Services,Safeguarding Children and Young Peoples Services,Children's Services and Education,Third Party Payments,Other establishments,03-Jan-23,6693649,702.45,SUPPLIER,CORE ASSETS GROUP,300000020461175
Portsmouth City Council,PCC,Children's and Education Services,Children Looked After,Children's Services and Education,Third Party Payments,Other establishments,03-Jan-23,6693674,556.29,SUPPLIER,INTEGRATED SERVICES PROGRAMME,300000020478172
Portsmouth City Council,PCC,Children's and Education Services,Children Looked After,Children's Services and Education,Third Party Payments,Other establishments,03-Jan-23,6693674,"1,298.01",SUPPLIER,INTEGRATED SERVICES PROGRAMME,300000020478172
Portsmouth City Council,PCC,Children's and Education Services,Children Looked After,Children's Services and Education,Third Party Payments,Other establishments,03-Jan-23,6693674,"1,298.01",SUPPLIER,INTEGRATED SERVICES PROGRAMME,300000020478172
Portsmouth City Council,PCC,Children's and Education Services,Children Looked After,Children's Services and Education,Third Party Payments,Other establishments,03-Jan-23,6693674,"1,298.01",SUPPLIER,INTEGRATED SERVICES PROGRAMME,300000020478172
Portsmouth City Council,PCC,Children's and Education Services,Children Looked After,Children's Services and Education,Third Party Payments,Other establishments,03-Jan-23,6693674,"1,298.01",SUPPLIER,INTEGRATED SERVICES PROGRAMME,300000020478172
Portsmouth City Council,PCC,Children's and Education Services,Safeguarding Children and Young Peoples Services,Children's Services and Education,Third Party Payments,Other establishments,03-Jan-23,6693686,413.72,SUPPLIER,COMPASS COMMUNITY LIMITED,300000020462668
Portsmouth City Council,PCC,Children's and Education Services,Safeguarding Children and Young Peoples Services,Children's Services and Education,Third Party Payments,Other establishments,03-Jan-23,6693686,517.15,SUPPLIER,COMPASS COMMUNITY LIMITED,300000020462668
Portsmouth City Council,PCC,Children's and Education Services,Safeguarding Children and Young Peoples Services,Children's Services and Education,Third Party Payments,Other establishments,03-Jan-23,6693686,724.01,SUPPLIER,COMPASS COMMUNITY LIMITED,300000020462668
Portsmouth City Council,PCC,Children's and Education Services,Safeguarding Children and Young Peoples Services,Children's Services and Education,Third Party Payments,Other establishments,03-Jan-23,6693686,724.01,SUPPLIER,COMPASS COMMUNITY LIMITED,300000020462668
Portsmouth City Council,PCC,Children's and Education Services,Safeguarding Children and Young Peoples Services,Children's Services and Education,Third Party Payments,Other establishments,03-Jan-23,6693686,724.01,SUPPLIER,COMPASS COMMUNITY LIMITED,300000020462668
Portsmouth City Council,PCC,Children's and Education Services,Asylum seekers,Children's Services and Education,Third Party Payments,Other establishments,03-Jan-23,6693685,456.72,SUPPLIER,COMPASS COMMUNITY LIMITED,300000020462668
Portsmouth City Council,PCC,Children's and Education Services,Asylum seekers,Children's Services and Education,Third Party Payments,Other establishments,03-Jan-23,6693685,570.9,SUPPLIER,COMPASS COMMUNITY LIMITED,300000020462668
Portsmouth City Council,PCC,Children's and Education Services,Asylum seekers,Children's Services and Education,Third Party Payments,Other establishments,03-Jan-23,6693685,799.26,SUPPLIER,COMPASS COMMUNITY LIMITED,300000020462668
Portsmouth City Council,PCC,Children's and Education Services,Asylum seekers,Children's Services and Education,Third Party Payments,Other establishments,03-Jan-23,6693685,799.26,SUPPLIER,COMPASS COMMUNITY LIMITED,300000020462668
Portsmouth City Council,PCC,Children's and Education Services,Asylum seekers,Children's Services and Education,Third Party Payments,Other establishments,03-Jan-23,6693685,799.26,SUPPLIER,COMPASS COMMUNITY LIMITED,300000020462668
Portsmouth City Council,PCC,Housing Services,Private Sector Housing Renewal,"Housing, Neighbourhood and Building Services",Income,Other grants reimbursements and contributions,05-Jan-23,6694411,"-1,171.35",LIMITED COMPANY,CONCEPT DESIGN SOLUTIONS LTD,300000118164776
Portsmouth City Council,PCC,Other,Suspense and Capital Schemes,Capital - Housing General Fund,Capital Charges,REFCUS,05-Jan-23,6694411,"1,405.62",LIMITED COMPANY,CONCEPT DESIGN SOLUTIONS LTD,300000118164776
Portsmouth City Council,PCC,Other,Suspense and Capital Schemes,Capital - Housing General Fund,Capital Charges,REFCUS,05-Jan-23,6694411,"7,809.00",LIMITED COMPANY,CONCEPT DESIGN SOLUTIONS LTD,300000118164776
Portsmouth City Council,PCC,Children's and Education Services,Early Years,Children's Services and Education,Third Party Payments,Other establishments,05-Jan-23,6694272,594,SUPPLIER,THE THINKING SCHOOLS TRUST,300000020481073
Portsmouth City Council,PCC,Children's and Education Services,Early Years,Children's Services and Education,Third Party Payments,Other establishments,05-Jan-23,6694272,"1,580.70",SUPPLIER,THE THINKING SCHOOLS TRUST,300000020481073
Portsmouth City Council,PCC,Children's and Education Services,Early Years,Children's Services and Education,Third Party Payments,Other establishments,05-Jan-23,6694272,"7,101.60",SUPPLIER,THE THINKING SCHOOLS TRUST,300000020481073
Portsmouth City Council,PCC,Children's and Education Services,Early Years,Children's Services and Education,Third Party Payments,Other establishments,05-Jan-23,6694272,"21,971.73",SUPPLIER,THE THINKING SCHOOLS TRUST,300000020481073
Portsmouth City Council,PCC,Housing Services,Private Sector Housing Renewal,"Housing, Neighbourhood and Building Services",Income,Other grants reimbursements and contributions,03-Jan-23,6693642,-350,LIMITED COMPANY,LIFTECH SYSTEMS (SE) LIMITED,300000020461913
Portsmouth City Council,PCC,Other,Suspense and Capital Schemes,Capital - Housing General Fund,Capital Charges,REFCUS,03-Jan-23,6693642,420,LIMITED COMPANY,LIFTECH SYSTEMS (SE) LIMITED,300000020461913
Portsmouth City Council,PCC,Other,Suspense and Capital Schemes,Capital - Housing General Fund,Capital Charges,REFCUS,03-Jan-23,6693642,"2,100.00",LIMITED COMPANY,LIFTECH SYSTEMS (SE) LIMITED,300000020461913
Portsmouth City Council,PCC,Housing Services,Private Sector Housing Renewal,"Housing, Neighbourhood and Building Services",Income,Other grants reimbursements and contributions,10-Jan-23,6694801,"-1,153.80",SUPPLIER,D&T BATHROOMS LTD,300000020476584
Portsmouth City Council,PCC,Other,Suspense and Capital Schemes,Capital - Housing General Fund,Capital Charges,REFCUS,10-Jan-23,6694801,"1,384.56",SUPPLIER,D&T BATHROOMS LTD,300000020476584
Portsmouth City Council,PCC,Other,Suspense and Capital Schemes,Capital - Housing General Fund,Capital Charges,REFCUS,10-Jan-23,6694801,"7,692.00",SUPPLIER,D&T BATHROOMS LTD,300000020476584
Portsmouth City Council,PCC,Children's and Education Services,Children Looked After,Children's Services and Education,Third Party Payments,Other establishments,03-Jan-23,6693656,-0.27,SUPPLIER,BLUE SKY FOSTERING,300000020464936
Portsmouth City Council,PCC,Children's and Education Services,Children Looked After,Children's Services and Education,Third Party Payments,Other establishments,03-Jan-23,6693656,331.29,SUPPLIER,BLUE SKY FOSTERING,300000020464936
Portsmouth City Council,PCC,Children's and Education Services,Children Looked After,Children's Services and Education,Third Party Payments,Other establishments,03-Jan-23,6693656,773,SUPPLIER,BLUE SKY FOSTERING,300000020464936
Portsmouth City Council,PCC,Children's and Education Services,Children Looked After,Children's Services and Education,Third Party Payments,Other establishments,03-Jan-23,6693656,773,SUPPLIER,BLUE SKY FOSTERING,300000020464936
Portsmouth City Council,PCC,Children's and Education Services,Children Looked After,Children's Services and Education,Third Party Payments,Other establishments,03-Jan-23,6693656,773,SUPPLIER,BLUE SKY FOSTERING,300000020464936
Portsmouth City Council,PCC,Children's and Education Services,Children Looked After,Children's Services and Education,Third Party Payments,Other establishments,03-Jan-23,6693656,773,SUPPLIER,BLUE SKY FOSTERING,300000020464936
Portsmouth City Council,PCC,Children's and Education Services,Children Looked After,Children's Services and Education,Third Party Payments,Other establishments,03-Jan-23,6693656,-0.27,SUPPLIER,BLUE SKY FOSTERING,300000020464936
Portsmouth City Council,PCC,Children's and Education Services,Children Looked After,Children's Services and Education,Third Party Payments,Other establishments,03-Jan-23,6693656,331.29,SUPPLIER,BLUE SKY FOSTERING,300000020464936
Portsmouth City Council,PCC,Children's and Education Services,Children Looked After,Children's Services and Education,Third Party Payments,Other establishments,03-Jan-23,6693656,773,SUPPLIER,BLUE SKY FOSTERING,300000020464936
Portsmouth City Council,PCC,Children's and Education Services,Children Looked After,Children's Services and Education,Third Party Payments,Other establishments,03-Jan-23,6693656,773,SUPPLIER,BLUE SKY FOSTERING,300000020464936
Portsmouth City Council,PCC,Children's and Education Services,Children Looked After,Children's Services and Education,Third Party Payments,Other establishments,03-Jan-23,6693656,773,SUPPLIER,BLUE SKY FOSTERING,300000020464936
Portsmouth City Council,PCC,Children's and Education Services,Children Looked After,Children's Services and Education,Third Party Payments,Other establishments,03-Jan-23,6693656,773,SUPPLIER,BLUE SKY FOSTERING,300000020464936
Portsmouth City Council,PCC,Children's and Education Services,Children Looked After,Children's Services and Education,Third Party Payments,Other establishments,03-Jan-23,6693694,0.09,SUPPLIER,COMPASS COMMUNITY LIMITED,300000020462668
Portsmouth City Council,PCC,Children's and Education Services,Children Looked After,Children's Services and Education,Third Party Payments,Other establishments,03-Jan-23,6693694,428.57,SUPPLIER,COMPASS COMMUNITY LIMITED,300000020462668
Portsmouth City Council,PCC,Children's and Education Services,Children Looked After,Children's Services and Education,Third Party Payments,Other establishments,03-Jan-23,6693694,"1,000.00",SUPPLIER,COMPASS COMMUNITY LIMITED,300000020462668
Portsmouth City Council,PCC,Children's and Education Services,Children Looked After,Children's Services and Education,Third Party Payments,Other establishments,03-Jan-23,6693694,"1,000.00",SUPPLIER,COMPASS COMMUNITY LIMITED,300000020462668
Portsmouth City Council,PCC,Children's and Education Services,Children Looked After,Children's Services and Education,Third Party Payments,Other establishments,03-Jan-23,6693694,"1,000.00",SUPPLIER,COMPASS COMMUNITY LIMITED,300000020462668
Portsmouth City Council,PCC,Children's and Education Services,Children Looked After,Children's Services and Education,Third Party Payments,Other establishments,03-Jan-23,6693694,"1,000.00",SUPPLIER,COMPASS COMMUNITY LIMITED,300000020462668
Portsmouth City Council,PCC,Children's and Education Services,Children Looked After,Children's Services and Education,Third Party Payments,Other establishments,03-Jan-23,6693694,0.13,SUPPLIER,COMPASS COMMUNITY LIMITED,300000020462668
Portsmouth City Council,PCC,Children's and Education Services,Children Looked After,Children's Services and Education,Third Party Payments,Other establishments,03-Jan-23,6693694,"1,842.86",SUPPLIER,COMPASS COMMUNITY LIMITED,300000020462668
Portsmouth City Council,PCC,Children's and Education Services,Children Looked After,Children's Services and Education,Third Party Payments,Other establishments,03-Jan-23,6693694,"4,300.00",SUPPLIER,COMPASS COMMUNITY LIMITED,300000020462668
Portsmouth City Council,PCC,Children's and Education Services,Children Looked After,Children's Services and Education,Third Party Payments,Other establishments,03-Jan-23,6693694,"4,300.00",SUPPLIER,COMPASS COMMUNITY LIMITED,300000020462668
Portsmouth City Council,PCC,Children's and Education Services,Children Looked After,Children's Services and Education,Third Party Payments,Other establishments,03-Jan-23,6693694,"4,300.00",SUPPLIER,COMPASS COMMUNITY LIMITED,300000020462668
Portsmouth City Council,PCC,Children's and Education Services,Children Looked After,Children's Services and Education,Third Party Payments,Other establishments,03-Jan-23,6693694,"4,300.00",SUPPLIER,COMPASS COMMUNITY LIMITED,300000020462668
Portsmouth City Council,PCC,Children's and Education Services,Children Looked After,Children's Services and Education,Third Party Payments,Other establishments,03-Jan-23,6693685,-0.05,SUPPLIER,COMPASS COMMUNITY LIMITED,300000020462668
Portsmouth City Council,PCC,Children's and Education Services,Children Looked After,Children's Services and Education,Third Party Payments,Other establishments,03-Jan-23,6693685,490.85,SUPPLIER,COMPASS COMMUNITY LIMITED,300000020462668
Portsmouth City Council,PCC,Children's and Education Services,Children Looked After,Children's Services and Education,Third Party Payments,Other establishments,03-Jan-23,6693685,613.56,SUPPLIER,COMPASS COMMUNITY LIMITED,300000020462668
Portsmouth City Council,PCC,Children's and Education Services,Children Looked After,Children's Services and Education,Third Party Payments,Other establishments,03-Jan-23,6693685,858.98,SUPPLIER,COMPASS COMMUNITY LIMITED,300000020462668
Portsmouth City Council,PCC,Children's and Education Services,Children Looked After,Children's Services and Education,Third Party Payments,Other establishments,03-Jan-23,6693685,858.98,SUPPLIER,COMPASS COMMUNITY LIMITED,300000020462668
Portsmouth City Council,PCC,Children's and Education Services,Children Looked After,Children's Services and Education,Third Party Payments,Other establishments,03-Jan-23,6693685,858.98,SUPPLIER,COMPASS COMMUNITY LIMITED,300000020462668
Portsmouth City Council,PCC,Children's and Education Services,Safeguarding Children and Young Peoples Services,Children's Services and Education,Third Party Payments,Other establishments,06-Jan-23,6694567,-941,SUPPLIER,LILIAN DAVIS GROUP LTD,300000020467263
Portsmouth City Council,PCC,Children's and Education Services,Safeguarding Children and Young Peoples Services,Children's Services and Education,Third Party Payments,Other establishments,06-Jan-23,6694567,-10,SUPPLIER,LILIAN DAVIS GROUP LTD,300000020467263
Portsmouth City Council,PCC,Children's and Education Services,Safeguarding Children and Young Peoples Services,Children's Services and Education,Third Party Payments,Other establishments,06-Jan-23,6694567,-10,SUPPLIER,LILIAN DAVIS GROUP LTD,300000020467263
Portsmouth City Council,PCC,Children's and Education Services,Safeguarding Children and Young Peoples Services,Children's Services and Education,Third Party Payments,Other establishments,06-Jan-23,6694567,-10,SUPPLIER,LILIAN DAVIS GROUP LTD,300000020467263
Portsmouth City Council,PCC,Children's and Education Services,Safeguarding Children and Young Peoples Services,Children's Services and Education,Third Party Payments,Other establishments,06-Jan-23,6694567,-10,SUPPLIER,LILIAN DAVIS GROUP LTD,300000020467263
Portsmouth City Council,PCC,Children's and Education Services,Safeguarding Children and Young Peoples Services,Children's Services and Education,Third Party Payments,Other establishments,06-Jan-23,6694567,-4.29,SUPPLIER,LILIAN DAVIS GROUP LTD,300000020467263
Portsmouth City Council,PCC,Children's and Education Services,Safeguarding Children and Young Peoples Services,Children's Services and Education,Third Party Payments,Other establishments,06-Jan-23,6694567,0.01,SUPPLIER,LILIAN DAVIS GROUP LTD,300000020467263
Portsmouth City Council,PCC,Children's and Education Services,Safeguarding Children and Young Peoples Services,Children's Services and Education,Third Party Payments,Other establishments,06-Jan-23,6694567,53.57,SUPPLIER,LILIAN DAVIS GROUP LTD,300000020467263
Portsmouth City Council,PCC,Children's and Education Services,Safeguarding Children and Young Peoples Services,Children's Services and Education,Third Party Payments,Other establishments,06-Jan-23,6694567,125,SUPPLIER,LILIAN DAVIS GROUP LTD,300000020467263
Portsmouth City Council,PCC,Children's and Education Services,Safeguarding Children and Young Peoples Services,Children's Services and Education,Third Party Payments,Other establishments,06-Jan-23,6694567,125,SUPPLIER,LILIAN DAVIS GROUP LTD,300000020467263
Portsmouth City Council,PCC,Children's and Education Services,Safeguarding Children and Young Peoples Services,Children's Services and Education,Third Party Payments,Other establishments,06-Jan-23,6694567,125,SUPPLIER,LILIAN DAVIS GROUP LTD,300000020467263
Portsmouth City Council,PCC,Children's and Education Services,Safeguarding Children and Young Peoples Services,Children's Services and Education,Third Party Payments,Other establishments,06-Jan-23,6694567,125,SUPPLIER,LILIAN DAVIS GROUP LTD,300000020467263
Portsmouth City Council,PCC,Children's and Education Services,Safeguarding Children and Young Peoples Services,Children's Services and Education,Third Party Payments,Other establishments,06-Jan-23,6694567,165,SUPPLIER,LILIAN DAVIS GROUP LTD,300000020467263
Portsmouth City Council,PCC,Children's and Education Services,Safeguarding Children and Young Peoples Services,Children's Services and Education,Third Party Payments,Other establishments,06-Jan-23,6694567,385,SUPPLIER,LILIAN DAVIS GROUP LTD,300000020467263
Portsmouth City Council,PCC,Children's and Education Services,Safeguarding Children and Young Peoples Services,Children's Services and Education,Third Party Payments,Other establishments,06-Jan-23,6694567,385,SUPPLIER,LILIAN DAVIS GROUP LTD,300000020467263
Portsmouth City Council,PCC,Children's and Education Services,Safeguarding Children and Young Peoples Services,Children's Services and Education,Third Party Payments,Other establishments,06-Jan-23,6694567,385,SUPPLIER,LILIAN DAVIS GROUP LTD,300000020467263
Portsmouth City Council,PCC,Children's and Education Services,Safeguarding Children and Young Peoples Services,Children's Services and Education,Third Party Payments,Other establishments,06-Jan-23,6694567,385,SUPPLIER,LILIAN DAVIS GROUP LTD,300000020467263
Portsmouth City Council,PCC,Children's and Education Services,Safeguarding Children and Young Peoples Services,Children's Services and Education,Third Party Payments,Other establishments,06-Jan-23,6694567,-872.6,SUPPLIER,LILIAN DAVIS GROUP LTD,300000020467263
Portsmouth City Council,PCC,Children's and Education Services,Safeguarding Children and Young Peoples Services,Children's Services and Education,Third Party Payments,Other establishments,06-Jan-23,6694567,-10,SUPPLIER,LILIAN DAVIS GROUP LTD,300000020467263
Portsmouth City Council,PCC,Children's and Education Services,Safeguarding Children and Young Peoples Services,Children's Services and Education,Third Party Payments,Other establishments,06-Jan-23,6694567,-10,SUPPLIER,LILIAN DAVIS GROUP LTD,300000020467263
Portsmouth City Council,PCC,Children's and Education Services,Safeguarding Children and Young Peoples Services,Children's Services and Education,Third Party Payments,Other establishments,06-Jan-23,6694567,-10,SUPPLIER,LILIAN DAVIS GROUP LTD,300000020467263
Portsmouth City Council,PCC,Children's and Education Services,Safeguarding Children and Young Peoples Services,Children's Services and Education,Third Party Payments,Other establishments,06-Jan-23,6694567,-10,SUPPLIER,LILIAN DAVIS GROUP LTD,300000020467263
Portsmouth City Council,PCC,Children's and Education Services,Safeguarding Children and Young Peoples Services,Children's Services and Education,Third Party Payments,Other establishments,06-Jan-23,6694567,-4.29,SUPPLIER,LILIAN DAVIS GROUP LTD,300000020467263
Portsmouth City Council,PCC,Children's and Education Services,Safeguarding Children and Young Peoples Services,Children's Services and Education,Third Party Payments,Other establishments,06-Jan-23,6694567,0.01,SUPPLIER,LILIAN DAVIS GROUP LTD,300000020467263
Portsmouth City Council,PCC,Children's and Education Services,Safeguarding Children and Young Peoples Services,Children's Services and Education,Third Party Payments,Other establishments,06-Jan-23,6694567,32.14,SUPPLIER,LILIAN DAVIS GROUP LTD,300000020467263
Portsmouth City Council,PCC,Children's and Education Services,Safeguarding Children and Young Peoples Services,Children's Services and Education,Third Party Payments,Other establishments,06-Jan-23,6694567,75,SUPPLIER,LILIAN DAVIS GROUP LTD,300000020467263
Portsmouth City Council,PCC,Children's and Education Services,Safeguarding Children and Young Peoples Services,Children's Services and Education,Third Party Payments,Other establishments,06-Jan-23,6694567,75,SUPPLIER,LILIAN DAVIS GROUP LTD,300000020467263
Portsmouth City Council,PCC,Children's and Education Services,Safeguarding Children and Young Peoples Services,Children's Services and Education,Third Party Payments,Other establishments,06-Jan-23,6694567,75,SUPPLIER,LILIAN DAVIS GROUP LTD,300000020467263
Portsmouth City Council,PCC,Children's and Education Services,Safeguarding Children and Young Peoples Services,Children's Services and Education,Third Party Payments,Other establishments,06-Jan-23,6694567,75,SUPPLIER,LILIAN DAVIS GROUP LTD,300000020467263
Portsmouth City Council,PCC,Children's and Education Services,Safeguarding Children and Young Peoples Services,Children's Services and Education,Third Party Payments,Other establishments,06-Jan-23,6694567,188.57,SUPPLIER,LILIAN DAVIS GROUP LTD,300000020467263
Portsmouth City Council,PCC,Children's and Education Services,Safeguarding Children and Young Peoples Services,Children's Services and Education,Third Party Payments,Other establishments,06-Jan-23,6694567,440,SUPPLIER,LILIAN DAVIS GROUP LTD,300000020467263
Portsmouth City Council,PCC,Children's and Education Services,Safeguarding Children and Young Peoples Services,Children's Services and Education,Third Party Payments,Other establishments,06-Jan-23,6694567,440,SUPPLIER,LILIAN DAVIS GROUP LTD,300000020467263
Portsmouth City Council,PCC,Children's and Education Services,Safeguarding Children and Young Peoples Services,Children's Services and Education,Third Party Payments,Other establishments,06-Jan-23,6694567,440,SUPPLIER,LILIAN DAVIS GROUP LTD,300000020467263
Portsmouth City Council,PCC,Children's and Education Services,Safeguarding Children and Young Peoples Services,Children's Services and Education,Third Party Payments,Other establishments,06-Jan-23,6694567,440,SUPPLIER,LILIAN DAVIS GROUP LTD,300000020467263
Portsmouth City Council,PCC,Children's and Education Services,Safeguarding Children and Young Peoples Services,Children's Services and Education,Third Party Payments,Other establishments,06-Jan-23,6694567,-872.6,SUPPLIER,LILIAN DAVIS GROUP LTD,300000020467263
Portsmouth City Council,PCC,Children's and Education Services,Safeguarding Children and Young Peoples Services,Children's Services and Education,Third Party Payments,Other establishments,06-Jan-23,6694567,-10,SUPPLIER,LILIAN DAVIS GROUP LTD,300000020467263
Portsmouth City Council,PCC,Children's and Education Services,Safeguarding Children and Young Peoples Services,Children's Services and Education,Third Party Payments,Other establishments,06-Jan-23,6694567,-10,SUPPLIER,LILIAN DAVIS GROUP LTD,300000020467263
Portsmouth City Council,PCC,Children's and Education Services,Safeguarding Children and Young Peoples Services,Children's Services and Education,Third Party Payments,Other establishments,06-Jan-23,6694567,-10,SUPPLIER,LILIAN DAVIS GROUP LTD,300000020467263
Portsmouth City Council,PCC,Children's and Education Services,Safeguarding Children and Young Peoples Services,Children's Services and Education,Third Party Payments,Other establishments,06-Jan-23,6694567,-10,SUPPLIER,LILIAN DAVIS GROUP LTD,300000020467263
Portsmouth City Council,PCC,Children's and Education Services,Safeguarding Children and Young Peoples Services,Children's Services and Education,Third Party Payments,Other establishments,06-Jan-23,6694567,-4.29,SUPPLIER,LILIAN DAVIS GROUP LTD,300000020467263
Portsmouth City Council,PCC,Children's and Education Services,Safeguarding Children and Young Peoples Services,Children's Services and Education,Third Party Payments,Other establishments,06-Jan-23,6694567,53.57,SUPPLIER,LILIAN DAVIS GROUP LTD,300000020467263
Portsmouth City Council,PCC,Children's and Education Services,Safeguarding Children and Young Peoples Services,Children's Services and Education,Third Party Payments,Other establishments,06-Jan-23,6694567,125,SUPPLIER,LILIAN DAVIS GROUP LTD,300000020467263
Portsmouth City Council,PCC,Children's and Education Services,Safeguarding Children and Young Peoples Services,Children's Services and Education,Third Party Payments,Other establishments,06-Jan-23,6694567,125,SUPPLIER,LILIAN DAVIS GROUP LTD,300000020467263
Portsmouth City Council,PCC,Children's and Education Services,Safeguarding Children and Young Peoples Services,Children's Services and Education,Third Party Payments,Other establishments,06-Jan-23,6694567,125,SUPPLIER,LILIAN DAVIS GROUP LTD,300000020467263
Portsmouth City Council,PCC,Children's and Education Services,Safeguarding Children and Young Peoples Services,Children's Services and Education,Third Party Payments,Other establishments,06-Jan-23,6694567,125,SUPPLIER,LILIAN DAVIS GROUP LTD,300000020467263
Portsmouth City Council,PCC,Children's and Education Services,Safeguarding Children and Young Peoples Services,Children's Services and Education,Third Party Payments,Other establishments,06-Jan-23,6694567,166.29,SUPPLIER,LILIAN DAVIS GROUP LTD,300000020467263
Portsmouth City Council,PCC,Children's and Education Services,Safeguarding Children and Young Peoples Services,Children's Services and Education,Third Party Payments,Other establishments,06-Jan-23,6694567,388,SUPPLIER,LILIAN DAVIS GROUP LTD,300000020467263
Portsmouth City Council,PCC,Children's and Education Services,Safeguarding Children and Young Peoples Services,Children's Services and Education,Third Party Payments,Other establishments,06-Jan-23,6694567,388,SUPPLIER,LILIAN DAVIS GROUP LTD,300000020467263
Portsmouth City Council,PCC,Children's and Education Services,Safeguarding Children and Young Peoples Services,Children's Services and Education,Third Party Payments,Other establishments,06-Jan-23,6694567,388,SUPPLIER,LILIAN DAVIS GROUP LTD,300000020467263
Portsmouth City Council,PCC,Children's and Education Services,Safeguarding Children and Young Peoples Services,Children's Services and Education,Third Party Payments,Other establishments,06-Jan-23,6694567,388,SUPPLIER,LILIAN DAVIS GROUP LTD,300000020467263
Portsmouth City Council,PCC,Children's and Education Services,Safeguarding Children and Young Peoples Services,Children's Services and Education,Third Party Payments,Other establishments,06-Jan-23,6694567,-892.54,SUPPLIER,LILIAN DAVIS GROUP LTD,300000020467263
Portsmouth City Council,PCC,Children's and Education Services,Safeguarding Children and Young Peoples Services,Children's Services and Education,Third Party Payments,Other establishments,06-Jan-23,6694567,-10,SUPPLIER,LILIAN DAVIS GROUP LTD,300000020467263
Portsmouth City Council,PCC,Children's and Education Services,Safeguarding Children and Young Peoples Services,Children's Services and Education,Third Party Payments,Other establishments,06-Jan-23,6694567,-10,SUPPLIER,LILIAN DAVIS GROUP LTD,300000020467263
Portsmouth City Council,PCC,Children's and Education Services,Safeguarding Children and Young Peoples Services,Children's Services and Education,Third Party Payments,Other establishments,06-Jan-23,6694567,-10,SUPPLIER,LILIAN DAVIS GROUP LTD,300000020467263
Portsmouth City Council,PCC,Children's and Education Services,Safeguarding Children and Young Peoples Services,Children's Services and Education,Third Party Payments,Other establishments,06-Jan-23,6694567,-10,SUPPLIER,LILIAN DAVIS GROUP LTD,300000020467263
Portsmouth City Council,PCC,Children's and Education Services,Safeguarding Children and Young Peoples Services,Children's Services and Education,Third Party Payments,Other establishments,06-Jan-23,6694567,-4.29,SUPPLIER,LILIAN DAVIS GROUP LTD,300000020467263
Portsmouth City Council,PCC,Children's and Education Services,Safeguarding Children and Young Peoples Services,Children's Services and Education,Third Party Payments,Other establishments,06-Jan-23,6694567,51.43,SUPPLIER,LILIAN DAVIS GROUP LTD,300000020467263
Portsmouth City Council,PCC,Children's and Education Services,Safeguarding Children and Young Peoples Services,Children's Services and Education,Third Party Payments,Other establishments,06-Jan-23,6694567,120,SUPPLIER,LILIAN DAVIS GROUP LTD,300000020467263
Portsmouth City Council,PCC,Children's and Education Services,Safeguarding Children and Young Peoples Services,Children's Services and Education,Third Party Payments,Other establishments,06-Jan-23,6694567,120,SUPPLIER,LILIAN DAVIS GROUP LTD,300000020467263
Portsmouth City Council,PCC,Children's and Education Services,Safeguarding Children and Young Peoples Services,Children's Services and Education,Third Party Payments,Other establishments,06-Jan-23,6694567,120,SUPPLIER,LILIAN DAVIS GROUP LTD,300000020467263
Portsmouth City Council,PCC,Children's and Education Services,Safeguarding Children and Young Peoples Services,Children's Services and Education,Third Party Payments,Other establishments,06-Jan-23,6694567,120,SUPPLIER,LILIAN DAVIS GROUP LTD,300000020467263
Portsmouth City Council,PCC,Children's and Education Services,Safeguarding Children and Young Peoples Services,Children's Services and Education,Third Party Payments,Other establishments,06-Jan-23,6694567,188.57,SUPPLIER,LILIAN DAVIS GROUP LTD,300000020467263
Portsmouth City Council,PCC,Children's and Education Services,Safeguarding Children and Young Peoples Services,Children's Services and Education,Third Party Payments,Other establishments,06-Jan-23,6694567,440,SUPPLIER,LILIAN DAVIS GROUP LTD,300000020467263
Portsmouth City Council,PCC,Children's and Education Services,Safeguarding Children and Young Peoples Services,Children's Services and Education,Third Party Payments,Other establishments,06-Jan-23,6694567,440,SUPPLIER,LILIAN DAVIS GROUP LTD,300000020467263
Portsmouth City Council,PCC,Children's and Education Services,Safeguarding Children and Young Peoples Services,Children's Services and Education,Third Party Payments,Other establishments,06-Jan-23,6694567,440,SUPPLIER,LILIAN DAVIS GROUP LTD,300000020467263
Portsmouth City Council,PCC,Children's and Education Services,Safeguarding Children and Young Peoples Services,Children's Services and Education,Third Party Payments,Other establishments,06-Jan-23,6694567,440,SUPPLIER,LILIAN DAVIS GROUP LTD,300000020467263
Portsmouth City Council,PCC,Children's and Education Services,Children Looked After,Children's Services and Education,Third Party Payments,Other establishments,06-Jan-23,6694583,0.03,LIMITED COMPANY,JAMMA UMOJA (RESIDENTIAL SERVICES) LTD,300000121549022
Portsmouth City Council,PCC,Children's and Education Services,Children Looked After,Children's Services and Education,Third Party Payments,Other establishments,06-Jan-23,6694583,120.71,LIMITED COMPANY,JAMMA UMOJA (RESIDENTIAL SERVICES) LTD,300000121549022
Portsmouth City Council,PCC,Children's and Education Services,Children Looked After,Children's Services and Education,Third Party Payments,Other establishments,06-Jan-23,6694583,724.26,LIMITED COMPANY,JAMMA UMOJA (RESIDENTIAL SERVICES) LTD,300000121549022
Portsmouth City Council,PCC,Children's and Education Services,Children Looked After,Children's Services and Education,Third Party Payments,Other establishments,06-Jan-23,6694583,"-3,637.97",LIMITED COMPANY,JAMMA UMOJA (RESIDENTIAL SERVICES) LTD,300000121549022
Portsmouth City Council,PCC,Children's and Education Services,Children Looked After,Children's Services and Education,Third Party Payments,Other establishments,06-Jan-23,6694583,"1,127.71",LIMITED COMPANY,JAMMA UMOJA (RESIDENTIAL SERVICES) LTD,300000121549022
Portsmouth City Council,PCC,Children's and Education Services,Children Looked After,Children's Services and Education,Third Party Payments,Other establishments,06-Jan-23,6694583,"6,766.26",LIMITED COMPANY,JAMMA UMOJA (RESIDENTIAL SERVICES) LTD,300000121549022
Portsmouth City Council,PCC,Children's and Education Services,Children Looked After,Children's Services and Education,Third Party Payments,Other establishments,06-Jan-23,6694583,"3,638.00",LIMITED COMPANY,JAMMA UMOJA (RESIDENTIAL SERVICES) LTD,300000121549022
Portsmouth City Council,PCC,Children's and Education Services,Children Looked After,Children's Services and Education,Third Party Payments,Other establishments,17-Jan-23,6695918,"-3,749.97",SUPPLIER,CAMBIAN GROUP LTD,300000020462057
Portsmouth City Council,PCC,Children's and Education Services,Children Looked After,Children's Services and Education,Third Party Payments,Other establishments,17-Jan-23,6695918,"-3,749.97",SUPPLIER,CAMBIAN GROUP LTD,300000020462057
Portsmouth City Council,PCC,Children's and Education Services,Children Looked After,Children's Services and Education,Third Party Payments,Other establishments,17-Jan-23,6695918,"-3,749.97",SUPPLIER,CAMBIAN GROUP LTD,300000020462057
Portsmouth City Council,PCC,Children's and Education Services,Children Looked After,Children's Services and Education,Third Party Payments,Other establishments,17-Jan-23,6695918,"-3,749.97",SUPPLIER,CAMBIAN GROUP LTD,300000020462057
Portsmouth City Council,PCC,Children's and Education Services,Children Looked After,Children's Services and Education,Third Party Payments,Other establishments,17-Jan-23,6695918,"-1,607.13",SUPPLIER,CAMBIAN GROUP LTD,300000020462057
Portsmouth City Council,PCC,Children's and Education Services,Children Looked After,Children's Services and Education,Third Party Payments,Other establishments,17-Jan-23,6695918,"-1,173.97",SUPPLIER,CAMBIAN GROUP LTD,300000020462057
Portsmouth City Council,PCC,Children's and Education Services,Children Looked After,Children's Services and Education,Third Party Payments,Other establishments,17-Jan-23,6695918,"-1,173.97",SUPPLIER,CAMBIAN GROUP LTD,300000020462057
Portsmouth City Council,PCC,Children's and Education Services,Children Looked After,Children's Services and Education,Third Party Payments,Other establishments,17-Jan-23,6695918,"-1,173.97",SUPPLIER,CAMBIAN GROUP LTD,300000020462057
Portsmouth City Council,PCC,Children's and Education Services,Children Looked After,Children's Services and Education,Third Party Payments,Other establishments,17-Jan-23,6695918,"-1,173.97",SUPPLIER,CAMBIAN GROUP LTD,300000020462057
Portsmouth City Council,PCC,Children's and Education Services,Children Looked After,Children's Services and Education,Third Party Payments,Other establishments,17-Jan-23,6695918,-503.13,SUPPLIER,CAMBIAN GROUP LTD,300000020462057
Portsmouth City Council,PCC,Children's and Education Services,Children Looked After,Children's Services and Education,Third Party Payments,Other establishments,17-Jan-23,6695918,-0.14,SUPPLIER,CAMBIAN GROUP LTD,300000020462057
Portsmouth City Council,PCC,Children's and Education Services,Children Looked After,Children's Services and Education,Third Party Payments,Other establishments,17-Jan-23,6695918,"1,656.16",SUPPLIER,CAMBIAN GROUP LTD,300000020462057
Portsmouth City Council,PCC,Children's and Education Services,Children Looked After,Children's Services and Education,Third Party Payments,Other establishments,17-Jan-23,6695918,"-1,656.16",SUPPLIER,CAMBIAN GROUP LTD,300000020462057
Portsmouth City Council,PCC,Children's and Education Services,Children Looked After,Children's Services and Education,Third Party Payments,Other establishments,17-Jan-23,6695918,"-16,071.30",SUPPLIER,CAMBIAN GROUP LTD,300000020462057
Portsmouth City Council,PCC,Children's and Education Services,Children Looked After,Children's Services and Education,Third Party Payments,Other establishments,17-Jan-23,6695918,"15,535.59",SUPPLIER,CAMBIAN GROUP LTD,300000020462057
Portsmouth City Council,PCC,Children's and Education Services,Children Looked After,Children's Services and Education,Third Party Payments,Other establishments,17-Jan-23,6695918,"-3,428.70",SUPPLIER,CAMBIAN GROUP LTD,300000020462057
Portsmouth City Council,PCC,Children's and Education Services,Children Looked After,Children's Services and Education,Third Party Payments,Other establishments,17-Jan-23,6695918,"3,314.41",SUPPLIER,CAMBIAN GROUP LTD,300000020462057
Portsmouth City Council,PCC,Children's and Education Services,Children Looked After,Children's Services and Education,Third Party Payments,Other establishments,17-Jan-23,6695918,"-1,602.74",SUPPLIER,CAMBIAN GROUP LTD,300000020462057
Portsmouth City Council,PCC,Children's and Education Services,Children Looked After,Children's Services and Education,Third Party Payments,Other establishments,17-Jan-23,6695918,"1,549.32",SUPPLIER,CAMBIAN GROUP LTD,300000020462057
Portsmouth City Council,PCC,Children's and Education Services,Family Support Services,Children's Services and Education,Supplies and Services,Services,06-Jan-23,6694555,243,SUPPLIER,AA GLOBAL LANGUAGE SERVICES LTD,300000020483226
Portsmouth City Council,PCC,Children's and Education Services,Family Support Services,Children's Services and Education,Supplies and Services,Services,06-Jan-23,6694555,306,SUPPLIER,AA GLOBAL LANGUAGE SERVICES LTD,300000020483226
Portsmouth City Council,PCC,Children's and Education Services,Family Support Services,Children's Services and Education,Supplies and Services,Services,06-Jan-23,6694555,393,SUPPLIER,AA GLOBAL LANGUAGE SERVICES LTD,300000020483226
Portsmouth City Council,PCC,Children's and Education Services,Children Looked After,Children's Services and Education,Supplies and Services,Services,06-Jan-23,6694555,"1,194.00",SUPPLIER,AA GLOBAL LANGUAGE SERVICES LTD,300000020483226
Portsmouth City Council,PCC,Housing Services,Private Sector Housing Renewal,"Housing, Neighbourhood and Building Services",Income,Other grants reimbursements and contributions,10-Jan-23,6694810,"-1,003.50",SUPPLIER,ANY MAINTENANCE LTD,300000020474016
Portsmouth City Council,PCC,Other,Suspense and Capital Schemes,Capital - Housing General Fund,Capital Charges,REFCUS,10-Jan-23,6694810,"1,204.20",SUPPLIER,ANY MAINTENANCE LTD,300000020474016
Portsmouth City Council,PCC,Other,Suspense and Capital Schemes,Capital - Housing General Fund,Capital Charges,REFCUS,10-Jan-23,6694810,"6,690.00",SUPPLIER,ANY MAINTENANCE LTD,300000020474016
Portsmouth City Council,PCC,Children's and Education Services,Children Looked After,Children's Services and Education,Third Party Payments,Other establishments,09-Jan-23,6694644,0.14,SUPPLIER,CAMBIAN GROUP LTD,300000020462057
Portsmouth City Council,PCC,Children's and Education Services,Children Looked After,Children's Services and Education,Third Party Payments,Other establishments,09-Jan-23,6694644,139.7,SUPPLIER,CAMBIAN GROUP LTD,300000020462057
Portsmouth City Council,PCC,Children's and Education Services,Children Looked After,Children's Services and Education,Third Party Payments,Other establishments,09-Jan-23,6694644,325.96,SUPPLIER,CAMBIAN GROUP LTD,300000020462057
Portsmouth City Council,PCC,Children's and Education Services,Children Looked After,Children's Services and Education,Third Party Payments,Other establishments,09-Jan-23,6694644,325.96,SUPPLIER,CAMBIAN GROUP LTD,300000020462057
Portsmouth City Council,PCC,Children's and Education Services,Children Looked After,Children's Services and Education,Third Party Payments,Other establishments,09-Jan-23,6694644,325.96,SUPPLIER,CAMBIAN GROUP LTD,300000020462057
Portsmouth City Council,PCC,Children's and Education Services,Children Looked After,Children's Services and Education,Third Party Payments,Other establishments,09-Jan-23,6694644,325.96,SUPPLIER,CAMBIAN GROUP LTD,300000020462057
Portsmouth City Council,PCC,Children's and Education Services,Children Looked After,Children's Services and Education,Third Party Payments,Other establishments,09-Jan-23,6694644,"1,452.16",SUPPLIER,CAMBIAN GROUP LTD,300000020462057
Portsmouth City Council,PCC,Children's and Education Services,Children Looked After,Children's Services and Education,Third Party Payments,Other establishments,09-Jan-23,6694644,"3,388.38",SUPPLIER,CAMBIAN GROUP LTD,300000020462057
Portsmouth City Council,PCC,Children's and Education Services,Children Looked After,Children's Services and Education,Third Party Payments,Other establishments,09-Jan-23,6694644,"3,388.38",SUPPLIER,CAMBIAN GROUP LTD,300000020462057
Portsmouth City Council,PCC,Children's and Education Services,Children Looked After,Children's Services and Education,Third Party Payments,Other establishments,09-Jan-23,6694644,"3,388.38",SUPPLIER,CAMBIAN GROUP LTD,300000020462057
Portsmouth City Council,PCC,Children's and Education Services,Children Looked After,Children's Services and Education,Third Party Payments,Other establishments,09-Jan-23,6694644,"3,388.38",SUPPLIER,CAMBIAN GROUP LTD,300000020462057
Portsmouth City Council,PCC,Children's and Education Services,Children Looked After,Children's Services and Education,Third Party Payments,Other establishments,11-Jan-23,6695174,635,SUPPLIER,FAIR WAYS COMMUNITY BENEFIT SOCEITY T/A FAIRWAYS CARE (UK) LTD,300000020459125
Portsmouth City Council,PCC,Children's and Education Services,Children Looked After,Children's Services and Education,Third Party Payments,Other establishments,11-Jan-23,6695174,"3,175.00",SUPPLIER,FAIR WAYS COMMUNITY BENEFIT SOCEITY T/A FAIRWAYS CARE (UK) LTD,300000020459125
Portsmouth City Council,PCC,Children's and Education Services,Children Looked After,Children's Services and Education,Third Party Payments,Other establishments,11-Jan-23,6695174,"4,445.00",SUPPLIER,FAIR WAYS COMMUNITY BENEFIT SOCEITY T/A FAIRWAYS CARE (UK) LTD,300000020459125
Portsmouth City Council,PCC,Children's and Education Services,Safeguarding Children and Young Peoples Services,Children's Services and Education,Third Party Payments,Other establishments,11-Jan-23,6694882,-875,SUPPLIER,PATHWAYS TO INDEPENDENCE HOUSING (UK) LIMITED,300000020480095
Portsmouth City Council,PCC,Children's and Education Services,Safeguarding Children and Young Peoples Services,Children's Services and Education,Third Party Payments,Other establishments,11-Jan-23,6694882,-10,SUPPLIER,PATHWAYS TO INDEPENDENCE HOUSING (UK) LIMITED,300000020480095
Portsmouth City Council,PCC,Children's and Education Services,Safeguarding Children and Young Peoples Services,Children's Services and Education,Third Party Payments,Other establishments,11-Jan-23,6694882,-10,SUPPLIER,PATHWAYS TO INDEPENDENCE HOUSING (UK) LIMITED,300000020480095
Portsmouth City Council,PCC,Children's and Education Services,Safeguarding Children and Young Peoples Services,Children's Services and Education,Third Party Payments,Other establishments,11-Jan-23,6694882,-10,SUPPLIER,PATHWAYS TO INDEPENDENCE HOUSING (UK) LIMITED,300000020480095
Portsmouth City Council,PCC,Children's and Education Services,Safeguarding Children and Young Peoples Services,Children's Services and Education,Third Party Payments,Other establishments,11-Jan-23,6694882,-7.14,SUPPLIER,PATHWAYS TO INDEPENDENCE HOUSING (UK) LIMITED,300000020480095
Portsmouth City Council,PCC,Children's and Education Services,Safeguarding Children and Young Peoples Services,Children's Services and Education,Third Party Payments,Other establishments,11-Jan-23,6694882,-5.71,SUPPLIER,PATHWAYS TO INDEPENDENCE HOUSING (UK) LIMITED,300000020480095
Portsmouth City Council,PCC,Children's and Education Services,Safeguarding Children and Young Peoples Services,Children's Services and Education,Third Party Payments,Other establishments,11-Jan-23,6694882,-0.02,SUPPLIER,PATHWAYS TO INDEPENDENCE HOUSING (UK) LIMITED,300000020480095
Portsmouth City Council,PCC,Children's and Education Services,Safeguarding Children and Young Peoples Services,Children's Services and Education,Third Party Payments,Other establishments,11-Jan-23,6694882,64.29,SUPPLIER,PATHWAYS TO INDEPENDENCE HOUSING (UK) LIMITED,300000020480095
Portsmouth City Council,PCC,Children's and Education Services,Safeguarding Children and Young Peoples Services,Children's Services and Education,Third Party Payments,Other establishments,11-Jan-23,6694882,80.36,SUPPLIER,PATHWAYS TO INDEPENDENCE HOUSING (UK) LIMITED,300000020480095
Portsmouth City Council,PCC,Children's and Education Services,Safeguarding Children and Young Peoples Services,Children's Services and Education,Third Party Payments,Other establishments,11-Jan-23,6694882,112.5,SUPPLIER,PATHWAYS TO INDEPENDENCE HOUSING (UK) LIMITED,300000020480095
Portsmouth City Council,PCC,Children's and Education Services,Safeguarding Children and Young Peoples Services,Children's Services and Education,Third Party Payments,Other establishments,11-Jan-23,6694882,112.5,SUPPLIER,PATHWAYS TO INDEPENDENCE HOUSING (UK) LIMITED,300000020480095
Portsmouth City Council,PCC,Children's and Education Services,Safeguarding Children and Young Peoples Services,Children's Services and Education,Third Party Payments,Other establishments,11-Jan-23,6694882,112.5,SUPPLIER,PATHWAYS TO INDEPENDENCE HOUSING (UK) LIMITED,300000020480095
Portsmouth City Council,PCC,Children's and Education Services,Safeguarding Children and Young Peoples Services,Children's Services and Education,Third Party Payments,Other establishments,11-Jan-23,6694882,253.71,SUPPLIER,PATHWAYS TO INDEPENDENCE HOUSING (UK) LIMITED,300000020480095
Portsmouth City Council,PCC,Children's and Education Services,Safeguarding Children and Young Peoples Services,Children's Services and Education,Third Party Payments,Other establishments,11-Jan-23,6694882,317.14,SUPPLIER,PATHWAYS TO INDEPENDENCE HOUSING (UK) LIMITED,300000020480095
Portsmouth City Council,PCC,Children's and Education Services,Safeguarding Children and Young Peoples Services,Children's Services and Education,Third Party Payments,Other establishments,11-Jan-23,6694882,444,SUPPLIER,PATHWAYS TO INDEPENDENCE HOUSING (UK) LIMITED,300000020480095
Portsmouth City Council,PCC,Children's and Education Services,Safeguarding Children and Young Peoples Services,Children's Services and Education,Third Party Payments,Other establishments,11-Jan-23,6694882,444,SUPPLIER,PATHWAYS TO INDEPENDENCE HOUSING (UK) LIMITED,300000020480095
Portsmouth City Council,PCC,Children's and Education Services,Safeguarding Children and Young Peoples Services,Children's Services and Education,Third Party Payments,Other establishments,11-Jan-23,6694882,444,SUPPLIER,PATHWAYS TO INDEPENDENCE HOUSING (UK) LIMITED,300000020480095
Portsmouth City Council,PCC,Children's and Education Services,Safeguarding Children and Young Peoples Services,Children's Services and Education,Third Party Payments,Other establishments,11-Jan-23,6694882,-875.6,SUPPLIER,PATHWAYS TO INDEPENDENCE HOUSING (UK) LIMITED,300000020480095
Portsmouth City Council,PCC,Children's and Education Services,Safeguarding Children and Young Peoples Services,Children's Services and Education,Third Party Payments,Other establishments,11-Jan-23,6694882,-10,SUPPLIER,PATHWAYS TO INDEPENDENCE HOUSING (UK) LIMITED,300000020480095
Portsmouth City Council,PCC,Children's and Education Services,Safeguarding Children and Young Peoples Services,Children's Services and Education,Third Party Payments,Other establishments,11-Jan-23,6694882,-10,SUPPLIER,PATHWAYS TO INDEPENDENCE HOUSING (UK) LIMITED,300000020480095
Portsmouth City Council,PCC,Children's and Education Services,Safeguarding Children and Young Peoples Services,Children's Services and Education,Third Party Payments,Other establishments,11-Jan-23,6694882,-10,SUPPLIER,PATHWAYS TO INDEPENDENCE HOUSING (UK) LIMITED,300000020480095
Portsmouth City Council,PCC,Children's and Education Services,Safeguarding Children and Young Peoples Services,Children's Services and Education,Third Party Payments,Other establishments,11-Jan-23,6694882,-7.14,SUPPLIER,PATHWAYS TO INDEPENDENCE HOUSING (UK) LIMITED,300000020480095
Portsmouth City Council,PCC,Children's and Education Services,Safeguarding Children and Young Peoples Services,Children's Services and Education,Third Party Payments,Other establishments,11-Jan-23,6694882,-5.71,SUPPLIER,PATHWAYS TO INDEPENDENCE HOUSING (UK) LIMITED,300000020480095
Portsmouth City Council,PCC,Children's and Education Services,Safeguarding Children and Young Peoples Services,Children's Services and Education,Third Party Payments,Other establishments,11-Jan-23,6694882,-0.02,SUPPLIER,PATHWAYS TO INDEPENDENCE HOUSING (UK) LIMITED,300000020480095
Portsmouth City Council,PCC,Children's and Education Services,Safeguarding Children and Young Peoples Services,Children's Services and Education,Third Party Payments,Other establishments,11-Jan-23,6694882,64.29,SUPPLIER,PATHWAYS TO INDEPENDENCE HOUSING (UK) LIMITED,300000020480095
Portsmouth City Council,PCC,Children's and Education Services,Safeguarding Children and Young Peoples Services,Children's Services and Education,Third Party Payments,Other establishments,11-Jan-23,6694882,80.36,SUPPLIER,PATHWAYS TO INDEPENDENCE HOUSING (UK) LIMITED,300000020480095
Portsmouth City Council,PCC,Children's and Education Services,Safeguarding Children and Young Peoples Services,Children's Services and Education,Third Party Payments,Other establishments,11-Jan-23,6694882,112.5,SUPPLIER,PATHWAYS TO INDEPENDENCE HOUSING (UK) LIMITED,300000020480095
Portsmouth City Council,PCC,Children's and Education Services,Safeguarding Children and Young Peoples Services,Children's Services and Education,Third Party Payments,Other establishments,11-Jan-23,6694882,112.5,SUPPLIER,PATHWAYS TO INDEPENDENCE HOUSING (UK) LIMITED,300000020480095
Portsmouth City Council,PCC,Children's and Education Services,Safeguarding Children and Young Peoples Services,Children's Services and Education,Third Party Payments,Other establishments,11-Jan-23,6694882,112.5,SUPPLIER,PATHWAYS TO INDEPENDENCE HOUSING (UK) LIMITED,300000020480095
Portsmouth City Council,PCC,Children's and Education Services,Safeguarding Children and Young Peoples Services,Children's Services and Education,Third Party Payments,Other establishments,11-Jan-23,6694882,253.71,SUPPLIER,PATHWAYS TO INDEPENDENCE HOUSING (UK) LIMITED,300000020480095
Portsmouth City Council,PCC,Children's and Education Services,Safeguarding Children and Young Peoples Services,Children's Services and Education,Third Party Payments,Other establishments,11-Jan-23,6694882,317.14,SUPPLIER,PATHWAYS TO INDEPENDENCE HOUSING (UK) LIMITED,300000020480095
Portsmouth City Council,PCC,Children's and Education Services,Safeguarding Children and Young Peoples Services,Children's Services and Education,Third Party Payments,Other establishments,11-Jan-23,6694882,444,SUPPLIER,PATHWAYS TO INDEPENDENCE HOUSING (UK) LIMITED,300000020480095
Portsmouth City Council,PCC,Children's and Education Services,Safeguarding Children and Young Peoples Services,Children's Services and Education,Third Party Payments,Other establishments,11-Jan-23,6694882,444,SUPPLIER,PATHWAYS TO INDEPENDENCE HOUSING (UK) LIMITED,300000020480095
Portsmouth City Council,PCC,Children's and Education Services,Safeguarding Children and Young Peoples Services,Children's Services and Education,Third Party Payments,Other establishments,11-Jan-23,6694882,444,SUPPLIER,PATHWAYS TO INDEPENDENCE HOUSING (UK) LIMITED,300000020480095
Portsmouth City Council,PCC,Children's and Education Services,Safeguarding Children and Young Peoples Services,Children's Services and Education,Third Party Payments,Other establishments,11-Jan-23,6694882,-875.6,SUPPLIER,PATHWAYS TO INDEPENDENCE HOUSING (UK) LIMITED,300000020480095
Portsmouth City Council,PCC,Children's and Education Services,Safeguarding Children and Young Peoples Services,Children's Services and Education,Third Party Payments,Other establishments,11-Jan-23,6694882,-10,SUPPLIER,PATHWAYS TO INDEPENDENCE HOUSING (UK) LIMITED,300000020480095
Portsmouth City Council,PCC,Children's and Education Services,Safeguarding Children and Young Peoples Services,Children's Services and Education,Third Party Payments,Other establishments,11-Jan-23,6694882,-10,SUPPLIER,PATHWAYS TO INDEPENDENCE HOUSING (UK) LIMITED,300000020480095
Portsmouth City Council,PCC,Children's and Education Services,Safeguarding Children and Young Peoples Services,Children's Services and Education,Third Party Payments,Other establishments,11-Jan-23,6694882,-10,SUPPLIER,PATHWAYS TO INDEPENDENCE HOUSING (UK) LIMITED,300000020480095
Portsmouth City Council,PCC,Children's and Education Services,Safeguarding Children and Young Peoples Services,Children's Services and Education,Third Party Payments,Other establishments,11-Jan-23,6694882,-7.14,SUPPLIER,PATHWAYS TO INDEPENDENCE HOUSING (UK) LIMITED,300000020480095
Portsmouth City Council,PCC,Children's and Education Services,Safeguarding Children and Young Peoples Services,Children's Services and Education,Third Party Payments,Other establishments,11-Jan-23,6694882,-5.71,SUPPLIER,PATHWAYS TO INDEPENDENCE HOUSING (UK) LIMITED,300000020480095
Portsmouth City Council,PCC,Children's and Education Services,Safeguarding Children and Young Peoples Services,Children's Services and Education,Third Party Payments,Other establishments,11-Jan-23,6694882,-0.02,SUPPLIER,PATHWAYS TO INDEPENDENCE HOUSING (UK) LIMITED,300000020480095
Portsmouth City Council,PCC,Children's and Education Services,Safeguarding Children and Young Peoples Services,Children's Services and Education,Third Party Payments,Other establishments,11-Jan-23,6694882,0.6,SUPPLIER,PATHWAYS TO INDEPENDENCE HOUSING (UK) LIMITED,300000020480095
Portsmouth City Council,PCC,Children's and Education Services,Safeguarding Children and Young Peoples Services,Children's Services and Education,Third Party Payments,Other establishments,11-Jan-23,6694882,64.29,SUPPLIER,PATHWAYS TO INDEPENDENCE HOUSING (UK) LIMITED,300000020480095
Portsmouth City Council,PCC,Children's and Education Services,Safeguarding Children and Young Peoples Services,Children's Services and Education,Third Party Payments,Other establishments,11-Jan-23,6694882,80.36,SUPPLIER,PATHWAYS TO INDEPENDENCE HOUSING (UK) LIMITED,300000020480095
Portsmouth City Council,PCC,Children's and Education Services,Safeguarding Children and Young Peoples Services,Children's Services and Education,Third Party Payments,Other establishments,11-Jan-23,6694882,112.5,SUPPLIER,PATHWAYS TO INDEPENDENCE HOUSING (UK) LIMITED,300000020480095
Portsmouth City Council,PCC,Children's and Education Services,Safeguarding Children and Young Peoples Services,Children's Services and Education,Third Party Payments,Other establishments,11-Jan-23,6694882,112.5,SUPPLIER,PATHWAYS TO INDEPENDENCE HOUSING (UK) LIMITED,300000020480095
Portsmouth City Council,PCC,Children's and Education Services,Safeguarding Children and Young Peoples Services,Children's Services and Education,Third Party Payments,Other establishments,11-Jan-23,6694882,112.5,SUPPLIER,PATHWAYS TO INDEPENDENCE HOUSING (UK) LIMITED,300000020480095
Portsmouth City Council,PCC,Children's and Education Services,Safeguarding Children and Young Peoples Services,Children's Services and Education,Third Party Payments,Other establishments,11-Jan-23,6694882,253.71,SUPPLIER,PATHWAYS TO INDEPENDENCE HOUSING (UK) LIMITED,300000020480095
Portsmouth City Council,PCC,Children's and Education Services,Safeguarding Children and Young Peoples Services,Children's Services and Education,Third Party Payments,Other establishments,11-Jan-23,6694882,317.14,SUPPLIER,PATHWAYS TO INDEPENDENCE HOUSING (UK) LIMITED,300000020480095
Portsmouth City Council,PCC,Children's and Education Services,Safeguarding Children and Young Peoples Services,Children's Services and Education,Third Party Payments,Other establishments,11-Jan-23,6694882,444,SUPPLIER,PATHWAYS TO INDEPENDENCE HOUSING (UK) LIMITED,300000020480095
Portsmouth City Council,PCC,Children's and Education Services,Safeguarding Children and Young Peoples Services,Children's Services and Education,Third Party Payments,Other establishments,11-Jan-23,6694882,444,SUPPLIER,PATHWAYS TO INDEPENDENCE HOUSING (UK) LIMITED,300000020480095
Portsmouth City Council,PCC,Children's and Education Services,Safeguarding Children and Young Peoples Services,Children's Services and Education,Third Party Payments,Other establishments,11-Jan-23,6694882,444,SUPPLIER,PATHWAYS TO INDEPENDENCE HOUSING (UK) LIMITED,300000020480095
Portsmouth City Council,PCC,Children's and Education Services,Children Looked After,Children's Services and Education,Third Party Payments,Other establishments,12-Jan-23,6695470,635,SUPPLIER,FAIR WAYS COMMUNITY BENEFIT SOCEITY T/A FAIRWAYS CARE (UK) LTD,300000020459125
Portsmouth City Council,PCC,Children's and Education Services,Children Looked After,Children's Services and Education,Third Party Payments,Other establishments,12-Jan-23,6695470,"3,810.00",SUPPLIER,FAIR WAYS COMMUNITY BENEFIT SOCEITY T/A FAIRWAYS CARE (UK) LTD,300000020459125
Portsmouth City Council,PCC,Children's and Education Services,Children Looked After,Children's Services and Education,Third Party Payments,Other establishments,12-Jan-23,6695470,"4,445.00",SUPPLIER,FAIR WAYS COMMUNITY BENEFIT SOCEITY T/A FAIRWAYS CARE (UK) LTD,300000020459125
Portsmouth City Council,PCC,Children's and Education Services,Children Looked After,Children's Services and Education,Third Party Payments,Other establishments,12-Jan-23,6695470,-0.09,SUPPLIER,FAIR WAYS COMMUNITY BENEFIT SOCEITY T/A FAIRWAYS CARE (UK) LTD,300000020459125
Portsmouth City Council,PCC,Children's and Education Services,Children Looked After,Children's Services and Education,Third Party Payments,Other establishments,12-Jan-23,6695470,"1,897.24",SUPPLIER,FAIR WAYS COMMUNITY BENEFIT SOCEITY T/A FAIRWAYS CARE (UK) LTD,300000020459125
Portsmouth City Council,PCC,Children's and Education Services,Children Looked After,Children's Services and Education,Third Party Payments,Other establishments,12-Jan-23,6695470,"4,426.89",SUPPLIER,FAIR WAYS COMMUNITY BENEFIT SOCEITY T/A FAIRWAYS CARE (UK) LTD,300000020459125
Portsmouth City Council,PCC,Children's and Education Services,Children Looked After,Children's Services and Education,Third Party Payments,Other establishments,12-Jan-23,6695470,"4,426.89",SUPPLIER,FAIR WAYS COMMUNITY BENEFIT SOCEITY T/A FAIRWAYS CARE (UK) LTD,300000020459125
Portsmouth City Council,PCC,Children's and Education Services,Children Looked After,Children's Services and Education,Third Party Payments,Other establishments,12-Jan-23,6695470,"4,426.89",SUPPLIER,FAIR WAYS COMMUNITY BENEFIT SOCEITY T/A FAIRWAYS CARE (UK) LTD,300000020459125
Portsmouth City Council,PCC,Children's and Education Services,Children Looked After,Children's Services and Education,Third Party Payments,Other establishments,12-Jan-23,6695470,"4,426.89",SUPPLIER,FAIR WAYS COMMUNITY BENEFIT SOCEITY T/A FAIRWAYS CARE (UK) LTD,300000020459125
Portsmouth City Council,PCC,Children's and Education Services,Safeguarding Children and Young Peoples Services,Children's Services and Education,Third Party Payments,Other establishments,12-Jan-23,6695569,-0.05,SUPPLIER,TWO SAINTS LTD,300000020462955
Portsmouth City Council,PCC,Children's and Education Services,Safeguarding Children and Young Peoples Services,Children's Services and Education,Third Party Payments,Other establishments,12-Jan-23,6695569,110.57,SUPPLIER,TWO SAINTS LTD,300000020462955
Portsmouth City Council,PCC,Children's and Education Services,Safeguarding Children and Young Peoples Services,Children's Services and Education,Third Party Payments,Other establishments,12-Jan-23,6695569,138.21,SUPPLIER,TWO SAINTS LTD,300000020462955
Portsmouth City Council,PCC,Children's and Education Services,Safeguarding Children and Young Peoples Services,Children's Services and Education,Third Party Payments,Other establishments,12-Jan-23,6695569,193.49,SUPPLIER,TWO SAINTS LTD,300000020462955
Portsmouth City Council,PCC,Children's and Education Services,Safeguarding Children and Young Peoples Services,Children's Services and Education,Third Party Payments,Other establishments,12-Jan-23,6695569,193.49,SUPPLIER,TWO SAINTS LTD,300000020462955
Portsmouth City Council,PCC,Children's and Education Services,Safeguarding Children and Young Peoples Services,Children's Services and Education,Third Party Payments,Other establishments,12-Jan-23,6695569,193.49,SUPPLIER,TWO SAINTS LTD,300000020462955
Portsmouth City Council,PCC,Children's and Education Services,Safeguarding Children and Young Peoples Services,Children's Services and Education,Third Party Payments,Other establishments,12-Jan-23,6695569,-0.05,SUPPLIER,TWO SAINTS LTD,300000020462955
Portsmouth City Council,PCC,Children's and Education Services,Safeguarding Children and Young Peoples Services,Children's Services and Education,Third Party Payments,Other establishments,12-Jan-23,6695569,110.57,SUPPLIER,TWO SAINTS LTD,300000020462955
Portsmouth City Council,PCC,Children's and Education Services,Safeguarding Children and Young Peoples Services,Children's Services and Education,Third Party Payments,Other establishments,12-Jan-23,6695569,138.21,SUPPLIER,TWO SAINTS LTD,300000020462955
Portsmouth City Council,PCC,Children's and Education Services,Safeguarding Children and Young Peoples Services,Children's Services and Education,Third Party Payments,Other establishments,12-Jan-23,6695569,193.49,SUPPLIER,TWO SAINTS LTD,300000020462955
Portsmouth City Council,PCC,Children's and Education Services,Safeguarding Children and Young Peoples Services,Children's Services and Education,Third Party Payments,Other establishments,12-Jan-23,6695569,193.49,SUPPLIER,TWO SAINTS LTD,300000020462955
Portsmouth City Council,PCC,Children's and Education Services,Safeguarding Children and Young Peoples Services,Children's Services and Education,Third Party Payments,Other establishments,12-Jan-23,6695569,193.49,SUPPLIER,TWO SAINTS LTD,300000020462955
Portsmouth City Council,PCC,Children's and Education Services,Safeguarding Children and Young Peoples Services,Children's Services and Education,Third Party Payments,Other establishments,12-Jan-23,6695569,-0.05,SUPPLIER,TWO SAINTS LTD,300000020462955
Portsmouth City Council,PCC,Children's and Education Services,Safeguarding Children and Young Peoples Services,Children's Services and Education,Third Party Payments,Other establishments,12-Jan-23,6695569,110.57,SUPPLIER,TWO SAINTS LTD,300000020462955
Portsmouth City Council,PCC,Children's and Education Services,Safeguarding Children and Young Peoples Services,Children's Services and Education,Third Party Payments,Other establishments,12-Jan-23,6695569,138.21,SUPPLIER,TWO SAINTS LTD,300000020462955
Portsmouth City Council,PCC,Children's and Education Services,Safeguarding Children and Young Peoples Services,Children's Services and Education,Third Party Payments,Other establishments,12-Jan-23,6695569,193.49,SUPPLIER,TWO SAINTS LTD,300000020462955
Portsmouth City Council,PCC,Children's and Education Services,Safeguarding Children and Young Peoples Services,Children's Services and Education,Third Party Payments,Other establishments,12-Jan-23,6695569,193.49,SUPPLIER,TWO SAINTS LTD,300000020462955
Portsmouth City Council,PCC,Children's and Education Services,Safeguarding Children and Young Peoples Services,Children's Services and Education,Third Party Payments,Other establishments,12-Jan-23,6695569,193.49,SUPPLIER,TWO SAINTS LTD,300000020462955
Portsmouth City Council,PCC,Children's and Education Services,Safeguarding Children and Young Peoples Services,Children's Services and Education,Third Party Payments,Other establishments,12-Jan-23,6695569,5.05,SUPPLIER,TWO SAINTS LTD,300000020462955
Portsmouth City Council,PCC,Children's and Education Services,Safeguarding Children and Young Peoples Services,Children's Services and Education,Third Party Payments,Other establishments,12-Jan-23,6695569,110.57,SUPPLIER,TWO SAINTS LTD,300000020462955
Portsmouth City Council,PCC,Children's and Education Services,Safeguarding Children and Young Peoples Services,Children's Services and Education,Third Party Payments,Other establishments,12-Jan-23,6695569,138.21,SUPPLIER,TWO SAINTS LTD,300000020462955
Portsmouth City Council,PCC,Children's and Education Services,Safeguarding Children and Young Peoples Services,Children's Services and Education,Third Party Payments,Other establishments,12-Jan-23,6695569,193.49,SUPPLIER,TWO SAINTS LTD,300000020462955
Portsmouth City Council,PCC,Children's and Education Services,Safeguarding Children and Young Peoples Services,Children's Services and Education,Third Party Payments,Other establishments,12-Jan-23,6695569,193.49,SUPPLIER,TWO SAINTS LTD,300000020462955
Portsmouth City Council,PCC,Children's and Education Services,Safeguarding Children and Young Peoples Services,Children's Services and Education,Third Party Payments,Other establishments,12-Jan-23,6695569,193.49,SUPPLIER,TWO SAINTS LTD,300000020462955
Portsmouth City Council,PCC,Children's and Education Services,Safeguarding Children and Young Peoples Services,Children's Services and Education,Third Party Payments,Other establishments,12-Jan-23,6695569,8.27,SUPPLIER,TWO SAINTS LTD,300000020462955
Portsmouth City Council,PCC,Children's and Education Services,Safeguarding Children and Young Peoples Services,Children's Services and Education,Third Party Payments,Other establishments,12-Jan-23,6695569,16.54,SUPPLIER,TWO SAINTS LTD,300000020462955
Portsmouth City Council,PCC,Children's and Education Services,Safeguarding Children and Young Peoples Services,Children's Services and Education,Third Party Payments,Other establishments,12-Jan-23,6695569,41.36,SUPPLIER,TWO SAINTS LTD,300000020462955
Portsmouth City Council,PCC,Children's and Education Services,Safeguarding Children and Young Peoples Services,Children's Services and Education,Third Party Payments,Other establishments,12-Jan-23,6695569,49.63,SUPPLIER,TWO SAINTS LTD,300000020462955
Portsmouth City Council,PCC,Children's and Education Services,Safeguarding Children and Young Peoples Services,Children's Services and Education,Third Party Payments,Other establishments,12-Jan-23,6695569,57.9,SUPPLIER,TWO SAINTS LTD,300000020462955
Portsmouth City Council,PCC,Children's and Education Services,Safeguarding Children and Young Peoples Services,Children's Services and Education,Third Party Payments,Other establishments,12-Jan-23,6695569,57.9,SUPPLIER,TWO SAINTS LTD,300000020462955
Portsmouth City Council,PCC,Children's and Education Services,Safeguarding Children and Young Peoples Services,Children's Services and Education,Third Party Payments,Other establishments,12-Jan-23,6695569,57.9,SUPPLIER,TWO SAINTS LTD,300000020462955
Portsmouth City Council,PCC,Children's and Education Services,Safeguarding Children and Young Peoples Services,Children's Services and Education,Third Party Payments,Other establishments,12-Jan-23,6695569,16.54,SUPPLIER,TWO SAINTS LTD,300000020462955
Portsmouth City Council,PCC,Children's and Education Services,Safeguarding Children and Young Peoples Services,Children's Services and Education,Third Party Payments,Other establishments,12-Jan-23,6695569,41.36,SUPPLIER,TWO SAINTS LTD,300000020462955
Portsmouth City Council,PCC,Children's and Education Services,Safeguarding Children and Young Peoples Services,Children's Services and Education,Third Party Payments,Other establishments,12-Jan-23,6695569,57.9,SUPPLIER,TWO SAINTS LTD,300000020462955
Portsmouth City Council,PCC,Children's and Education Services,Safeguarding Children and Young Peoples Services,Children's Services and Education,Third Party Payments,Other establishments,12-Jan-23,6695569,57.9,SUPPLIER,TWO SAINTS LTD,300000020462955
Portsmouth City Council,PCC,Children's and Education Services,Safeguarding Children and Young Peoples Services,Children's Services and Education,Third Party Payments,Other establishments,12-Jan-23,6695569,57.9,SUPPLIER,TWO SAINTS LTD,300000020462955
Portsmouth City Council,PCC,Children's and Education Services,Children Looked After,Children's Services and Education,Third Party Payments,Other establishments,13-Jan-23,6695730,0.06,SUPPLIER,FOSTERING SOLUTIONS,300000009793967
Portsmouth City Council,PCC,Children's and Education Services,Children Looked After,Children's Services and Education,Third Party Payments,Other establishments,13-Jan-23,6695730,322.02,SUPPLIER,FOSTERING SOLUTIONS,300000009793967
Portsmouth City Council,PCC,Children's and Education Services,Children Looked After,Children's Services and Education,Third Party Payments,Other establishments,13-Jan-23,6695730,751.37,SUPPLIER,FOSTERING SOLUTIONS,300000009793967
Portsmouth City Council,PCC,Children's and Education Services,Children Looked After,Children's Services and Education,Third Party Payments,Other establishments,13-Jan-23,6695730,751.37,SUPPLIER,FOSTERING SOLUTIONS,300000009793967
Portsmouth City Council,PCC,Children's and Education Services,Children Looked After,Children's Services and Education,Third Party Payments,Other establishments,13-Jan-23,6695730,751.37,SUPPLIER,FOSTERING SOLUTIONS,300000009793967
Portsmouth City Council,PCC,Children's and Education Services,Children Looked After,Children's Services and Education,Third Party Payments,Other establishments,13-Jan-23,6695730,751.37,SUPPLIER,FOSTERING SOLUTIONS,300000009793967
Portsmouth City Council,PCC,Housing Revenue Account,Special Services,"Housing, Neighbourhood and Building Services",Premises-Related Expenditure,Water Services,13-Jan-23,6695734,22.8,LIMITED COMPANY,WAVE LTD,300000457049455
Portsmouth City Council,PCC,Housing Revenue Account,"Rents, Rates, Taxes and Other Charges","Housing, Neighbourhood and Building Services",Premises-Related Expenditure,Water Services,13-Jan-23,6695734,6.53,LIMITED COMPANY,WAVE LTD,300000457049455
Portsmouth City Council,PCC,Housing Revenue Account,"Rents, Rates, Taxes and Other Charges","Housing, Neighbourhood and Building Services",Premises-Related Expenditure,Water Services,13-Jan-23,6695734,3.73,LIMITED COMPANY,WAVE LTD,300000457049455
Portsmouth City Council,PCC,Housing Revenue Account,"Rents, Rates, Taxes and Other Charges","Housing, Neighbourhood and Building Services",Premises-Related Expenditure,Water Services,13-Jan-23,6695734,20.55,LIMITED COMPANY,WAVE LTD,300000457049455
Portsmouth City Council,PCC,Cultural and Related Services,Open Spaces,"Culture, Leisure & Regulatory Services",Premises-Related Expenditure,Water Services,13-Jan-23,6695734,31.95,LIMITED COMPANY,WAVE LTD,300000457049455
Portsmouth City Council,PCC,Housing Revenue Account,Special Services,"Housing, Neighbourhood and Building Services",Premises-Related Expenditure,Water Services,13-Jan-23,6695734,58.13,LIMITED COMPANY,WAVE LTD,300000457049455
Portsmouth City Council,PCC,Housing Revenue Account,Special Services,"Housing, Neighbourhood and Building Services",Premises-Related Expenditure,Water Services,13-Jan-23,6695734,44.78,LIMITED COMPANY,WAVE LTD,300000457049455
Portsmouth City Council,PCC,Housing Revenue Account,Special Services,"Housing, Neighbourhood and Building Services",Premises-Related Expenditure,Water Services,13-Jan-23,6695734,34.11,LIMITED COMPANY,WAVE LTD,300000457049455
Portsmouth City Council,PCC,Housing Revenue Account,Special Services,"Housing, Neighbourhood and Building Services",Premises-Related Expenditure,Water Services,13-Jan-23,6695734,23.83,LIMITED COMPANY,WAVE LTD,300000457049455
Portsmouth City Council,PCC,Cultural and Related Services,Open Spaces,"Culture, Leisure & Regulatory Services",Premises-Related Expenditure,Water Services,13-Jan-23,6695734,4.5,LIMITED COMPANY,WAVE LTD,300000457049455
Portsmouth City Council,PCC,Cultural and Related Services,Open Spaces,"Culture, Leisure & Regulatory Services",Premises-Related Expenditure,Water Services,13-Jan-23,6695734,9.49,LIMITED COMPANY,WAVE LTD,300000457049455
Portsmouth City Council,PCC,Cultural and Related Services,Open Spaces,"Culture, Leisure & Regulatory Services",Premises-Related Expenditure,Water Services,13-Jan-23,6695734,16.97,LIMITED COMPANY,WAVE LTD,300000457049455
Portsmouth City Council,PCC,Cultural and Related Services,Open Spaces,"Culture, Leisure & Regulatory Services",Premises-Related Expenditure,Water Services,13-Jan-23,6695734,78.16,LIMITED COMPANY,WAVE LTD,300000457049455
Portsmouth City Council,PCC,Cultural and Related Services,Open Spaces,"Culture, Leisure & Regulatory Services",Premises-Related Expenditure,Water Services,13-Jan-23,6695734,4.5,LIMITED COMPANY,WAVE LTD,300000457049455
Portsmouth City Council,PCC,Cultural and Related Services,Open Spaces,"Culture, Leisure & Regulatory Services",Premises-Related Expenditure,Water Services,13-Jan-23,6695734,6.16,LIMITED COMPANY,WAVE LTD,300000457049455
Portsmouth City Council,PCC,Children's and Education Services,Children Looked After,Children's Services and Education,Premises-Related Expenditure,Water Services,13-Jan-23,6695734,170.55,LIMITED COMPANY,WAVE LTD,300000457049455
Portsmouth City Council,PCC,Costs below Net Cost of Services,Trading,"Housing, Neighbourhood and Building Services",Premises-Related Expenditure,Water Services,13-Jan-23,6695734,"1,051.41",LIMITED COMPANY,WAVE LTD,300000457049455
Portsmouth City Council,PCC,Cultural and Related Services,Open Spaces,"Culture, Leisure & Regulatory Services",Premises-Related Expenditure,Water Services,13-Jan-23,6695734,93.14,LIMITED COMPANY,WAVE LTD,300000457049455
Portsmouth City Council,PCC,Housing Revenue Account,Special Services,"Housing, Neighbourhood and Building Services",Premises-Related Expenditure,Water Services,13-Jan-23,6695734,150.93,LIMITED COMPANY,WAVE LTD,300000457049455
Portsmouth City Council,PCC,Cultural and Related Services,Open Spaces,"Culture, Leisure & Regulatory Services",Premises-Related Expenditure,Water Services,13-Jan-23,6695734,2.83,LIMITED COMPANY,WAVE LTD,300000457049455
Portsmouth City Council,PCC,Environmental and Regulatory Services,Regulatory Services,"Housing, Neighbourhood and Building Services",Premises-Related Expenditure,Water Services,13-Jan-23,6695734,476.07,LIMITED COMPANY,WAVE LTD,300000457049455
Portsmouth City Council,PCC,Costs below Net Cost of Services,Trading,Regeneration,Premises-Related Expenditure,Water Services,13-Jan-23,6695734,593.44,LIMITED COMPANY,WAVE LTD,300000457049455
Portsmouth City Council,PCC,Cultural and Related Services,Open Spaces,"Culture, Leisure & Regulatory Services",Premises-Related Expenditure,Water Services,13-Jan-23,6695734,2.83,LIMITED COMPANY,WAVE LTD,300000457049455
Portsmouth City Council,PCC,Cultural and Related Services,Open Spaces,"Culture, Leisure & Regulatory Services",Premises-Related Expenditure,Water Services,13-Jan-23,6695734,2.83,LIMITED COMPANY,WAVE LTD,300000457049455
Portsmouth City Council,PCC,Cultural and Related Services,Open Spaces,"Culture, Leisure & Regulatory Services",Premises-Related Expenditure,Water Services,13-Jan-23,6695734,8.28,LIMITED COMPANY,WAVE LTD,300000457049455
Portsmouth City Council,PCC,Environmental and Regulatory Services,Regulatory Services,"Housing, Neighbourhood and Building Services",Premises-Related Expenditure,Water Services,13-Jan-23,6695734,635.85,LIMITED COMPANY,WAVE LTD,300000457049455
Portsmouth City Council,PCC,Cultural and Related Services,Recreation and Sport,"Culture, Leisure & Regulatory Services",Premises-Related Expenditure,Water Services,13-Jan-23,6695734,11.59,LIMITED COMPANY,WAVE LTD,300000457049455
Portsmouth City Council,PCC,Housing Revenue Account,"Rents, Rates, Taxes and Other Charges","Housing, Neighbourhood and Building Services",Premises-Related Expenditure,Water Services,13-Jan-23,6695734,33.66,LIMITED COMPANY,WAVE LTD,300000457049455
Portsmouth City Council,PCC,Cultural and Related Services,Open Spaces,"Culture, Leisure & Regulatory Services",Premises-Related Expenditure,Water Services,13-Jan-23,6695734,114.78,LIMITED COMPANY,WAVE LTD,300000457049455
Portsmouth City Council,PCC,Cultural and Related Services,Library Service,"Culture, Leisure & Regulatory Services",Premises-Related Expenditure,Water Services,13-Jan-23,6695734,27.97,LIMITED COMPANY,WAVE LTD,300000457049455
Portsmouth City Council,PCC,Planning Services,Business support,Regeneration,Premises-Related Expenditure,Water Services,13-Jan-23,6695734,64.4,LIMITED COMPANY,WAVE LTD,300000457049455
Portsmouth City Council,PCC,Cultural and Related Services,Open Spaces,"Culture, Leisure & Regulatory Services",Premises-Related Expenditure,Water Services,13-Jan-23,6695734,115.17,LIMITED COMPANY,WAVE LTD,300000457049455
Portsmouth City Council,PCC,Costs below Net Cost of Services,Trading,Regeneration,Premises-Related Expenditure,Water Services,13-Jan-23,6695734,42.41,LIMITED COMPANY,WAVE LTD,300000457049455
Portsmouth City Council,PCC,Housing Revenue Account,Special Services,"Housing, Neighbourhood and Building Services",Premises-Related Expenditure,Water Services,13-Jan-23,6695734,73.12,LIMITED COMPANY,WAVE LTD,300000457049455
Portsmouth City Council,PCC,Cultural and Related Services,Open Spaces,"Culture, Leisure & Regulatory Services",Premises-Related Expenditure,Water Services,13-Jan-23,6695734,15.31,LIMITED COMPANY,WAVE LTD,300000457049455
Portsmouth City Council,PCC,Children's and Education Services,Primary Schools,Children's Services and Education,Premises-Related Expenditure,Water Services,13-Jan-23,6695734,608.85,LIMITED COMPANY,WAVE LTD,300000457049455
Portsmouth City Council,PCC,Housing Revenue Account,Special Services,"Housing, Neighbourhood and Building Services",Premises-Related Expenditure,Water Services,13-Jan-23,6695734,20,LIMITED COMPANY,WAVE LTD,300000457049455
Portsmouth City Council,PCC,Environmental and Regulatory Services,Regulatory Services,"Housing, Neighbourhood and Building Services",Premises-Related Expenditure,Water Services,13-Jan-23,6695734,159.71,LIMITED COMPANY,WAVE LTD,300000457049455
Portsmouth City Council,PCC,Housing Revenue Account,Special Services,"Housing, Neighbourhood and Building Services",Premises-Related Expenditure,Water Services,13-Jan-23,6695734,824.02,LIMITED COMPANY,WAVE LTD,300000457049455
Portsmouth City Council,PCC,Housing Revenue Account,Supervision and Management,"Housing, Neighbourhood and Building Services",Premises-Related Expenditure,Water Services,13-Jan-23,6695734,164.76,LIMITED COMPANY,WAVE LTD,300000457049455
Portsmouth City Council,PCC,Environmental and Regulatory Services,Regulatory Services,"Housing, Neighbourhood and Building Services",Premises-Related Expenditure,Water Services,13-Jan-23,6695734,436.83,LIMITED COMPANY,WAVE LTD,300000457049455
Portsmouth City Council,PCC,Children's and Education Services,Primary Schools,Children's Services and Education,Premises-Related Expenditure,Water Services,13-Jan-23,6695734,156.15,LIMITED COMPANY,WAVE LTD,300000457049455
Portsmouth City Council,PCC,Housing Revenue Account,"Rents, Rates, Taxes and Other Charges","Housing, Neighbourhood and Building Services",Premises-Related Expenditure,Water Services,13-Jan-23,6695734,117.7,LIMITED COMPANY,WAVE LTD,300000457049455
Portsmouth City Council,PCC,Cultural and Related Services,Library Service,"Culture, Leisure & Regulatory Services",Premises-Related Expenditure,Water Services,13-Jan-23,6695734,50.83,LIMITED COMPANY,WAVE LTD,300000457049455
Portsmouth City Council,PCC,Cultural and Related Services,Open Spaces,"Culture, Leisure & Regulatory Services",Premises-Related Expenditure,Water Services,13-Jan-23,6695734,16.61,LIMITED COMPANY,WAVE LTD,300000457049455
Portsmouth City Council,PCC,Cultural and Related Services,Open Spaces,"Culture, Leisure & Regulatory Services",Premises-Related Expenditure,Water Services,13-Jan-23,6695734,19.08,LIMITED COMPANY,WAVE LTD,300000457049455
Portsmouth City Council,PCC,Cultural and Related Services,Culture and Heritage,"Culture, Leisure & Regulatory Services",Premises-Related Expenditure,Water Services,13-Jan-23,6695734,19.18,LIMITED COMPANY,WAVE LTD,300000457049455
Portsmouth City Council,PCC,Adult Social Care,Physical Support Older People (85+),Adult Care,Third Party Payments,Other establishments,26-Jan-23,6697952,"1,132.60",SUPPLIER,ABICARE SERVICES LTD,300000020470310
Portsmouth City Council,PCC,Cultural and Related Services,Open Spaces,"Culture, Leisure & Regulatory Services",Premises-Related Expenditure,Water Services,13-Jan-23,6695734,14.92,LIMITED COMPANY,WAVE LTD,300000457049455
Portsmouth City Council,PCC,Cultural and Related Services,Open Spaces,"Culture, Leisure & Regulatory Services",Premises-Related Expenditure,Water Services,13-Jan-23,6695734,834.43,LIMITED COMPANY,WAVE LTD,300000457049455
Portsmouth City Council,PCC,Children's and Education Services,Primary Schools,Children's Services and Education,Premises-Related Expenditure,Water Services,13-Jan-23,6695734,471.15,LIMITED COMPANY,WAVE LTD,300000457049455
Portsmouth City Council,PCC,Cultural and Related Services,Open Spaces,"Culture, Leisure & Regulatory Services",Premises-Related Expenditure,Water Services,13-Jan-23,6695734,142.92,LIMITED COMPANY,WAVE LTD,300000457049455
Portsmouth City Council,PCC,Cultural and Related Services,Recreation and Sport,"Culture, Leisure & Regulatory Services",Premises-Related Expenditure,Water Services,13-Jan-23,6695734,8.34,LIMITED COMPANY,WAVE LTD,300000457049455
Portsmouth City Council,PCC,Cultural and Related Services,Open Spaces,"Culture, Leisure & Regulatory Services",Premises-Related Expenditure,Water Services,13-Jan-23,6695734,644.93,LIMITED COMPANY,WAVE LTD,300000457049455
Portsmouth City Council,PCC,Cultural and Related Services,Open Spaces,"Culture, Leisure & Regulatory Services",Premises-Related Expenditure,Water Services,13-Jan-23,6695734,4.5,LIMITED COMPANY,WAVE LTD,300000457049455
Portsmouth City Council,PCC,Cultural and Related Services,Open Spaces,"Culture, Leisure & Regulatory Services",Premises-Related Expenditure,Water Services,13-Jan-23,6695734,201,LIMITED COMPANY,WAVE LTD,300000457049455
Portsmouth City Council,PCC,Cultural and Related Services,Open Spaces,"Culture, Leisure & Regulatory Services",Premises-Related Expenditure,Water Services,13-Jan-23,6695734,176.38,LIMITED COMPANY,WAVE LTD,300000457049455
Portsmouth City Council,PCC,Cultural and Related Services,Open Spaces,"Culture, Leisure & Regulatory Services",Premises-Related Expenditure,Water Services,13-Jan-23,6695734,6.6,LIMITED COMPANY,WAVE LTD,300000457049455
Portsmouth City Council,PCC,Housing Revenue Account,"Rents, Rates, Taxes and Other Charges","Housing, Neighbourhood and Building Services",Premises-Related Expenditure,Water Services,13-Jan-23,6695734,84.46,LIMITED COMPANY,WAVE LTD,300000457049455
Portsmouth City Council,PCC,Housing Revenue Account,Special Services,"Housing, Neighbourhood and Building Services",Premises-Related Expenditure,Water Services,13-Jan-23,6695734,24.79,LIMITED COMPANY,WAVE LTD,300000457049455
Portsmouth City Council,PCC,Cultural and Related Services,Open Spaces,"Culture, Leisure & Regulatory Services",Premises-Related Expenditure,Water Services,13-Jan-23,6695734,61.54,LIMITED COMPANY,WAVE LTD,300000457049455
Portsmouth City Council,PCC,Environmental and Regulatory Services,Regulatory Services,"Housing, Neighbourhood and Building Services",Premises-Related Expenditure,Water Services,13-Jan-23,6695734,868.5,LIMITED COMPANY,WAVE LTD,300000457049455
Portsmouth City Council,PCC,Cultural and Related Services,Open Spaces,"Culture, Leisure & Regulatory Services",Premises-Related Expenditure,Water Services,13-Jan-23,6695734,2.83,LIMITED COMPANY,WAVE LTD,300000457049455
Portsmouth City Council,PCC,Housing Revenue Account,Special Services,"Housing, Neighbourhood and Building Services",Premises-Related Expenditure,Water Services,13-Jan-23,6695734,28.41,LIMITED COMPANY,WAVE LTD,300000457049455
Portsmouth City Council,PCC,Housing Revenue Account,Supervision and Management,"Housing, Neighbourhood and Building Services",Premises-Related Expenditure,Water Services,13-Jan-23,6695734,47.13,LIMITED COMPANY,WAVE LTD,300000457049455
Portsmouth City Council,PCC,Cultural and Related Services,Open Spaces,"Culture, Leisure & Regulatory Services",Premises-Related Expenditure,Water Services,13-Jan-23,6695734,20.4,LIMITED COMPANY,WAVE LTD,300000457049455
Portsmouth City Council,PCC,Costs below Net Cost of Services,Trading,Regeneration,Premises-Related Expenditure,Water Services,13-Jan-23,6695734,2,LIMITED COMPANY,WAVE LTD,300000457049455
Portsmouth City Council,PCC,Cultural and Related Services,Open Spaces,"Culture, Leisure & Regulatory Services",Premises-Related Expenditure,Water Services,13-Jan-23,6695734,726.69,LIMITED COMPANY,WAVE LTD,300000457049455
Portsmouth City Council,PCC,Cultural and Related Services,Open Spaces,"Culture, Leisure & Regulatory Services",Premises-Related Expenditure,Water Services,13-Jan-23,6695734,"2,557.06",LIMITED COMPANY,WAVE LTD,300000457049455
Portsmouth City Council,PCC,Highways and Transport Services,"Airports, Harbours and Toll Facilities",Portsmouth International Port,Premises-Related Expenditure,Water Services,13-Jan-23,6695734,2,LIMITED COMPANY,WAVE LTD,300000457049455
Portsmouth City Council,PCC,Housing Revenue Account,Special Services,"Housing, Neighbourhood and Building Services",Premises-Related Expenditure,Water Services,13-Jan-23,6695734,590.9,LIMITED COMPANY,WAVE LTD,300000457049455
Portsmouth City Council,PCC,Cultural and Related Services,Culture and Heritage,"Culture, Leisure & Regulatory Services",Premises-Related Expenditure,Water Services,13-Jan-23,6695734,"1,540.01",LIMITED COMPANY,WAVE LTD,300000457049455
Portsmouth City Council,PCC,Support Service / Transparency Costs Unallocated,AMS,Corporate Services,Premises-Related Expenditure,Water Services,13-Jan-23,6695734,"2,674.73",LIMITED COMPANY,WAVE LTD,300000457049455
Portsmouth City Council,PCC,Cultural and Related Services,Open Spaces,"Culture, Leisure & Regulatory Services",Premises-Related Expenditure,Water Services,13-Jan-23,6695734,-407.71,LIMITED COMPANY,WAVE LTD,300000457049455
Portsmouth City Council,PCC,Adult Social Care,Social Care Activities,Adult Care,Third Party Payments,Other establishments,26-Jan-23,6697825,"14,898.00",SUPPLIER,ADMIRAL CARE LTD,300000020477405
Portsmouth City Council,PCC,Environmental and Regulatory Services,"Cemetery, Cremation and Mortuary Services","Culture, Leisure & Regulatory Services",Premises-Related Expenditure,Water Services,13-Jan-23,6695734,70.45,LIMITED COMPANY,WAVE LTD,300000457049455
Portsmouth City Council,PCC,Children's and Education Services,Primary Schools,Children's Services and Education,Premises-Related Expenditure,Water Services,13-Jan-23,6695734,16.75,LIMITED COMPANY,WAVE LTD,300000457049455
Portsmouth City Council,PCC,Highways and Transport Services,Public Transport,Regeneration,Premises-Related Expenditure,Water Services,13-Jan-23,6695734,106.48,LIMITED COMPANY,WAVE LTD,300000457049455
Portsmouth City Council,PCC,Housing Revenue Account,Special Services,"Housing, Neighbourhood and Building Services",Premises-Related Expenditure,Water Services,13-Jan-23,6695734,48.84,LIMITED COMPANY,WAVE LTD,300000457049455
Portsmouth City Council,PCC,Housing Revenue Account,Special Services,"Housing, Neighbourhood and Building Services",Premises-Related Expenditure,Water Services,13-Jan-23,6695734,48.84,LIMITED COMPANY,WAVE LTD,300000457049455
Portsmouth City Council,PCC,Housing Revenue Account,Special Services,"Housing, Neighbourhood and Building Services",Premises-Related Expenditure,Water Services,13-Jan-23,6695734,47.13,LIMITED COMPANY,WAVE LTD,300000457049455
Portsmouth City Council,PCC,Housing Revenue Account,"Rents, Rates, Taxes and Other Charges","Housing, Neighbourhood and Building Services",Premises-Related Expenditure,Water Services,13-Jan-23,6695734,84.99,LIMITED COMPANY,WAVE LTD,300000457049455
Portsmouth City Council,PCC,Planning Services,Business support,Regeneration,Premises-Related Expenditure,Water Services,13-Jan-23,6695734,6.6,LIMITED COMPANY,WAVE LTD,300000457049455
Portsmouth City Council,PCC,Housing Revenue Account,Supervision and Management,"Housing, Neighbourhood and Building Services",Premises-Related Expenditure,Water Services,13-Jan-23,6695734,355.81,LIMITED COMPANY,WAVE LTD,300000457049455
Portsmouth City Council,PCC,Highways and Transport Services,Parking Services,Regeneration,Premises-Related Expenditure,Water Services,13-Jan-23,6695734,87.66,LIMITED COMPANY,WAVE LTD,300000457049455
Portsmouth City Council,PCC,Housing Revenue Account,Special Services,"Housing, Neighbourhood and Building Services",Premises-Related Expenditure,Water Services,13-Jan-23,6695734,263.31,LIMITED COMPANY,WAVE LTD,300000457049455
Portsmouth City Council,PCC,Cultural and Related Services,Open Spaces,"Culture, Leisure & Regulatory Services",Premises-Related Expenditure,Water Services,13-Jan-23,6695734,16.14,LIMITED COMPANY,WAVE LTD,300000457049455
Portsmouth City Council,PCC,Cultural and Related Services,Open Spaces,"Culture, Leisure & Regulatory Services",Premises-Related Expenditure,Water Services,13-Jan-23,6695734,9.49,LIMITED COMPANY,WAVE LTD,300000457049455
Portsmouth City Council,PCC,Housing Revenue Account,"Rents, Rates, Taxes and Other Charges","Housing, Neighbourhood and Building Services",Premises-Related Expenditure,Water Services,13-Jan-23,6695734,93.84,LIMITED COMPANY,WAVE LTD,300000457049455
Portsmouth City Council,PCC,Housing Revenue Account,Special Services,"Housing, Neighbourhood and Building Services",Premises-Related Expenditure,Water Services,13-Jan-23,6695734,53.22,LIMITED COMPANY,WAVE LTD,300000457049455
Portsmouth City Council,PCC,Housing Revenue Account,"Rents, Rates, Taxes and Other Charges","Housing, Neighbourhood and Building Services",Premises-Related Expenditure,Water Services,13-Jan-23,6695734,31.69,LIMITED COMPANY,WAVE LTD,300000457049455
Portsmouth City Council,PCC,Highways and Transport Services,"Transport Planning, Policy and Strategy",Regeneration,Premises-Related Expenditure,Water Services,13-Jan-23,6695734,5.33,LIMITED COMPANY,WAVE LTD,300000457049455
Portsmouth City Council,PCC,Adult Social Care,Physical Support Older People (85+),Adult Care,Third Party Payments,Other establishments,31-Jan-23,6698354,-813.12,SUPPLIER,ADMIRAL CARE LTD,300000020477405
Portsmouth City Council,PCC,Cultural and Related Services,Culture and Heritage,"Culture, Leisure & Regulatory Services",Premises-Related Expenditure,Water Services,13-Jan-23,6695734,52.81,LIMITED COMPANY,WAVE LTD,300000457049455
Portsmouth City Council,PCC,Costs below Net Cost of Services,Trading,"Housing, Neighbourhood and Building Services",Premises-Related Expenditure,Water Services,13-Jan-23,6695734,"2,048.11",LIMITED COMPANY,WAVE LTD,300000457049455
Portsmouth City Council,PCC,Housing Revenue Account,Special Services,"Housing, Neighbourhood and Building Services",Premises-Related Expenditure,Water Services,13-Jan-23,6695734,165.31,LIMITED COMPANY,WAVE LTD,300000457049455
Portsmouth City Council,PCC,Cultural and Related Services,Open Spaces,"Culture, Leisure & Regulatory Services",Premises-Related Expenditure,Water Services,13-Jan-23,6695734,230.45,LIMITED COMPANY,WAVE LTD,300000457049455
Portsmouth City Council,PCC,Cultural and Related Services,Open Spaces,"Culture, Leisure & Regulatory Services",Premises-Related Expenditure,Water Services,13-Jan-23,6695734,269.58,LIMITED COMPANY,WAVE LTD,300000457049455
Portsmouth City Council,PCC,Other,Suspense and Capital Schemes,"Housing, Neighbourhood and Building Services",Premises-Related Expenditure,Water Services,13-Jan-23,6695734,308.58,LIMITED COMPANY,WAVE LTD,300000457049455
Portsmouth City Council,PCC,Adult Social Care,Physical Support Older People (85+),Adult Care,Third Party Payments,Other establishments,31-Jan-23,6698354,-813.12,SUPPLIER,ADMIRAL CARE LTD,300000020477405
Portsmouth City Council,PCC,Environmental and Regulatory Services,"Cemetery, Cremation and Mortuary Services","Culture, Leisure & Regulatory Services",Premises-Related Expenditure,Water Services,13-Jan-23,6695734,103.99,LIMITED COMPANY,WAVE LTD,300000457049455
Portsmouth City Council,PCC,Cultural and Related Services,Library Service,"Culture, Leisure & Regulatory Services",Premises-Related Expenditure,Water Services,13-Jan-23,6695734,28.41,LIMITED COMPANY,WAVE LTD,300000457049455
Portsmouth City Council,PCC,Cultural and Related Services,Open Spaces,"Culture, Leisure & Regulatory Services",Premises-Related Expenditure,Water Services,13-Jan-23,6695734,19.09,LIMITED COMPANY,WAVE LTD,300000457049455
Portsmouth City Council,PCC,Children's and Education Services,Primary Schools,Children's Services and Education,Premises-Related Expenditure,Water Services,13-Jan-23,6695734,280.24,LIMITED COMPANY,WAVE LTD,300000457049455
Portsmouth City Council,PCC,Children's and Education Services,Primary Schools,Children's Services and Education,Premises-Related Expenditure,Water Services,13-Jan-23,6695734,202.05,LIMITED COMPANY,WAVE LTD,300000457049455
Portsmouth City Council,PCC,Environmental and Regulatory Services,"Cemetery, Cremation and Mortuary Services","Culture, Leisure & Regulatory Services",Premises-Related Expenditure,Water Services,13-Jan-23,6695734,52.81,LIMITED COMPANY,WAVE LTD,300000457049455
Portsmouth City Council,PCC,Cultural and Related Services,Open Spaces,"Culture, Leisure & Regulatory Services",Premises-Related Expenditure,Water Services,13-Jan-23,6695734,235.01,LIMITED COMPANY,WAVE LTD,300000457049455
Portsmouth City Council,PCC,Cultural and Related Services,Library Service,"Culture, Leisure & Regulatory Services",Premises-Related Expenditure,Water Services,13-Jan-23,6695734,19.56,LIMITED COMPANY,WAVE LTD,300000457049455
Portsmouth City Council,PCC,Cultural and Related Services,Open Spaces,"Culture, Leisure & Regulatory Services",Premises-Related Expenditure,Water Services,13-Jan-23,6695734,80.68,LIMITED COMPANY,WAVE LTD,300000457049455
Portsmouth City Council,PCC,Cultural and Related Services,Open Spaces,"Culture, Leisure & Regulatory Services",Premises-Related Expenditure,Water Services,13-Jan-23,6695734,201.13,LIMITED COMPANY,WAVE LTD,300000457049455
Portsmouth City Council,PCC,Cultural and Related Services,Open Spaces,"Culture, Leisure & Regulatory Services",Premises-Related Expenditure,Water Services,13-Jan-23,6695734,115.59,LIMITED COMPANY,WAVE LTD,300000457049455
Portsmouth City Council,PCC,Housing Revenue Account,Supervision and Management,"Housing, Neighbourhood and Building Services",Premises-Related Expenditure,Water Services,13-Jan-23,6695734,44.78,LIMITED COMPANY,WAVE LTD,300000457049455
Portsmouth City Council,PCC,Housing Revenue Account,Special Services,"Housing, Neighbourhood and Building Services",Premises-Related Expenditure,Water Services,13-Jan-23,6695734,103.27,LIMITED COMPANY,WAVE LTD,300000457049455
Portsmouth City Council,PCC,Housing Revenue Account,Special Services,"Housing, Neighbourhood and Building Services",Premises-Related Expenditure,Water Services,13-Jan-23,6695734,6.6,LIMITED COMPANY,WAVE LTD,300000457049455
Portsmouth City Council,PCC,Planning Services,Business support,Regeneration,Premises-Related Expenditure,Water Services,13-Jan-23,6695734,167.54,LIMITED COMPANY,WAVE LTD,300000457049455
Portsmouth City Council,PCC,Housing Revenue Account,Special Services,"Housing, Neighbourhood and Building Services",Premises-Related Expenditure,Water Services,13-Jan-23,6695734,5.54,LIMITED COMPANY,WAVE LTD,300000457049455
Portsmouth City Council,PCC,Housing Revenue Account,"Rents, Rates, Taxes and Other Charges","Housing, Neighbourhood and Building Services",Premises-Related Expenditure,Water Services,13-Jan-23,6695734,5.33,LIMITED COMPANY,WAVE LTD,300000457049455
Portsmouth City Council,PCC,Housing Revenue Account,Special Services,"Housing, Neighbourhood and Building Services",Premises-Related Expenditure,Water Services,13-Jan-23,6695734,210.47,LIMITED COMPANY,WAVE LTD,300000457049455
Portsmouth City Council,PCC,Costs below Net Cost of Services,Trading,Regeneration,Premises-Related Expenditure,Water Services,13-Jan-23,6695734,2.83,LIMITED COMPANY,WAVE LTD,300000457049455
Portsmouth City Council,PCC,Costs below Net Cost of Services,Trading,Regeneration,Premises-Related Expenditure,Water Services,13-Jan-23,6695734,25.17,LIMITED COMPANY,WAVE LTD,300000457049455
Portsmouth City Council,PCC,Children's and Education Services,Primary Schools,Children's Services and Education,Premises-Related Expenditure,Water Services,13-Jan-23,6695734,137.28,LIMITED COMPANY,WAVE LTD,300000457049455
Portsmouth City Council,PCC,Housing Revenue Account,Special Services,"Housing, Neighbourhood and Building Services",Premises-Related Expenditure,Water Services,13-Jan-23,6695734,188.18,LIMITED COMPANY,WAVE LTD,300000457049455
Portsmouth City Council,PCC,Housing Revenue Account,Special Services,"Housing, Neighbourhood and Building Services",Premises-Related Expenditure,Water Services,13-Jan-23,6695734,2,LIMITED COMPANY,WAVE LTD,300000457049455
Portsmouth City Council,PCC,Cultural and Related Services,Culture and Heritage,"Culture, Leisure & Regulatory Services",Premises-Related Expenditure,Water Services,13-Jan-23,6695734,37.55,LIMITED COMPANY,WAVE LTD,300000457049455
Portsmouth City Council,PCC,Cultural and Related Services,Open Spaces,"Culture, Leisure & Regulatory Services",Premises-Related Expenditure,Water Services,13-Jan-23,6695734,24.92,LIMITED COMPANY,WAVE LTD,300000457049455
Portsmouth City Council,PCC,Housing Revenue Account,"Rents, Rates, Taxes and Other Charges","Housing, Neighbourhood and Building Services",Premises-Related Expenditure,Water Services,13-Jan-23,6695734,8.68,LIMITED COMPANY,WAVE LTD,300000457049455
Portsmouth City Council,PCC,Housing Revenue Account,Special Services,"Housing, Neighbourhood and Building Services",Premises-Related Expenditure,Water Services,13-Jan-23,6695734,8.76,LIMITED COMPANY,WAVE LTD,300000457049455
Portsmouth City Council,PCC,Children's and Education Services,Family Support Services,Children's Services and Education,Premises-Related Expenditure,Water Services,13-Jan-23,6695734,59.24,LIMITED COMPANY,WAVE LTD,300000457049455
Portsmouth City Council,PCC,Housing Revenue Account,"Rents, Rates, Taxes and Other Charges","Housing, Neighbourhood and Building Services",Premises-Related Expenditure,Water Services,13-Jan-23,6695734,4.1,LIMITED COMPANY,WAVE LTD,300000457049455
Portsmouth City Council,PCC,Housing Revenue Account,"Rents, Rates, Taxes and Other Charges","Housing, Neighbourhood and Building Services",Premises-Related Expenditure,Water Services,13-Jan-23,6695734,34.11,LIMITED COMPANY,WAVE LTD,300000457049455
Portsmouth City Council,PCC,Highways and Transport Services,Public Transport,Regeneration,Premises-Related Expenditure,Water Services,13-Jan-23,6695734,38.81,LIMITED COMPANY,WAVE LTD,300000457049455
Portsmouth City Council,PCC,Housing Revenue Account,"Rents, Rates, Taxes and Other Charges","Housing, Neighbourhood and Building Services",Premises-Related Expenditure,Water Services,13-Jan-23,6695734,2.83,LIMITED COMPANY,WAVE LTD,300000457049455
Portsmouth City Council,PCC,Children's and Education Services,Primary Schools,Children's Services and Education,Premises-Related Expenditure,Water Services,13-Jan-23,6695734,305.77,LIMITED COMPANY,WAVE LTD,300000457049455
